Body_Code,Body_Name,Service,GL Code,GL Code Desc,Posting Date,Doc Number,Doc Net Amount,Supplier Name
http://statistics.data.gov.uk/id/local-authority/38,Oxfordshire County Council,ICT Operations & Maintenance,5086,Other Communications,01/03/2016,2200124583,632.9,(aq) Ltd
http://statistics.data.gov.uk/id/local-authority/38,Oxfordshire County Council,SEN TRANSPORT,4330,Transport to School Activities,01/03/2016,3110066235,576,001 Alpha Cars Ltd
http://statistics.data.gov.uk/id/local-authority/38,Oxfordshire County Council,SEN TRANSPORT,4330,Transport to School Activities,15/03/2016,3110071340,576,001 Alpha Cars Ltd
http://statistics.data.gov.uk/id/local-authority/38,Oxfordshire County Council,MAINSTREAM-SECONDARY,4330,Transport to School Activities,15/03/2016,3110071330,608,001 Alpha Cars Ltd
http://statistics.data.gov.uk/id/local-authority/38,Oxfordshire County Council,SEN TRANSPORT,4330,Transport to School Activities,01/03/2016,3110066227,684,001 Alpha Cars Ltd
http://statistics.data.gov.uk/id/local-authority/38,Oxfordshire County Council,MAINSTREAM-SECONDARY,4330,Transport to School Activities,01/03/2016,3110066225,722,001 Alpha Cars Ltd
http://statistics.data.gov.uk/id/local-authority/38,Oxfordshire County Council,LOOKED AFTER NORTH,4330,Transport to School Activities,11/03/2016,3110071157,806,001 Alpha Cars Ltd
http://statistics.data.gov.uk/id/local-authority/38,Oxfordshire County Council,TRANSPORT COSTS,4330,Transport to School Activities,11/03/2016,3110071124,812,001 Alpha Cars Ltd
http://statistics.data.gov.uk/id/local-authority/38,Oxfordshire County Council,SEN TRANSPORT,4330,Transport to School Activities,15/03/2016,3110071337,"1,120.00",001 Alpha Cars Ltd
http://statistics.data.gov.uk/id/local-authority/38,Oxfordshire County Council,MEADOWBROOK TRANSPT,4330,Transport to School Activities,15/03/2016,3110071347,"1,138.50",001 Alpha Cars Ltd
http://statistics.data.gov.uk/id/local-authority/38,Oxfordshire County Council,MAINSTREAM-SECONDARY,4330,Transport to School Activities,15/03/2016,3110071349,"1,150.00",001 Alpha Cars Ltd
http://statistics.data.gov.uk/id/local-authority/38,Oxfordshire County Council,POST 16 SEN,4330,Transport to School Activities,15/03/2016,3110071344,"1,152.00",001 Alpha Cars Ltd
http://statistics.data.gov.uk/id/local-authority/38,Oxfordshire County Council,SEN TRANSPORT,4330,Transport to School Activities,15/03/2016,3110071363,"1,152.00",001 Alpha Cars Ltd
http://statistics.data.gov.uk/id/local-authority/38,Oxfordshire County Council,MEADOWBROOK TRANSPT,4330,Transport to School Activities,01/03/2016,3110066231,"1,191.00",001 Alpha Cars Ltd
http://statistics.data.gov.uk/id/local-authority/38,Oxfordshire County Council,SEN TRANSPORT,4330,Transport to School Activities,15/03/2016,3110071362,"1,193.28",001 Alpha Cars Ltd
http://statistics.data.gov.uk/id/local-authority/38,Oxfordshire County Council,POST 16 SEN,4330,Transport to School Activities,01/03/2016,3110066230,"1,368.00",001 Alpha Cars Ltd
http://statistics.data.gov.uk/id/local-authority/38,Oxfordshire County Council,SEN TRANSPORT,4330,Transport to School Activities,01/03/2016,3110066237,"1,379.73",001 Alpha Cars Ltd
http://statistics.data.gov.uk/id/local-authority/38,Oxfordshire County Council,SEN TRANSPORT,4330,Transport to School Activities,01/03/2016,3110066229,"1,400.00",001 Alpha Cars Ltd
http://statistics.data.gov.uk/id/local-authority/38,Oxfordshire County Council,SEN TRANSPORT,4330,Transport to School Activities,01/03/2016,3110066238,"1,440.00",001 Alpha Cars Ltd
http://statistics.data.gov.uk/id/local-authority/38,Oxfordshire County Council,SEN TRANSPORT,4330,Transport to School Activities,01/03/2016,3110066233,"1,520.00",001 Alpha Cars Ltd
http://statistics.data.gov.uk/id/local-authority/38,Oxfordshire County Council,SEN TRANSPORT,4330,Transport to School Activities,15/03/2016,3110071354,"1,540.00",001 Alpha Cars Ltd
http://statistics.data.gov.uk/id/local-authority/38,Oxfordshire County Council,SEN TRANSPORT,4330,Transport to School Activities,15/03/2016,3110071335,"2,324.00",001 Alpha Cars Ltd
http://statistics.data.gov.uk/id/local-authority/38,Oxfordshire County Council,SEN TRANSPORT,4330,Transport to School Activities,01/03/2016,3110066226,"2,660.00",001 Alpha Cars Ltd
http://statistics.data.gov.uk/id/local-authority/38,Oxfordshire County Council,LD CLIENTS SOUTH,5689,,10/03/2016,2200131371,858,1 to 1 Care
http://statistics.data.gov.uk/id/local-authority/38,Oxfordshire County Council,MAINSTREAM-PRIMARY,4330,Transport to School Activities,15/03/2016,3110071366,960,1St Taxis
http://statistics.data.gov.uk/id/local-authority/38,Oxfordshire County Council,MAINSTREAM-SECONDARY,4330,Transport to School Activities,15/03/2016,3110071365,"1,040.00",1St Taxis
http://statistics.data.gov.uk/id/local-authority/38,Oxfordshire County Council,SEN TRANSPORT,4330,Transport to School Activities,15/03/2016,3110071367,"1,600.00",1St Taxis
http://statistics.data.gov.uk/id/local-authority/38,Oxfordshire County Council,MH SPOT FUNDING,5686,,10/03/2016,3110070769,"10,194.58",2 CARE-A PART OF THE RICHMOND FELLO
http://statistics.data.gov.uk/id/local-authority/38,Oxfordshire County Council,DIDCOT HUB,2040,Agency Staff,01/03/2016,2200119115,"-1,351.91",3D Recruit Ltd
http://statistics.data.gov.uk/id/local-authority/38,Oxfordshire County Council,CM & SW COUNTY TEAM,2040,Agency Staff,11/03/2016,2200129293,613.12,3D Recruit Ltd
http://statistics.data.gov.uk/id/local-authority/38,Oxfordshire County Council,CM & SW COUNTY TEAM,2040,Agency Staff,11/03/2016,2200133916,613.12,3D Recruit Ltd
http://statistics.data.gov.uk/id/local-authority/38,Oxfordshire County Council,CM & SW COUNTY TEAM,2040,Agency Staff,01/03/2016,2200120081,804.72,3D Recruit Ltd
http://statistics.data.gov.uk/id/local-authority/38,Oxfordshire County Council,CM & SW COUNTY TEAM,2040,Agency Staff,01/03/2016,2200120085,804.72,3D Recruit Ltd
http://statistics.data.gov.uk/id/local-authority/38,Oxfordshire County Council,CM & SW COUNTY TEAM,2040,Agency Staff,01/03/2016,2200120091,804.72,3D Recruit Ltd
http://statistics.data.gov.uk/id/local-authority/38,Oxfordshire County Council,CM & SW COUNTY TEAM,2040,Agency Staff,01/03/2016,2200120093,804.72,3D Recruit Ltd
http://statistics.data.gov.uk/id/local-authority/38,Oxfordshire County Council,CM & SW COUNTY TEAM,2040,Agency Staff,21/03/2016,2200132569,804.72,3D Recruit Ltd
http://statistics.data.gov.uk/id/local-authority/38,Oxfordshire County Council,CM & SW COUNTY TEAM,2040,Agency Staff,14/03/2016,2200127639,890.94,3D Recruit Ltd
http://statistics.data.gov.uk/id/local-authority/38,Oxfordshire County Council,CM & SW COUNTY TEAM,2040,Agency Staff,11/03/2016,2200133920,944.53,3D Recruit Ltd
http://statistics.data.gov.uk/id/local-authority/38,Oxfordshire County Council,CM & SW COUNTY TEAM,2040,Agency Staff,11/03/2016,2200133924,948.42,3D Recruit Ltd
http://statistics.data.gov.uk/id/local-authority/38,Oxfordshire County Council,SOUTH HOSPITAL TEAM,2040,Agency Staff,24/03/2016,2200139128,972.37,3D Recruit Ltd
http://statistics.data.gov.uk/id/local-authority/38,Oxfordshire County Council,CM & SW COUNTY TEAM,2040,Agency Staff,11/03/2016,2200130892,996.32,3D Recruit Ltd
http://statistics.data.gov.uk/id/local-authority/38,Oxfordshire County Council,Delayed Patient Care Beds,2040,Agency Staff,11/03/2016,2200128709,"1,005.90",3D Recruit Ltd
http://statistics.data.gov.uk/id/local-authority/38,Oxfordshire County Council,Delayed Patient Care Beds,2040,Agency Staff,11/03/2016,2200128755,"1,005.90",3D Recruit Ltd
http://statistics.data.gov.uk/id/local-authority/38,Oxfordshire County Council,SOUTH HOSPITAL TEAM,2040,Agency Staff,24/03/2016,2200139129,"1,011.64",3D Recruit Ltd
http://statistics.data.gov.uk/id/local-authority/38,Oxfordshire County Council,Delayed Patient Care Beds,2040,Agency Staff,11/03/2016,2200128711,"1,022.67",3D Recruit Ltd
http://statistics.data.gov.uk/id/local-authority/38,Oxfordshire County Council,Delayed Patient Care Beds,2040,Agency Staff,11/03/2016,2200128757,"1,041.23",3D Recruit Ltd
http://statistics.data.gov.uk/id/local-authority/38,Oxfordshire County Council,Delayed Patient Care Beds,2040,Agency Staff,01/03/2016,2200120306,"1,050.83",3D Recruit Ltd
http://statistics.data.gov.uk/id/local-authority/38,Oxfordshire County Council,DIDCOT HUB,2040,Agency Staff,11/03/2016,2200128689,"1,077.94",3D Recruit Ltd
http://statistics.data.gov.uk/id/local-authority/38,Oxfordshire County Council,CM & SW COUNTY TEAM,2040,Agency Staff,11/03/2016,2200133925,"1,110.75",3D Recruit Ltd
http://statistics.data.gov.uk/id/local-authority/38,Oxfordshire County Council,Delayed Patient Care Beds,2040,Agency Staff,11/03/2016,2200128754,"1,110.99",3D Recruit Ltd
http://statistics.data.gov.uk/id/local-authority/38,Oxfordshire County Council,Delayed Patient Care Beds,2040,Agency Staff,01/03/2016,2200120307,"1,151.10",3D Recruit Ltd
http://statistics.data.gov.uk/id/local-authority/38,Oxfordshire County Council,LOCALITY TEAM - CITY,2040,Agency Staff,01/03/2016,2200120302,"1,191.22",3D Recruit Ltd
http://statistics.data.gov.uk/id/local-authority/38,Oxfordshire County Council,Delayed Patient Care Beds,2040,Agency Staff,30/03/2016,2200138675,"1,212.03",3D Recruit Ltd
http://statistics.data.gov.uk/id/local-authority/38,Oxfordshire County Council,Delayed Patient Care Beds,2040,Agency Staff,01/03/2016,2200120278,"1,220.57",3D Recruit Ltd
http://statistics.data.gov.uk/id/local-authority/38,Oxfordshire County Council,CM & SW COUNTY TEAM,2040,Agency Staff,01/03/2016,2200124007,"1,235.39",3D Recruit Ltd
http://statistics.data.gov.uk/id/local-authority/38,Oxfordshire County Council,CM & SW COUNTY TEAM,2040,Agency Staff,11/03/2016,2200133931,"1,235.39",3D Recruit Ltd
http://statistics.data.gov.uk/id/local-authority/38,Oxfordshire County Council,Delayed Patient Care Beds,2040,Agency Staff,11/03/2016,2200128703,"1,239.82",3D Recruit Ltd
http://statistics.data.gov.uk/id/local-authority/38,Oxfordshire County Council,DTOC Funding,2040,Agency Staff,17/03/2016,2200134177,"1,246.46",3D Recruit Ltd
http://statistics.data.gov.uk/id/local-authority/38,Oxfordshire County Council,LOCALITY TM CHERWELL,2040,Agency Staff,01/03/2016,2200124640,"1,258.00",3D Recruit Ltd
http://statistics.data.gov.uk/id/local-authority/38,Oxfordshire County Council,Delayed Patient Care Beds,2040,Agency Staff,01/03/2016,2200120273,"1,262.48",3D Recruit Ltd
http://statistics.data.gov.uk/id/local-authority/38,Oxfordshire County Council,Delayed Patient Care Beds,2040,Agency Staff,01/03/2016,2200120276,"1,262.48",3D Recruit Ltd
http://statistics.data.gov.uk/id/local-authority/38,Oxfordshire County Council,DTOC Funding,2040,Agency Staff,18/03/2016,2200132195,"1,265.93",3D Recruit Ltd
http://statistics.data.gov.uk/id/local-authority/38,Oxfordshire County Council,CM & SW COUNTY TEAM,2040,Agency Staff,11/03/2016,2200133923,"1,275.87",3D Recruit Ltd
http://statistics.data.gov.uk/id/local-authority/38,Oxfordshire County Council,DTOC Funding,2040,Agency Staff,15/03/2016,2200128627,"1,292.53",3D Recruit Ltd
http://statistics.data.gov.uk/id/local-authority/38,Oxfordshire County Council,CM & SW COUNTY TEAM,2040,Agency Staff,01/03/2016,2200124592,"1,295.03",3D Recruit Ltd
http://statistics.data.gov.uk/id/local-authority/38,Oxfordshire County Council,DEPUTY DIRECTOR &MAN,2040,Agency Staff,11/03/2016,2200131844,"1,317.25",3D Recruit Ltd
http://statistics.data.gov.uk/id/local-authority/38,Oxfordshire County Council,MASH PROJECT,2040,Agency Staff,01/03/2016,2200120294,"1,329.41",3D Recruit Ltd
http://statistics.data.gov.uk/id/local-authority/38,Oxfordshire County Council,MASH PROJECT,2040,Agency Staff,01/03/2016,2200120297,"1,329.41",3D Recruit Ltd
http://statistics.data.gov.uk/id/local-authority/38,Oxfordshire County Council,MASH PROJECT,2040,Agency Staff,01/03/2016,2200120299,"1,329.41",3D Recruit Ltd
http://statistics.data.gov.uk/id/local-authority/38,Oxfordshire County Council,DIDCOT HUB,2040,Agency Staff,01/03/2016,2200120284,"1,354.16",3D Recruit Ltd
http://statistics.data.gov.uk/id/local-authority/38,Oxfordshire County Council,DIDCOT HUB,2040,Agency Staff,01/03/2016,2200120270,"1,357.76",3D Recruit Ltd
http://statistics.data.gov.uk/id/local-authority/38,Oxfordshire County Council,DIDCOT HUB,2040,Agency Staff,11/03/2016,2200128680,"1,369.46",3D Recruit Ltd
http://statistics.data.gov.uk/id/local-authority/38,Oxfordshire County Council,DIDCOT HUB,2040,Agency Staff,01/03/2016,2200120291,"1,372.16",3D Recruit Ltd
http://statistics.data.gov.uk/id/local-authority/38,Oxfordshire County Council,DIDCOT HUB,2040,Agency Staff,11/03/2016,2200128683,"1,373.51",3D Recruit Ltd
http://statistics.data.gov.uk/id/local-authority/38,Oxfordshire County Council,FAMILY SUPPORT N'TH2,2040,Agency Staff,11/03/2016,2200129681,"1,412.48",3D Recruit Ltd
http://statistics.data.gov.uk/id/local-authority/38,Oxfordshire County Council,DEPUTY DIRECTOR &MAN,2040,Agency Staff,11/03/2016,2200131841,"1,437.00",3D Recruit Ltd
http://statistics.data.gov.uk/id/local-authority/38,Oxfordshire County Council,DEPUTY DIRECTOR &MAN,2040,Agency Staff,11/03/2016,2200131848,"1,451.40",3D Recruit Ltd
http://statistics.data.gov.uk/id/local-authority/38,Oxfordshire County Council,FAMILY SUPPORT N'TH2,2040,Agency Staff,24/03/2016,2200138755,"1,467.31",3D Recruit Ltd
http://statistics.data.gov.uk/id/local-authority/38,Oxfordshire County Council,FAMILY SUPPORT N'TH2,2040,Agency Staff,17/03/2016,2200134045,"1,488.26",3D Recruit Ltd
http://statistics.data.gov.uk/id/local-authority/38,Oxfordshire County Council,FAMILY SUPPORT N'TH2,2040,Agency Staff,11/03/2016,2200129680,"1,550.77",3D Recruit Ltd
http://statistics.data.gov.uk/id/local-authority/38,Oxfordshire County Council,DEPUTY DIRECTOR &MAN,2040,Agency Staff,17/03/2016,2200131851,"1,580.70",3D Recruit Ltd
http://statistics.data.gov.uk/id/local-authority/38,Oxfordshire County Council,DATA & SYSTEMS/MISC,4495,IT Software,18/03/2016,2200132292,895,3tc Software Ltd
http://statistics.data.gov.uk/id/local-authority/38,Oxfordshire County Council,2 YEAR OLD FUNDING,5537,Payments to Other Establishments,08/03/2016,3110069907,"2,672.85",A B C Nursery
http://statistics.data.gov.uk/id/local-authority/38,Oxfordshire County Council,FOSTERING MAIN,5549,B*Fostering Allowance - Regulation 38,30/03/2016,3110076428,"1,038.89",Redacted Personal Data
http://statistics.data.gov.uk/id/local-authority/38,Oxfordshire County Council,DISBTY FAM PLACEMENT,5227,Other Transport Arrangements,22/03/2016,3110073255,567.42,Redacted Personal Data
http://statistics.data.gov.uk/id/local-authority/38,Oxfordshire County Council,DISBTY FAM PLACEMENT,5544,B*Fostering - Temp/Respite,16/03/2016,3110071758,619.2,Redacted Personal Data
http://statistics.data.gov.uk/id/local-authority/38,Oxfordshire County Council,DISBTY FAM PLACEMENT,5544,B*Fostering - Temp/Respite,09/03/2016,3110068254,629.69,Redacted Personal Data
http://statistics.data.gov.uk/id/local-authority/38,Oxfordshire County Council,DISBTY FAM PLACEMENT,5544,B*Fostering - Temp/Respite,02/03/2016,3110066576,669.56,Redacted Personal Data
http://statistics.data.gov.uk/id/local-authority/38,Oxfordshire County Council,FY TRADED SERVICES,4540,"Educational Supplies, Stationery & Mater",09/03/2016,2200124766,"5,842.00",A+ Education Ltd
http://statistics.data.gov.uk/id/local-authority/38,Oxfordshire County Council,FY STRATEGIC WORK,4940,Other Services,01/03/2016,2200119894,"24,600.00",A+ Education Ltd
http://statistics.data.gov.uk/id/local-authority/38,Oxfordshire County Council,OPPB CONTCARE RNCC,5687,,10/03/2016,3110070691,"75,467.44",Abbey Crest Nursing Home
http://statistics.data.gov.uk/id/local-authority/38,Oxfordshire County Council,2 YEAR OLD FUNDING,5537,Payments to Other Establishments,08/03/2016,3110070087,"2,379.30",Abbeymeads Day Nurseries Ltd
http://statistics.data.gov.uk/id/local-authority/38,Oxfordshire County Council,CSB - BANBURY,5689,,09/03/2016,3110069842,519.87,Abicare Services Ltd (Homecare)
http://statistics.data.gov.uk/id/local-authority/38,Oxfordshire County Council,CSB - BANBURY,5689,,09/03/2016,3110069843,667.35,Abicare Services Ltd (Homecare)
http://statistics.data.gov.uk/id/local-authority/38,Oxfordshire County Council,CMPB WITNEY,5689,,09/03/2016,3110069847,791.7,Abicare Services Ltd (Homecare)
http://statistics.data.gov.uk/id/local-authority/38,Oxfordshire County Council,CSB - BANBURY,5689,,09/03/2016,3110069841,"2,259.39",Abicare Services Ltd (Homecare)
http://statistics.data.gov.uk/id/local-authority/38,Oxfordshire County Council,CSB - COUNTY,1362,Creditors GR/IR -,01/03/2016,2200127817,"8,053.18",Abicare Services Ltd (Homecare)
http://statistics.data.gov.uk/id/local-authority/38,Oxfordshire County Council,CSB - COUNTY,1362,Creditors GR/IR -,01/03/2016,2200130661,"8,807.10",Abicare Services Ltd (Homecare)
http://statistics.data.gov.uk/id/local-authority/38,Oxfordshire County Council,CSB - COUNTY,1362,Creditors GR/IR -,01/03/2016,2200130638,"8,807.45",Abicare Services Ltd (Homecare)
http://statistics.data.gov.uk/id/local-authority/38,Oxfordshire County Council,CSB - COUNTY,1362,Creditors GR/IR -,01/03/2016,2200130658,"9,582.82",Abicare Services Ltd (Homecare)
http://statistics.data.gov.uk/id/local-authority/38,Oxfordshire County Council,CSB - BANBURY,5689,,09/03/2016,3110069838,"11,740.85",Abicare Services Ltd (Homecare)
http://statistics.data.gov.uk/id/local-authority/38,Oxfordshire County Council,LD CLIENTS SOUTH,5899,Adult Social Care - Direct Payments,22/03/2016,3110074112,"6,427.92",Redacted Personal Data
http://statistics.data.gov.uk/id/local-authority/38,Oxfordshire County Council,CITY DEAL SKILLS,4861,Hired and Contracted Services,01/03/2016,2200129006,"8,915.00",Abingdon & Witney College
http://statistics.data.gov.uk/id/local-authority/38,Oxfordshire County Council,OCC Recharge - Other,4540,"Educational Supplies, Stationery & Mater",29/03/2016,2200138286,"26,822.93",Abingdon & Witney College
http://statistics.data.gov.uk/id/local-authority/38,Oxfordshire County Council,2 YEAR OLD FUNDING,5537,Payments to Other Establishments,08/03/2016,3110069908,"3,517.65",Abingdon Kindergarten (Loyd Close)
http://statistics.data.gov.uk/id/local-authority/38,Oxfordshire County Council,2 YEAR OLD FUNDING,5537,Payments to Other Establishments,08/03/2016,3110069909,"2,227.26",Abingdon Kindergarten (Oxford Road)
http://statistics.data.gov.uk/id/local-authority/38,Oxfordshire County Council,2 YEAR OLD FUNDING,5537,Payments to Other Establishments,08/03/2016,3110070126,618,Abingdon Little Angels
http://statistics.data.gov.uk/id/local-authority/38,Oxfordshire County Council,SEN TRANSPORT,5227,Other Transport Arrangements,21/03/2016,3110072847,512,Abingdon Taxis FKN Autotaxis
http://statistics.data.gov.uk/id/local-authority/38,Oxfordshire County Council,SEN TRANSPORT,5227,Other Transport Arrangements,21/03/2016,3110072852,512,Abingdon Taxis FKN Autotaxis
http://statistics.data.gov.uk/id/local-authority/38,Oxfordshire County Council,SEN TRANSPORT,5227,Other Transport Arrangements,02/03/2016,3110066987,527,Abingdon Taxis FKN Autotaxis
http://statistics.data.gov.uk/id/local-authority/38,Oxfordshire County Council,SEN TRANSPORT,4330,Transport to School Activities,02/03/2016,3110066991,560,Abingdon Taxis FKN Autotaxis
http://statistics.data.gov.uk/id/local-authority/38,Oxfordshire County Council,LD CLIENTS SOUTH,5227,Other Transport Arrangements,11/03/2016,3110071458,601.46,Abingdon Taxis FKN Autotaxis
http://statistics.data.gov.uk/id/local-authority/38,Oxfordshire County Council,SEN TRANSPORT,5227,Other Transport Arrangements,02/03/2016,3110066977,608,Abingdon Taxis FKN Autotaxis
http://statistics.data.gov.uk/id/local-authority/38,Oxfordshire County Council,SEN TRANSPORT,5227,Other Transport Arrangements,02/03/2016,3110066979,608,Abingdon Taxis FKN Autotaxis
http://statistics.data.gov.uk/id/local-authority/38,Oxfordshire County Council,SEN TRANSPORT,4330,Transport to School Activities,02/03/2016,3110066972,610,Abingdon Taxis FKN Autotaxis
http://statistics.data.gov.uk/id/local-authority/38,Oxfordshire County Council,MAINSTREAM-SECONDARY,4330,Transport to School Activities,21/03/2016,3110072836,640,Abingdon Taxis FKN Autotaxis
http://statistics.data.gov.uk/id/local-authority/38,Oxfordshire County Council,SEN TRANSPORT,5227,Other Transport Arrangements,21/03/2016,3110072859,640,Abingdon Taxis FKN Autotaxis
http://statistics.data.gov.uk/id/local-authority/38,Oxfordshire County Council,TRANSPORT COSTS,4330,Transport to School Activities,11/03/2016,3110071463,666,Abingdon Taxis FKN Autotaxis
http://statistics.data.gov.uk/id/local-authority/38,Oxfordshire County Council,SEN TRANSPORT,4330,Transport to School Activities,21/03/2016,3110072838,670.25,Abingdon Taxis FKN Autotaxis
http://statistics.data.gov.uk/id/local-authority/38,Oxfordshire County Council,LD CLIENTS SOUTH,5227,Other Transport Arrangements,11/03/2016,3110071461,714,Abingdon Taxis FKN Autotaxis
http://statistics.data.gov.uk/id/local-authority/38,Oxfordshire County Council,LD CLIENTS SOUTH,5227,Other Transport Arrangements,11/03/2016,3110071474,736.99,Abingdon Taxis FKN Autotaxis
http://statistics.data.gov.uk/id/local-authority/38,Oxfordshire County Council,MAINSTREAM-PRIMARY,4330,Transport to School Activities,21/03/2016,3110072826,750,Abingdon Taxis FKN Autotaxis
http://statistics.data.gov.uk/id/local-authority/38,Oxfordshire County Council,SEN TRANSPORT,4330,Transport to School Activities,21/03/2016,3110072828,756.34,Abingdon Taxis FKN Autotaxis
http://statistics.data.gov.uk/id/local-authority/38,Oxfordshire County Council,SEN TRANSPORT,5227,Other Transport Arrangements,02/03/2016,3110066984,760,Abingdon Taxis FKN Autotaxis
http://statistics.data.gov.uk/id/local-authority/38,Oxfordshire County Council,LD CLIENTS SOUTH,5227,Other Transport Arrangements,11/03/2016,3110071455,875.88,Abingdon Taxis FKN Autotaxis
http://statistics.data.gov.uk/id/local-authority/38,Oxfordshire County Council,SEN TRANSPORT,4330,Transport to School Activities,02/03/2016,3110066982,876.34,Abingdon Taxis FKN Autotaxis
http://statistics.data.gov.uk/id/local-authority/38,Oxfordshire County Council,LD CLIENTS SOUTH,5227,Other Transport Arrangements,11/03/2016,3110071456,900,Abingdon Taxis FKN Autotaxis
http://statistics.data.gov.uk/id/local-authority/38,Oxfordshire County Council,SEN TRANSPORT,4330,Transport to School Activities,21/03/2016,3110072834,960,Abingdon Taxis FKN Autotaxis
http://statistics.data.gov.uk/id/local-authority/38,Oxfordshire County Council,SEN TRANSPORT,4330,Transport to School Activities,02/03/2016,3110066981,"1,140.00",Abingdon Taxis FKN Autotaxis
http://statistics.data.gov.uk/id/local-authority/38,Oxfordshire County Council,SEN TRANSPORT,4330,Transport to School Activities,21/03/2016,3110072841,"1,377.92",Abingdon Taxis FKN Autotaxis
http://statistics.data.gov.uk/id/local-authority/38,Oxfordshire County Council,SEN TRANSPORT,4330,Transport to School Activities,21/03/2016,3110072843,"1,440.00",Abingdon Taxis FKN Autotaxis
http://statistics.data.gov.uk/id/local-authority/38,Oxfordshire County Council,SEN TRANSPORT,4330,Transport to School Activities,21/03/2016,3110072830,"1,600.00",Abingdon Taxis FKN Autotaxis
http://statistics.data.gov.uk/id/local-authority/38,Oxfordshire County Council,SEN TRANSPORT,4330,Transport to School Activities,02/03/2016,3110066988,"1,698.28",Abingdon Taxis FKN Autotaxis
http://statistics.data.gov.uk/id/local-authority/38,Oxfordshire County Council,SEN TRANSPORT,4330,Transport to School Activities,02/03/2016,3110066980,"1,710.00",Abingdon Taxis FKN Autotaxis
http://statistics.data.gov.uk/id/local-authority/38,Oxfordshire County Council,SEN TRANSPORT,4330,Transport to School Activities,21/03/2016,3110072848,"1,779.52",Abingdon Taxis FKN Autotaxis
http://statistics.data.gov.uk/id/local-authority/38,Oxfordshire County Council,SEN TRANSPORT,4330,Transport to School Activities,02/03/2016,3110066989,"1,900.00",Abingdon Taxis FKN Autotaxis
http://statistics.data.gov.uk/id/local-authority/38,Oxfordshire County Council,SEN TRANSPORT,4330,Transport to School Activities,02/03/2016,3110066973,"2,113.18",Abingdon Taxis FKN Autotaxis
http://statistics.data.gov.uk/id/local-authority/38,Oxfordshire County Council,SEN TRANSPORT,4330,Transport to School Activities,21/03/2016,3110072850,"2,208.00",Abingdon Taxis FKN Autotaxis
http://statistics.data.gov.uk/id/local-authority/38,Oxfordshire County Council,SEN TRANSPORT,4330,Transport to School Activities,21/03/2016,3110072845,"2,240.00",Abingdon Taxis FKN Autotaxis
http://statistics.data.gov.uk/id/local-authority/38,Oxfordshire County Council,SEN TRANSPORT,4330,Transport to School Activities,02/03/2016,3110066985,"2,418.00",Abingdon Taxis FKN Autotaxis
http://statistics.data.gov.uk/id/local-authority/38,Oxfordshire County Council,SEN TRANSPORT,4330,Transport to School Activities,02/03/2016,3110066986,"2,470.00",Abingdon Taxis FKN Autotaxis
http://statistics.data.gov.uk/id/local-authority/38,Oxfordshire County Council,SEN TRANSPORT,4330,Transport to School Activities,02/03/2016,3110066993,"2,622.00",Abingdon Taxis FKN Autotaxis
http://statistics.data.gov.uk/id/local-authority/38,Oxfordshire County Council,SEN TRANSPORT,4330,Transport to School Activities,02/03/2016,3110066976,"2,660.00",Abingdon Taxis FKN Autotaxis
http://statistics.data.gov.uk/id/local-authority/38,Oxfordshire County Council,SEN TRANSPORT,4330,Transport to School Activities,02/03/2016,3110066978,"2,660.00",Abingdon Taxis FKN Autotaxis
http://statistics.data.gov.uk/id/local-authority/38,Oxfordshire County Council,SEN TRANSPORT,4330,Transport to School Activities,02/03/2016,3110066974,"2,907.00",Abingdon Taxis FKN Autotaxis
http://statistics.data.gov.uk/id/local-authority/38,Oxfordshire County Council,SEN TRANSPORT,4330,Transport to School Activities,21/03/2016,3110072858,"3,200.00",Abingdon Taxis FKN Autotaxis
http://statistics.data.gov.uk/id/local-authority/38,Oxfordshire County Council,SEN TRANSPORT,4330,Transport to School Activities,02/03/2016,3110066983,"3,800.00",Abingdon Taxis FKN Autotaxis
http://statistics.data.gov.uk/id/local-authority/38,Oxfordshire County Council,MUSEUM DEV OFFICER,5195,Grant Aid and Donations,21/03/2016,2200133861,"1,958.00",Abingdon Town Council
http://statistics.data.gov.uk/id/local-authority/38,Oxfordshire County Council,FM SERVICE MNGMNT,3945,Rent,10/03/2016,2200125826,"2,410.26",Abingdon Town Council
http://statistics.data.gov.uk/id/local-authority/38,Oxfordshire County Council,CORPORATE LANDLORD,3945,Rent,01/03/2016,2200120530,"3,081.25",Abingdon Town Council
http://statistics.data.gov.uk/id/local-authority/38,Oxfordshire County Council,OPPB CONTCARE RNCC,5687,,10/03/2016,3110070734,"79,540.33",Acacia Lodge Care Home
http://statistics.data.gov.uk/id/local-authority/38,Oxfordshire County Council,LOCALITY TEAM - WEST,2040,Agency Staff,03/03/2016,2200122683,"1,425.00",Access Independent Limited
http://statistics.data.gov.uk/id/local-authority/38,Oxfordshire County Council,SEN TRANSPORT,4330,Transport to School Activities,24/03/2016,3110075274,585,Ace Taxis (West Oxfordshire) Ltd
http://statistics.data.gov.uk/id/local-authority/38,Oxfordshire County Council,SEN TRANSPORT,4330,Transport to School Activities,30/03/2016,3110077122,702,Ace Taxis (West Oxfordshire) Ltd
http://statistics.data.gov.uk/id/local-authority/38,Oxfordshire County Council,MAINSTREAM-SECONDARY,4330,Transport to School Activities,24/03/2016,3110075277,792,Ace Taxis (West Oxfordshire) Ltd
http://statistics.data.gov.uk/id/local-authority/38,Oxfordshire County Council,MAINSTREAM-SECONDARY,4330,Transport to School Activities,24/03/2016,3110075275,880,Ace Taxis (West Oxfordshire) Ltd
http://statistics.data.gov.uk/id/local-authority/38,Oxfordshire County Council,MAINSTREAM-SECONDARY,4330,Transport to School Activities,30/03/2016,3110077123,891,Ace Taxis (West Oxfordshire) Ltd
http://statistics.data.gov.uk/id/local-authority/38,Oxfordshire County Council,MAINSTREAM-SECONDARY,4330,Transport to School Activities,24/03/2016,3110075279,952,Ace Taxis (West Oxfordshire) Ltd
http://statistics.data.gov.uk/id/local-authority/38,Oxfordshire County Council,MAINSTREAM-PRIMARY,4330,Transport to School Activities,24/03/2016,3110075276,956,Ace Taxis (West Oxfordshire) Ltd
http://statistics.data.gov.uk/id/local-authority/38,Oxfordshire County Council,MAINSTREAM-SECONDARY,4330,Transport to School Activities,24/03/2016,3110075278,960,Ace Taxis (West Oxfordshire) Ltd
http://statistics.data.gov.uk/id/local-authority/38,Oxfordshire County Council,PD COMM SUPP - CITY,5899,Adult Social Care - Direct Payments,22/03/2016,3110073752,"2,424.00",Redacted Personal Data
http://statistics.data.gov.uk/id/local-authority/38,Oxfordshire County Council,HI ADVISORY TRADED,4407,Equipment,08/03/2016,2200124852,"2,439.40",Acoustic Metrology Ltd
http://statistics.data.gov.uk/id/local-authority/38,Oxfordshire County Council,CSB - CITY,5689,,09/03/2016,3110068533,581.52,Acquire Care Ltd
http://statistics.data.gov.uk/id/local-authority/38,Oxfordshire County Council,PD COMM SUPP - CITY,5689,,09/03/2016,3110068580,585.41,Acquire Care Ltd
http://statistics.data.gov.uk/id/local-authority/38,Oxfordshire County Council,CSB - BANBURY,5689,,09/03/2016,3110068512,595.04,Acquire Care Ltd
http://statistics.data.gov.uk/id/local-authority/38,Oxfordshire County Council,CSB - BANBURY,5689,,09/03/2016,3110068519,609.03,Acquire Care Ltd
http://statistics.data.gov.uk/id/local-authority/38,Oxfordshire County Council,CSB - BANBURY,5689,,09/03/2016,3110068521,645.61,Acquire Care Ltd
http://statistics.data.gov.uk/id/local-authority/38,Oxfordshire County Council,CSB - CITY,5689,,09/03/2016,3110068548,668.96,Acquire Care Ltd
http://statistics.data.gov.uk/id/local-authority/38,Oxfordshire County Council,PD COMM SUPP BANB,5689,,09/03/2016,3110068573,669.15,Acquire Care Ltd
http://statistics.data.gov.uk/id/local-authority/38,Oxfordshire County Council,CSB - CITY,5689,,09/03/2016,3110068541,678.72,Acquire Care Ltd
http://statistics.data.gov.uk/id/local-authority/38,Oxfordshire County Council,CSB - BANBURY,5689,,09/03/2016,3110068522,710.23,Acquire Care Ltd
http://statistics.data.gov.uk/id/local-authority/38,Oxfordshire County Council,CSB - CITY,5689,,09/03/2016,3110068549,721.36,Acquire Care Ltd
http://statistics.data.gov.uk/id/local-authority/38,Oxfordshire County Council,CSB - CITY,5689,,09/03/2016,3110068540,766.4,Acquire Care Ltd
http://statistics.data.gov.uk/id/local-authority/38,Oxfordshire County Council,CSB - BANBURY,5689,,09/03/2016,3110068516,791.11,Acquire Care Ltd
http://statistics.data.gov.uk/id/local-authority/38,Oxfordshire County Council,CSB - CITY,5689,,09/03/2016,3110068539,826.86,Acquire Care Ltd
http://statistics.data.gov.uk/id/local-authority/38,Oxfordshire County Council,CSB - CITY,5689,,09/03/2016,3110068562,828.28,Acquire Care Ltd
http://statistics.data.gov.uk/id/local-authority/38,Oxfordshire County Council,CSB - ABINGDON,5689,,09/03/2016,3110068569,861.24,Acquire Care Ltd
http://statistics.data.gov.uk/id/local-authority/38,Oxfordshire County Council,CSB - CITY,5689,,09/03/2016,3110068555,884.88,Acquire Care Ltd
http://statistics.data.gov.uk/id/local-authority/38,Oxfordshire County Council,CSB - CITY,5689,,09/03/2016,3110068564,895.48,Acquire Care Ltd
http://statistics.data.gov.uk/id/local-authority/38,Oxfordshire County Council,CSB - CITY,5689,,09/03/2016,3110068565,899.18,Acquire Care Ltd
http://statistics.data.gov.uk/id/local-authority/38,Oxfordshire County Council,CSB - ABINGDON,5689,,09/03/2016,3110068571,921.49,Acquire Care Ltd
http://statistics.data.gov.uk/id/local-authority/38,Oxfordshire County Council,CSB - CITY,5689,,09/03/2016,3110068559,938.25,Acquire Care Ltd
http://statistics.data.gov.uk/id/local-authority/38,Oxfordshire County Council,CSB - CITY,5689,,09/03/2016,3110068550,975.35,Acquire Care Ltd
http://statistics.data.gov.uk/id/local-authority/38,Oxfordshire County Council,CSB - CITY,5689,,09/03/2016,3110068528,996.02,Acquire Care Ltd
http://statistics.data.gov.uk/id/local-authority/38,Oxfordshire County Council,CSB - BANBURY,5689,,09/03/2016,3110068515,"1,002.61",Acquire Care Ltd
http://statistics.data.gov.uk/id/local-authority/38,Oxfordshire County Council,CSB - CITY,5689,,09/03/2016,3110068527,"1,035.92",Acquire Care Ltd
http://statistics.data.gov.uk/id/local-authority/38,Oxfordshire County Council,CSB - CITY,5689,,09/03/2016,3110068567,"1,126.30",Acquire Care Ltd
http://statistics.data.gov.uk/id/local-authority/38,Oxfordshire County Council,CSB - BANBURY,5689,,09/03/2016,3110068525,"1,372.75",Acquire Care Ltd
http://statistics.data.gov.uk/id/local-authority/38,Oxfordshire County Council,CSB - BANBURY,5689,,09/03/2016,3110068517,"1,378.80",Acquire Care Ltd
http://statistics.data.gov.uk/id/local-authority/38,Oxfordshire County Council,CSB - CITY,5689,,09/03/2016,3110068546,"1,418.09",Acquire Care Ltd
http://statistics.data.gov.uk/id/local-authority/38,Oxfordshire County Council,CSB - CITY,5689,,09/03/2016,3110068537,"1,426.92",Acquire Care Ltd
http://statistics.data.gov.uk/id/local-authority/38,Oxfordshire County Council,CSB - CITY,5689,,09/03/2016,3110068552,"1,498.80",Acquire Care Ltd
http://statistics.data.gov.uk/id/local-authority/38,Oxfordshire County Council,CSB - BANBURY,5689,,09/03/2016,3110068520,"1,553.34",Acquire Care Ltd
http://statistics.data.gov.uk/id/local-authority/38,Oxfordshire County Council,CSB - BANBURY,5689,,09/03/2016,3110068523,"1,565.55",Acquire Care Ltd
http://statistics.data.gov.uk/id/local-authority/38,Oxfordshire County Council,PD COMM SUPP - CITY,5689,,09/03/2016,3110068579,"1,760.49",Acquire Care Ltd
http://statistics.data.gov.uk/id/local-authority/38,Oxfordshire County Council,CSB - CITY,5689,,09/03/2016,3110068551,"1,817.32",Acquire Care Ltd
http://statistics.data.gov.uk/id/local-authority/38,Oxfordshire County Council,CSB - CITY,5689,,09/03/2016,3110068538,"1,873.26",Acquire Care Ltd
http://statistics.data.gov.uk/id/local-authority/38,Oxfordshire County Council,CSB - BANBURY,5689,,09/03/2016,3110068524,"1,895.30",Acquire Care Ltd
http://statistics.data.gov.uk/id/local-authority/38,Oxfordshire County Council,CSB - CITY,5689,,09/03/2016,3110068553,"1,899.83",Acquire Care Ltd
http://statistics.data.gov.uk/id/local-authority/38,Oxfordshire County Council,CSB - CITY,5689,,09/03/2016,3110068547,"1,982.30",Acquire Care Ltd
http://statistics.data.gov.uk/id/local-authority/38,Oxfordshire County Council,CSB - BANBURY,5689,,09/03/2016,3110068518,"2,058.37",Acquire Care Ltd
http://statistics.data.gov.uk/id/local-authority/38,Oxfordshire County Council,CSB - CITY,5689,,09/03/2016,3110068560,"2,068.75",Acquire Care Ltd
http://statistics.data.gov.uk/id/local-authority/38,Oxfordshire County Council,CSB - CITY,5689,,09/03/2016,3110068529,"2,082.78",Acquire Care Ltd
http://statistics.data.gov.uk/id/local-authority/38,Oxfordshire County Council,CSB - CITY,5689,,09/03/2016,3110068561,"2,104.68",Acquire Care Ltd
http://statistics.data.gov.uk/id/local-authority/38,Oxfordshire County Council,CSB - CITY,5689,,09/03/2016,3110068558,"2,108.72",Acquire Care Ltd
http://statistics.data.gov.uk/id/local-authority/38,Oxfordshire County Council,CSB - CITY,5689,,09/03/2016,3110068543,"2,124.18",Acquire Care Ltd
http://statistics.data.gov.uk/id/local-authority/38,Oxfordshire County Council,CSB - CITY,5689,,09/03/2016,3110068534,"2,132.05",Acquire Care Ltd
http://statistics.data.gov.uk/id/local-authority/38,Oxfordshire County Council,CSB - CITY,5689,,09/03/2016,3110068536,"2,177.85",Acquire Care Ltd
http://statistics.data.gov.uk/id/local-authority/38,Oxfordshire County Council,CSB - CITY,5689,,09/03/2016,3110068544,"2,230.77",Acquire Care Ltd
http://statistics.data.gov.uk/id/local-authority/38,Oxfordshire County Council,PD COMM SUPP - CITY,5689,,09/03/2016,3110068574,"2,246.82",Acquire Care Ltd
http://statistics.data.gov.uk/id/local-authority/38,Oxfordshire County Council,CSB - BANBURY,5689,,09/03/2016,3110068514,"2,365.28",Acquire Care Ltd
http://statistics.data.gov.uk/id/local-authority/38,Oxfordshire County Council,PD COMM SUPP - CITY,5689,,09/03/2016,3110068577,"2,563.09",Acquire Care Ltd
http://statistics.data.gov.uk/id/local-authority/38,Oxfordshire County Council,CSB - CITY,5689,,09/03/2016,3110068530,"2,664.46",Acquire Care Ltd
http://statistics.data.gov.uk/id/local-authority/38,Oxfordshire County Council,CSB - BANBURY,5689,,10/03/2016,3110070321,"3,640.00",Acquire Care Ltd
http://statistics.data.gov.uk/id/local-authority/38,Oxfordshire County Council,CSB - BANBURY,5689,,10/03/2016,3110070322,"3,640.00",Acquire Care Ltd
http://statistics.data.gov.uk/id/local-authority/38,Oxfordshire County Council,CSB - BANBURY,5689,,10/03/2016,3110070320,"4,030.00",Acquire Care Ltd
http://statistics.data.gov.uk/id/local-authority/38,Oxfordshire County Council,2 YEAR OLD FUNDING,5537,Payments to Other Establishments,08/03/2016,3110069910,"1,849.05",Acre End Pre-School Play
http://statistics.data.gov.uk/id/local-authority/38,Oxfordshire County Council,CHILDREN CENTRES REV,5520,Payments to Voluntary bodies,31/03/2016,3500016409,"184,203.75",Action for Children
http://statistics.data.gov.uk/id/local-authority/38,Oxfordshire County Council,RESIDENTIAL TREATMEN,5686,,15/03/2016,2200128972,"-1,620.00",Action on Addiction
http://statistics.data.gov.uk/id/local-authority/38,Oxfordshire County Council,RESIDENTIAL TREATMEN,5686,,01/03/2016,2200130873,"1,620.00",Action on Addiction
http://statistics.data.gov.uk/id/local-authority/38,Oxfordshire County Council,PD RES PURCH - SOUTH,7063,Client Contributions - Residential OLA,10/03/2016,3110070715,"11,701.79",ACTION ON HEARING LOSS
http://statistics.data.gov.uk/id/local-authority/38,Oxfordshire County Council,BROADBAND PROJECT,3942,Hire of Accommodation and Facilities,04/03/2016,2200122198,"2,936.00",Activate Learning
http://statistics.data.gov.uk/id/local-authority/38,Oxfordshire County Council,PDPB CONTCARE H SUPP,5691,,29/03/2016,3110076981,"1,553.09",ACTIVE ASSISTANCE
http://statistics.data.gov.uk/id/local-authority/38,Oxfordshire County Council,PDPB CONTCARE H SUPP,5691,,29/03/2016,3110076982,"1,553.09",ACTIVE ASSISTANCE
http://statistics.data.gov.uk/id/local-authority/38,Oxfordshire County Council,PDPB CONTCARE H SUPP,5691,,29/03/2016,3110076984,"1,553.09",ACTIVE ASSISTANCE
http://statistics.data.gov.uk/id/local-authority/38,Oxfordshire County Council,PDPB CONTCARE H SUPP,5691,,29/03/2016,3110076985,"1,553.09",ACTIVE ASSISTANCE
http://statistics.data.gov.uk/id/local-authority/38,Oxfordshire County Council,PDPB CONTCARE H SUPP,5691,,29/03/2016,3110076986,"1,553.09",ACTIVE ASSISTANCE
http://statistics.data.gov.uk/id/local-authority/38,Oxfordshire County Council,PDPB CONTCARE H SUPP,5691,,30/03/2016,3110077117,"1,553.09",ACTIVE ASSISTANCE
http://statistics.data.gov.uk/id/local-authority/38,Oxfordshire County Council,PDPB CONTCARE H SUPP,5691,,30/03/2016,3110077112,"5,088.05",ACTIVE ASSISTANCE
http://statistics.data.gov.uk/id/local-authority/38,Oxfordshire County Council,TRAINING MANAGEMENT,3100,Educational and Vocational Training,01/03/2016,2200121507,"4,998.00",ACTIVE LEARNING AND DEVELOPMENT LTD
http://statistics.data.gov.uk/id/local-authority/38,Oxfordshire County Council,LD CLIENTS SOUTH,5899,Adult Social Care - Direct Payments,22/03/2016,3110074354,"1,171.48",Redacted Personal Data
http://statistics.data.gov.uk/id/local-authority/38,Oxfordshire County Council,LD CLIENTS SOUTH,5899,Adult Social Care - Direct Payments,22/03/2016,3110074148,"2,076.92",Redacted Personal Data
http://statistics.data.gov.uk/id/local-authority/38,Oxfordshire County Council,DIRECTOR'S OFFICE,5190,Subscriptions,16/03/2016,2200130277,"3,135.00",ADCS LTD
http://statistics.data.gov.uk/id/local-authority/38,Oxfordshire County Council,RESIDENTIAL TREATMEN,5686,,07/03/2016,2200138571,580,Addiction Recovery Centre
http://statistics.data.gov.uk/id/local-authority/38,Oxfordshire County Council,RESIDENTIAL TREATMEN,5686,,07/03/2016,2200124797,"2,402.94",Addiction Recovery Centre
http://statistics.data.gov.uk/id/local-authority/38,Oxfordshire County Council,RESIDENTIAL TREATMEN,5686,,07/03/2016,2200124798,"2,402.94",Addiction Recovery Centre
http://statistics.data.gov.uk/id/local-authority/38,Oxfordshire County Council,RESIDENTIAL TREATMEN,5686,,07/03/2016,2200124799,"2,402.94",Addiction Recovery Centre
http://statistics.data.gov.uk/id/local-authority/38,Oxfordshire County Council,BUSINESS SUPPORT,5251,Legal Costs,24/03/2016,2200136302,-790.5,Adkin
http://statistics.data.gov.uk/id/local-authority/38,Oxfordshire County Council,BUSINESS SUPPORT,5251,Legal Costs,24/03/2016,2200136303,790.5,Adkin
http://statistics.data.gov.uk/id/local-authority/38,Oxfordshire County Council,PD COMM SUPP BANB,5899,Adult Social Care - Direct Payments,22/03/2016,3110073905,792,Redacted Personal Data
http://statistics.data.gov.uk/id/local-authority/38,Oxfordshire County Council,LD CLIENTS SOUTH,5690,,10/03/2016,3110070952,"1,278.26",ADVANCE HOUSING & SUPPORT LTD
http://statistics.data.gov.uk/id/local-authority/38,Oxfordshire County Council,LD CLIENTS NORTH,5688,,10/03/2016,3110070970,"21,593.43",ADVANCE HOUSING & SUPPORT LTD
http://statistics.data.gov.uk/id/local-authority/38,Oxfordshire County Council,LD CLIENTS CITY,7063,Client Contributions - Residential OLA,10/03/2016,3110070657,"28,631.85",ADVANCE HOUSING & SUPPORT LTD
http://statistics.data.gov.uk/id/local-authority/38,Oxfordshire County Council,SM DISABILITIES,5899,Adult Social Care - Direct Payments,29/03/2016,3110075493,517.18,Advance Oxford
http://statistics.data.gov.uk/id/local-authority/38,Oxfordshire County Council,SM DISABILITIES,5899,Adult Social Care - Direct Payments,29/03/2016,3110075503,517.18,Advance Oxford
http://statistics.data.gov.uk/id/local-authority/38,Oxfordshire County Council,SM DISABILITIES,5899,Adult Social Care - Direct Payments,29/03/2016,3110075590,564.2,Advance Oxford
http://statistics.data.gov.uk/id/local-authority/38,Oxfordshire County Council,SM DISABILITIES,5899,Adult Social Care - Direct Payments,29/03/2016,3110075597,564.2,Advance Oxford
http://statistics.data.gov.uk/id/local-authority/38,Oxfordshire County Council,SM DISABILITIES,5899,Adult Social Care - Direct Payments,29/03/2016,3110075599,564.2,Advance Oxford
http://statistics.data.gov.uk/id/local-authority/38,Oxfordshire County Council,SM DISABILITIES,5899,Adult Social Care - Direct Payments,29/03/2016,3110075608,564.2,Advance Oxford
http://statistics.data.gov.uk/id/local-authority/38,Oxfordshire County Council,SM DISABILITIES,5899,Adult Social Care - Direct Payments,29/03/2016,3110075609,564.2,Advance Oxford
http://statistics.data.gov.uk/id/local-authority/38,Oxfordshire County Council,SM DISABILITIES,5899,Adult Social Care - Direct Payments,29/03/2016,3110075612,564.2,Advance Oxford
http://statistics.data.gov.uk/id/local-authority/38,Oxfordshire County Council,SM DISABILITIES,5899,Adult Social Care - Direct Payments,29/03/2016,3110075614,564.2,Advance Oxford
http://statistics.data.gov.uk/id/local-authority/38,Oxfordshire County Council,SM DISABILITIES,5899,Adult Social Care - Direct Payments,29/03/2016,3110075618,564.2,Advance Oxford
http://statistics.data.gov.uk/id/local-authority/38,Oxfordshire County Council,SM DISABILITIES,5899,Adult Social Care - Direct Payments,29/03/2016,3110075623,564.2,Advance Oxford
http://statistics.data.gov.uk/id/local-authority/38,Oxfordshire County Council,SM DISABILITIES,5899,Adult Social Care - Direct Payments,29/03/2016,3110075584,651,Advance Oxford
http://statistics.data.gov.uk/id/local-authority/38,Oxfordshire County Council,SM DISABILITIES,5899,Adult Social Care - Direct Payments,29/03/2016,3110075513,768,Advance Oxford
http://statistics.data.gov.uk/id/local-authority/38,Oxfordshire County Council,SM DISABILITIES,5899,Adult Social Care - Direct Payments,29/03/2016,3110075500,799.28,Advance Oxford
http://statistics.data.gov.uk/id/local-authority/38,Oxfordshire County Council,SM DISABILITIES,5899,Adult Social Care - Direct Payments,29/03/2016,3110075496,846.3,Advance Oxford
http://statistics.data.gov.uk/id/local-authority/38,Oxfordshire County Council,SM DISABILITIES,5899,Adult Social Care - Direct Payments,29/03/2016,3110075594,846.3,Advance Oxford
http://statistics.data.gov.uk/id/local-authority/38,Oxfordshire County Council,SM DISABILITIES,5899,Adult Social Care - Direct Payments,29/03/2016,3110075601,846.3,Advance Oxford
http://statistics.data.gov.uk/id/local-authority/38,Oxfordshire County Council,SM DISABILITIES,5899,Adult Social Care - Direct Payments,29/03/2016,3110075602,846.3,Advance Oxford
http://statistics.data.gov.uk/id/local-authority/38,Oxfordshire County Council,SM DISABILITIES,5899,Adult Social Care - Direct Payments,29/03/2016,3110075606,846.3,Advance Oxford
http://statistics.data.gov.uk/id/local-authority/38,Oxfordshire County Council,SM DISABILITIES,5899,Adult Social Care - Direct Payments,29/03/2016,3110075607,846.3,Advance Oxford
http://statistics.data.gov.uk/id/local-authority/38,Oxfordshire County Council,SM DISABILITIES,5899,Adult Social Care - Direct Payments,29/03/2016,3110075611,846.3,Advance Oxford
http://statistics.data.gov.uk/id/local-authority/38,Oxfordshire County Council,SM DISABILITIES,5899,Adult Social Care - Direct Payments,29/03/2016,3110075615,846.3,Advance Oxford
http://statistics.data.gov.uk/id/local-authority/38,Oxfordshire County Council,SM DISABILITIES,5899,Adult Social Care - Direct Payments,29/03/2016,3110075620,846.3,Advance Oxford
http://statistics.data.gov.uk/id/local-authority/38,Oxfordshire County Council,SM DISABILITIES,5899,Adult Social Care - Direct Payments,29/03/2016,3110075621,846.3,Advance Oxford
http://statistics.data.gov.uk/id/local-authority/38,Oxfordshire County Council,SM DISABILITIES,5899,Adult Social Care - Direct Payments,29/03/2016,3110075622,846.3,Advance Oxford
http://statistics.data.gov.uk/id/local-authority/38,Oxfordshire County Council,ContrO ASC Payments Control Account,5899,Adult Social Care - Direct Payments,29/03/2016,3110075498,854.88,Advance Oxford
http://statistics.data.gov.uk/id/local-authority/38,Oxfordshire County Council,SM DISABILITIES,5899,Adult Social Care - Direct Payments,29/03/2016,3110075616,933.1,Advance Oxford
http://statistics.data.gov.uk/id/local-authority/38,Oxfordshire County Council,SM DISABILITIES,5899,Adult Social Care - Direct Payments,29/03/2016,3110075495,960,Advance Oxford
http://statistics.data.gov.uk/id/local-authority/38,Oxfordshire County Council,SM DISABILITIES,5899,Adult Social Care - Direct Payments,29/03/2016,3110075587,"1,063.30",Advance Oxford
http://statistics.data.gov.uk/id/local-authority/38,Oxfordshire County Council,SM DISABILITIES,5899,Adult Social Care - Direct Payments,29/03/2016,3110075588,"1,063.30",Advance Oxford
http://statistics.data.gov.uk/id/local-authority/38,Oxfordshire County Council,SM DISABILITIES,5899,Adult Social Care - Direct Payments,29/03/2016,3110075605,"1,063.30",Advance Oxford
http://statistics.data.gov.uk/id/local-authority/38,Oxfordshire County Council,SM DISABILITIES,5899,Adult Social Care - Direct Payments,29/03/2016,3110075619,"1,063.30",Advance Oxford
http://statistics.data.gov.uk/id/local-authority/38,Oxfordshire County Council,ContrO ASC Payments Control Account,5899,Adult Social Care - Direct Payments,29/03/2016,3110075492,"1,119.04",Advance Oxford
http://statistics.data.gov.uk/id/local-authority/38,Oxfordshire County Council,SM DISABILITIES,5899,Adult Social Care - Direct Payments,29/03/2016,3110075585,"1,128.40",Advance Oxford
http://statistics.data.gov.uk/id/local-authority/38,Oxfordshire County Council,SM DISABILITIES,5899,Adult Social Care - Direct Payments,29/03/2016,3110075593,"1,128.40",Advance Oxford
http://statistics.data.gov.uk/id/local-authority/38,Oxfordshire County Council,SM DISABILITIES,5899,Adult Social Care - Direct Payments,29/03/2016,3110075603,"1,128.40",Advance Oxford
http://statistics.data.gov.uk/id/local-authority/38,Oxfordshire County Council,SM DISABILITIES,5899,Adult Social Care - Direct Payments,29/03/2016,3110075604,"1,128.40",Advance Oxford
http://statistics.data.gov.uk/id/local-authority/38,Oxfordshire County Council,SM DISABILITIES,5899,Adult Social Care - Direct Payments,29/03/2016,3110075610,"1,280.30",Advance Oxford
http://statistics.data.gov.uk/id/local-authority/38,Oxfordshire County Council,ContrO ASC Payments Control Account,5899,Adult Social Care - Direct Payments,29/03/2016,3110075510,"1,333.80",Advance Oxford
http://statistics.data.gov.uk/id/local-authority/38,Oxfordshire County Council,SM DISABILITIES,5899,Adult Social Care - Direct Payments,29/03/2016,3110075586,"1,345.40",Advance Oxford
http://statistics.data.gov.uk/id/local-authority/38,Oxfordshire County Council,SM DISABILITIES,5899,Adult Social Care - Direct Payments,29/03/2016,3110075507,"1,766.61",Advance Oxford
http://statistics.data.gov.uk/id/local-authority/38,Oxfordshire County Council,SM DISABILITIES,5899,Adult Social Care - Direct Payments,29/03/2016,3110075583,"1,779.40",Advance Oxford
http://statistics.data.gov.uk/id/local-authority/38,Oxfordshire County Council,SM DISABILITIES,5899,Adult Social Care - Direct Payments,29/03/2016,3110075505,"3,761.33",Advance Oxford
http://statistics.data.gov.uk/id/local-authority/38,Oxfordshire County Council,GYPSY & TRAVELLER SV,4940,Other Services,01/03/2016,2200120779,588,Advanced Pest Control Ltd
http://statistics.data.gov.uk/id/local-authority/38,Oxfordshire County Council,MAJOR INFASTRUCTURE,5526,Payments to Private Contractors,01/03/2016,2200130143,"6,400.00",AECOM Infrastructure & Environment
http://statistics.data.gov.uk/id/local-authority/38,Oxfordshire County Council,MAJOR INFASTRUCTURE,5526,Payments to Private Contractors,08/03/2016,2200123965,"6,720.00",AECOM Infrastructure & Environment
http://statistics.data.gov.uk/id/local-authority/38,Oxfordshire County Council,MAJOR INFASTRUCTURE,5526,Payments to Private Contractors,01/03/2016,2200130146,"7,947.85",AECOM Infrastructure & Environment
http://statistics.data.gov.uk/id/local-authority/38,Oxfordshire County Council,MAJOR INFASTRUCTURE,5526,Payments to Private Contractors,15/03/2016,2200128260,"11,200.00",AECOM Infrastructure & Environment
http://statistics.data.gov.uk/id/local-authority/38,Oxfordshire County Council,LD CLIENTS SOUTH,5686,,10/03/2016,3110070837,"7,295.58",AFFINITY TRUST
http://statistics.data.gov.uk/id/local-authority/38,Oxfordshire County Council,Care Act Implemenation,5668,Technical and Professional Consultant F,08/03/2016,2200123707,601.8,Affinity Works Limited
http://statistics.data.gov.uk/id/local-authority/38,Oxfordshire County Council,CSB - THAME,4495,IT Software,01/03/2016,2200119801,"15,000.00",Affinity Works Limited
http://statistics.data.gov.uk/id/local-authority/38,Oxfordshire County Council,Care Act Implemenation,5668,Technical and Professional Consultant F,08/03/2016,2200123898,"16,500.00",Affinity Works Limited
http://statistics.data.gov.uk/id/local-authority/38,Oxfordshire County Council,EXTERNAL DAY CARE,5690,,03/03/2016,2200122713,730,Age UK Oxfordshire
http://statistics.data.gov.uk/id/local-authority/38,Oxfordshire County Council,SCH CAUSING CONCERN,4494,Purchase of IT Equipment,03/03/2016,2200122603,720,Agile Collective Ltd
http://statistics.data.gov.uk/id/local-authority/38,Oxfordshire County Council,INFORMATION & OPPORT,5668,Technical and Professional Consultant F,21/03/2016,2200133974,870,Agile Collective Ltd
http://statistics.data.gov.uk/id/local-authority/38,Oxfordshire County Council,INFORMATION & OPPORT,5668,Technical and Professional Consultant F,21/03/2016,2200135586,"3,147.00",Agile Collective Ltd
http://statistics.data.gov.uk/id/local-authority/38,Oxfordshire County Council,CSB - BANBURY,5689,,10/03/2016,2200128834,544.72,Agincare
http://statistics.data.gov.uk/id/local-authority/38,Oxfordshire County Council,CSB - BANBURY,5689,,16/03/2016,2200132162,552.08,Agincare
http://statistics.data.gov.uk/id/local-authority/38,Oxfordshire County Council,CSB - BANBURY,5689,,14/03/2016,2200132157,559.44,Agincare
http://statistics.data.gov.uk/id/local-authority/38,Oxfordshire County Council,CSB - DIDCOT,5899,Adult Social Care - Direct Payments,22/03/2016,3110073700,"1,532.00",Redacted Personal Data
http://statistics.data.gov.uk/id/local-authority/38,Oxfordshire County Council,COMPOSTING,5526,Payments to Private Contractors,21/03/2016,2200135124,585.3,Agrivert (Ardley) Limited
http://statistics.data.gov.uk/id/local-authority/38,Oxfordshire County Council,COMPOSTING,5526,Payments to Private Contractors,01/03/2016,2200123036,"1,580.37",Agrivert (Ardley) Limited
http://statistics.data.gov.uk/id/local-authority/38,Oxfordshire County Council,COMPOSTING,5526,Payments to Private Contractors,02/03/2016,2200122658,"1,644.77",Agrivert (Ardley) Limited
http://statistics.data.gov.uk/id/local-authority/38,Oxfordshire County Council,COMPOSTING,5526,Payments to Private Contractors,24/03/2016,2200138668,"1,904.52",Agrivert (Ardley) Limited
http://statistics.data.gov.uk/id/local-authority/38,Oxfordshire County Council,COMPOSTING,5526,Payments to Private Contractors,01/03/2016,2200123033,"6,968.57",Agrivert (Ardley) Limited
http://statistics.data.gov.uk/id/local-authority/38,Oxfordshire County Council,COMPOSTING,5526,Payments to Private Contractors,16/03/2016,2200132969,"7,147.16",Agrivert (Ardley) Limited
http://statistics.data.gov.uk/id/local-authority/38,Oxfordshire County Council,COMPOSTING,5526,Payments to Private Contractors,24/03/2016,2200138670,"8,246.20",Agrivert (Ardley) Limited
http://statistics.data.gov.uk/id/local-authority/38,Oxfordshire County Council,COMPOSTING,5526,Payments to Private Contractors,01/03/2016,2200132446,"9,547.08",Agrivert (Ardley) Limited
http://statistics.data.gov.uk/id/local-authority/38,Oxfordshire County Council,COMPOSTING,5526,Payments to Private Contractors,16/03/2016,2200132971,"11,022.26",Agrivert (Ardley) Limited
http://statistics.data.gov.uk/id/local-authority/38,Oxfordshire County Council,COMPOSTING,5526,Payments to Private Contractors,16/03/2016,2200132968,"11,629.57",Agrivert (Ardley) Limited
http://statistics.data.gov.uk/id/local-authority/38,Oxfordshire County Council,COMPOSTING,5526,Payments to Private Contractors,16/03/2016,2200132966,"12,675.25",Agrivert (Ardley) Limited
http://statistics.data.gov.uk/id/local-authority/38,Oxfordshire County Council,COMPOSTING,5526,Payments to Private Contractors,01/03/2016,2200132437,"14,394.24",Agrivert (Ardley) Limited
http://statistics.data.gov.uk/id/local-authority/38,Oxfordshire County Council,COMPOSTING,5526,Payments to Private Contractors,16/03/2016,2200132961,"34,362.09",Agrivert (Ardley) Limited
http://statistics.data.gov.uk/id/local-authority/38,Oxfordshire County Council,COMPOSTING,5526,Payments to Private Contractors,01/03/2016,2200123489,"1,434.80",Agrivert (Biogas) Limited
http://statistics.data.gov.uk/id/local-authority/38,Oxfordshire County Council,COMPOSTING,5526,Payments to Private Contractors,01/03/2016,2200132438,"1,434.80",Agrivert (Biogas) Limited
http://statistics.data.gov.uk/id/local-authority/38,Oxfordshire County Council,COMPOSTING,5526,Payments to Private Contractors,16/03/2016,2200132972,"6,366.67",Agrivert (Biogas) Limited
http://statistics.data.gov.uk/id/local-authority/38,Oxfordshire County Council,COMPOSTING,5526,Payments to Private Contractors,16/03/2016,2200132981,"11,977.25",Agrivert (Biogas) Limited
http://statistics.data.gov.uk/id/local-authority/38,Oxfordshire County Council,COMPOSTING,5526,Payments to Private Contractors,16/03/2016,2200130045,"14,963.83",Agrivert (Biogas) Limited
http://statistics.data.gov.uk/id/local-authority/38,Oxfordshire County Council,COMPOSTING,5526,Payments to Private Contractors,16/03/2016,2200132978,"15,944.17",Agrivert (Biogas) Limited
http://statistics.data.gov.uk/id/local-authority/38,Oxfordshire County Council,COMPOSTING,5526,Payments to Private Contractors,16/03/2016,2200132976,"17,796.61",Agrivert (Biogas) Limited
http://statistics.data.gov.uk/id/local-authority/38,Oxfordshire County Council,COMPOSTING,5526,Payments to Private Contractors,01/03/2016,2200124166,"19,285.60",Agrivert (Biogas) Limited
http://statistics.data.gov.uk/id/local-authority/38,Oxfordshire County Council,COMPOSTING,5526,Payments to Private Contractors,01/03/2016,2200132448,"21,289.69",Agrivert (Biogas) Limited
http://statistics.data.gov.uk/id/local-authority/38,Oxfordshire County Council,GP + PHARMACY SERVS,4934,,01/03/2016,3110066671,"1,008.00",Ahmeys Pharmacy
http://statistics.data.gov.uk/id/local-authority/38,Oxfordshire County Council,GP + PHARMACY SERVS,4934,,24/03/2016,3110073326,"1,036.00",Ahmeys Pharmacy
http://statistics.data.gov.uk/id/local-authority/38,Oxfordshire County Council,LD CLIENTS SOUTH,5899,Adult Social Care - Direct Payments,22/03/2016,3110074096,"1,184.48",Redacted Personal Data
http://statistics.data.gov.uk/id/local-authority/38,Oxfordshire County Council,DATA & SYSTEMS/MISC,4494,Purchase of IT Equipment,03/03/2016,2200121395,"8,849.93",Airbus Defence & Space Ltd
http://statistics.data.gov.uk/id/local-authority/38,Oxfordshire County Council,MAINSTREAM-SECONDARY,4330,Transport to School Activities,15/03/2016,3110071376,784,Airport Transfers Banbury Ltd
http://statistics.data.gov.uk/id/local-authority/38,Oxfordshire County Council,MAINSTREAM-SECONDARY,4330,Transport to School Activities,15/03/2016,3110071381,"1,040.00",Airport Transfers Banbury Ltd
http://statistics.data.gov.uk/id/local-authority/38,Oxfordshire County Council,TRANSPORT COSTS,4330,Transport to School Activities,16/03/2016,3110071966,"1,089.00",Airport Transfers Banbury Ltd
http://statistics.data.gov.uk/id/local-authority/38,Oxfordshire County Council,MAINSTREAM-SECONDARY,4330,Transport to School Activities,15/03/2016,3110071378,"1,104.00",Airport Transfers Banbury Ltd
http://statistics.data.gov.uk/id/local-authority/38,Oxfordshire County Council,MAINSTREAM-PRIMARY,4330,Transport to School Activities,15/03/2016,3110071380,"1,189.28",Airport Transfers Banbury Ltd
http://statistics.data.gov.uk/id/local-authority/38,Oxfordshire County Council,POST 16 SEN,4330,Transport to School Activities,15/03/2016,3110071373,"1,440.00",Airport Transfers Banbury Ltd
http://statistics.data.gov.uk/id/local-authority/38,Oxfordshire County Council,SEN TRANSPORT,4330,Transport to School Activities,15/03/2016,3110071375,"1,776.00",Airport Transfers Banbury Ltd
http://statistics.data.gov.uk/id/local-authority/38,Oxfordshire County Council,SEN TRANSPORT,4330,Transport to School Activities,15/03/2016,3110071383,"3,040.00",Airport Transfers Banbury Ltd
http://statistics.data.gov.uk/id/local-authority/38,Oxfordshire County Council,COMMUNICATIONS,4861,Hired and Contracted Services,08/03/2016,2200128365,"3,413.35",Airwave Solutions Ltd
http://statistics.data.gov.uk/id/local-authority/38,Oxfordshire County Council,LOCALITY TEAM -SOUTH,2040,Agency Staff,08/03/2016,2200129674,"2,639.50",Ajana Ltd
http://statistics.data.gov.uk/id/local-authority/38,Oxfordshire County Council,SEN TRANSPORT,5227,Other Transport Arrangements,31/03/2016,3110077219,540,AKR Ltd
http://statistics.data.gov.uk/id/local-authority/38,Oxfordshire County Council,MAINSTREAM-SECONDARY,4330,Transport to School Activities,31/03/2016,3110077221,584.16,AKR Ltd
http://statistics.data.gov.uk/id/local-authority/38,Oxfordshire County Council,SEN TRANSPORT,5227,Other Transport Arrangements,31/03/2016,3110077229,603,AKR Ltd
http://statistics.data.gov.uk/id/local-authority/38,Oxfordshire County Council,SEN TRANSPORT,5227,Other Transport Arrangements,03/03/2016,3110067335,618.88,AKR Ltd
http://statistics.data.gov.uk/id/local-authority/38,Oxfordshire County Council,MAINSTREAM-SECONDARY,4330,Transport to School Activities,31/03/2016,3110077223,631.96,AKR Ltd
http://statistics.data.gov.uk/id/local-authority/38,Oxfordshire County Council,SEN TRANSPORT,5227,Other Transport Arrangements,03/03/2016,3110067346,640,AKR Ltd
http://statistics.data.gov.uk/id/local-authority/38,Oxfordshire County Council,SEN TRANSPORT,5227,Other Transport Arrangements,03/03/2016,3110067338,672,AKR Ltd
http://statistics.data.gov.uk/id/local-authority/38,Oxfordshire County Council,SEN TRANSPORT,5227,Other Transport Arrangements,31/03/2016,3110077239,696.24,AKR Ltd
http://statistics.data.gov.uk/id/local-authority/38,Oxfordshire County Council,SEN TRANSPORT,5227,Other Transport Arrangements,31/03/2016,3110077216,720,AKR Ltd
http://statistics.data.gov.uk/id/local-authority/38,Oxfordshire County Council,SEN TRANSPORT,5227,Other Transport Arrangements,31/03/2016,3110077233,756,AKR Ltd
http://statistics.data.gov.uk/id/local-authority/38,Oxfordshire County Council,MAINSTREAM-PRIMARY,4330,Transport to School Activities,03/03/2016,3110067340,"1,280.00",AKR Ltd
http://statistics.data.gov.uk/id/local-authority/38,Oxfordshire County Council,SEN TRANSPORT,4330,Transport to School Activities,03/03/2016,3110067330,"1,595.62",AKR Ltd
http://statistics.data.gov.uk/id/local-authority/38,Oxfordshire County Council,SEN TRANSPORT,4330,Transport to School Activities,03/03/2016,3110067343,"1,760.00",AKR Ltd
http://statistics.data.gov.uk/id/local-authority/38,Oxfordshire County Council,SEN TRANSPORT,4330,Transport to School Activities,31/03/2016,3110077241,"1,783.26",AKR Ltd
http://statistics.data.gov.uk/id/local-authority/38,Oxfordshire County Council,SEN TRANSPORT,4330,Transport to School Activities,31/03/2016,3110077217,"1,980.00",AKR Ltd
http://statistics.data.gov.uk/id/local-authority/38,Oxfordshire County Council,MAINSTREAM-PRIMARY,4330,Transport to School Activities,03/03/2016,3110067339,"2,000.00",AKR Ltd
http://statistics.data.gov.uk/id/local-authority/38,Oxfordshire County Council,SEN TRANSPORT,4330,Transport to School Activities,03/03/2016,3110067332,"2,198.72",AKR Ltd
http://statistics.data.gov.uk/id/local-authority/38,Oxfordshire County Council,SEN TRANSPORT,4330,Transport to School Activities,03/03/2016,3110067345,"2,240.00",AKR Ltd
http://statistics.data.gov.uk/id/local-authority/38,Oxfordshire County Council,MAINSTREAM-PRIMARY,4330,Transport to School Activities,31/03/2016,3110077225,"2,250.00",AKR Ltd
http://statistics.data.gov.uk/id/local-authority/38,Oxfordshire County Council,MAINSTREAM-SECONDARY,4330,Transport to School Activities,03/03/2016,3110067342,"2,336.64",AKR Ltd
http://statistics.data.gov.uk/id/local-authority/38,Oxfordshire County Council,SEN TRANSPORT,4330,Transport to School Activities,03/03/2016,3110067347,"2,385.00",AKR Ltd
http://statistics.data.gov.uk/id/local-authority/38,Oxfordshire County Council,SEN TRANSPORT,4330,Transport to School Activities,31/03/2016,3110077214,"2,520.00",AKR Ltd
http://statistics.data.gov.uk/id/local-authority/38,Oxfordshire County Council,MAINSTREAM-SECONDARY,4330,Transport to School Activities,03/03/2016,3110067341,"2,527.84",AKR Ltd
http://statistics.data.gov.uk/id/local-authority/38,Oxfordshire County Council,SEN TRANSPORT,4330,Transport to School Activities,31/03/2016,3110077227,"2,762.10",AKR Ltd
http://statistics.data.gov.uk/id/local-authority/38,Oxfordshire County Council,SEN TRANSPORT,4330,Transport to School Activities,03/03/2016,3110067336,"2,848.00",AKR Ltd
http://statistics.data.gov.uk/id/local-authority/38,Oxfordshire County Council,SEN TRANSPORT,4330,Transport to School Activities,03/03/2016,3110067334,"2,875.84",AKR Ltd
http://statistics.data.gov.uk/id/local-authority/38,Oxfordshire County Council,SEN TRANSPORT,4330,Transport to School Activities,31/03/2016,3110077235,"3,204.00",AKR Ltd
http://statistics.data.gov.uk/id/local-authority/38,Oxfordshire County Council,SEN TRANSPORT,4330,Transport to School Activities,31/03/2016,3110077237,"3,235.32",AKR Ltd
http://statistics.data.gov.uk/id/local-authority/38,Oxfordshire County Council,SEN TRANSPORT,4330,Transport to School Activities,03/03/2016,3110067337,"3,808.00",AKR Ltd
http://statistics.data.gov.uk/id/local-authority/38,Oxfordshire County Council,SEN TRANSPORT,4330,Transport to School Activities,31/03/2016,3110077231,"4,284.00",AKR Ltd
http://statistics.data.gov.uk/id/local-authority/38,Oxfordshire County Council,ASC WORKFORCE STRAT,5668,Technical and Professional Consultant F,29/03/2016,2200139054,900,Alex Braddell Associates Limited
http://statistics.data.gov.uk/id/local-authority/38,Oxfordshire County Council,LEGAL SERVICES,5251,Legal Costs,23/03/2016,2200135385,"2,687.50",Alex Line
http://statistics.data.gov.uk/id/local-authority/38,Oxfordshire County Council,LEGAL SERVICES,5251,Legal Costs,01/03/2016,2200127659,"1,100.00",Alex Perry
http://statistics.data.gov.uk/id/local-authority/38,Oxfordshire County Council,LEGAL SERVICES,5251,Legal Costs,24/03/2016,2200137000,950,Alexander Forbes
http://statistics.data.gov.uk/id/local-authority/38,Oxfordshire County Council,SM DISABILITIES,5899,Adult Social Care - Direct Payments,29/03/2016,3110075661,990.45,Redacted Personal Data
http://statistics.data.gov.uk/id/local-authority/38,Oxfordshire County Council,LD CLIENTS SOUTH,5899,Adult Social Care - Direct Payments,22/03/2016,3110074152,"2,995.08",Redacted Personal Data
http://statistics.data.gov.uk/id/local-authority/38,Oxfordshire County Council,SM DISABILITIES,5899,Adult Social Care - Direct Payments,29/03/2016,3110075563,564.2,Redacted Personal Data
http://statistics.data.gov.uk/id/local-authority/38,Oxfordshire County Council,SM DISABILITIES,5899,Adult Social Care - Direct Payments,29/03/2016,3110075481,705.25,Redacted Personal Data
http://statistics.data.gov.uk/id/local-authority/38,Oxfordshire County Council,LD CLIENTS CITY,5899,Adult Social Care - Direct Payments,22/03/2016,3110073688,"5,388.00",Redacted Personal Data
http://statistics.data.gov.uk/id/local-authority/38,Oxfordshire County Council,LD CLIENTS CITY,5899,Adult Social Care - Direct Payments,22/03/2016,3110073641,"6,654.76",Redacted Personal Data
http://statistics.data.gov.uk/id/local-authority/38,Oxfordshire County Council,2 YEAR OLD FUNDING,5537,Payments to Other Establishments,08/03/2016,3110069912,679.8,Alexandra Walsh
http://statistics.data.gov.uk/id/local-authority/38,Oxfordshire County Council,SM DISABILITIES,5899,Adult Social Care - Direct Payments,29/03/2016,3110075637,"1,128.40",Redacted Personal Data
http://statistics.data.gov.uk/id/local-authority/38,Oxfordshire County Council,SM DISABILITIES,5899,Adult Social Care - Direct Payments,29/03/2016,3110075636,846.3,Redacted Personal Data
http://statistics.data.gov.uk/id/local-authority/38,Oxfordshire County Council,Find Your Voice 2015,4940,Other Services,14/03/2016,2200138746,"2,000.00",Alison Palmer - Smith
http://statistics.data.gov.uk/id/local-authority/38,Oxfordshire County Council,LD CLIENTS SOUTH,5899,Adult Social Care - Direct Payments,22/03/2016,3110074350,753.24,Redacted Personal Data
http://statistics.data.gov.uk/id/local-authority/38,Oxfordshire County Council,LD CLIENTS NORTH,5899,Adult Social Care - Direct Payments,22/03/2016,3110074106,"4,493.16",Redacted Personal Data
http://statistics.data.gov.uk/id/local-authority/38,Oxfordshire County Council,MH COMMUNITY SUP'T,5899,Adult Social Care - Direct Payments,22/03/2016,3110073911,640,Redacted Personal Data
http://statistics.data.gov.uk/id/local-authority/38,Oxfordshire County Council,CSB - CITY,5688,,09/03/2016,3110068041,793.29,ALLIED HEALTHCARE GROUP LTD
http://statistics.data.gov.uk/id/local-authority/38,Oxfordshire County Council,MH COMMUNITY SUP'T,5688,,09/03/2016,3110068065,936.28,ALLIED HEALTHCARE GROUP LTD
http://statistics.data.gov.uk/id/local-authority/38,Oxfordshire County Council,CSB - CITY,5689,,09/03/2016,3110068043,992.77,ALLIED HEALTHCARE GROUP LTD
http://statistics.data.gov.uk/id/local-authority/38,Oxfordshire County Council,2 YEAR OLD FUNDING,5537,Payments to Other Establishments,08/03/2016,3110069913,848.1,Allsorts Pre-School
http://statistics.data.gov.uk/id/local-authority/38,Oxfordshire County Council,PROCUREMENT,4232,Vehicle Fuel,16/03/2016,2200132526,"4,187.01",Allstar Business Solutions Ltd
http://statistics.data.gov.uk/id/local-authority/38,Oxfordshire County Council,LD CLIENTS SOUTH,5686,,10/03/2016,3110070878,"25,080.95",Alocare Group
http://statistics.data.gov.uk/id/local-authority/38,Oxfordshire County Council,TRADING STANDARDS,4280,Car Leasing Business Rentals,23/03/2016,2200138296,"4,041.87",Alphabet (GB) Ltd
http://statistics.data.gov.uk/id/local-authority/38,Oxfordshire County Council,2 YEAR OLD FUNDING,5537,Payments to Other Establishments,08/03/2016,3110069914,"1,189.65",Alphabet Day Nursery
http://statistics.data.gov.uk/id/local-authority/38,Oxfordshire County Council,OSCB,4835,Management Consultant Fees,24/03/2016,2200136993,"1,260.00",AlterEgo Creative Solutions
http://statistics.data.gov.uk/id/local-authority/38,Oxfordshire County Council,BANBURY HUB,5414,Day Activities,30/03/2016,2200139035,"1,260.00",AlterEgo Creative Solutions
http://statistics.data.gov.uk/id/local-authority/38,Oxfordshire County Council,Westgate project,4494,Purchase of IT Equipment,02/03/2016,2200123973,"3,716.00",Alternative Communication Systems
http://statistics.data.gov.uk/id/local-authority/38,Oxfordshire County Council,CSB - ABINGDON,5689,,09/03/2016,3110068456,530.85,Amber Healthcare Personnel Ltd
http://statistics.data.gov.uk/id/local-authority/38,Oxfordshire County Council,CSB - ABINGDON,5689,,09/03/2016,3110068432,540.79,Amber Healthcare Personnel Ltd
http://statistics.data.gov.uk/id/local-authority/38,Oxfordshire County Council,CSB - ABINGDON,5689,,09/03/2016,3110068445,550.83,Amber Healthcare Personnel Ltd
http://statistics.data.gov.uk/id/local-authority/38,Oxfordshire County Council,CSB - ABINGDON,5689,,09/03/2016,3110068464,570.38,Amber Healthcare Personnel Ltd
http://statistics.data.gov.uk/id/local-authority/38,Oxfordshire County Council,CSB - ABINGDON,5689,,09/03/2016,3110068443,591.66,Amber Healthcare Personnel Ltd
http://statistics.data.gov.uk/id/local-authority/38,Oxfordshire County Council,CSB - ABINGDON,5689,,09/03/2016,3110068439,601.46,Amber Healthcare Personnel Ltd
http://statistics.data.gov.uk/id/local-authority/38,Oxfordshire County Council,CSB - ABINGDON,5689,,09/03/2016,3110068448,625.34,Amber Healthcare Personnel Ltd
http://statistics.data.gov.uk/id/local-authority/38,Oxfordshire County Council,CSB - ABINGDON,5689,,09/03/2016,3110068455,649.01,Amber Healthcare Personnel Ltd
http://statistics.data.gov.uk/id/local-authority/38,Oxfordshire County Council,PD COMM SUPP AB'DON,5689,,09/03/2016,3110068473,671.5,Amber Healthcare Personnel Ltd
http://statistics.data.gov.uk/id/local-authority/38,Oxfordshire County Council,CSB - ABINGDON,5689,,09/03/2016,3110068440,678.36,Amber Healthcare Personnel Ltd
http://statistics.data.gov.uk/id/local-authority/38,Oxfordshire County Council,CSB - ABINGDON,5689,,09/03/2016,3110068454,678.66,Amber Healthcare Personnel Ltd
http://statistics.data.gov.uk/id/local-authority/38,Oxfordshire County Council,CSB - ABINGDON,5689,,09/03/2016,3110068435,679.62,Amber Healthcare Personnel Ltd
http://statistics.data.gov.uk/id/local-authority/38,Oxfordshire County Council,CSB - ABINGDON,5689,,09/03/2016,3110068437,686.79,Amber Healthcare Personnel Ltd
http://statistics.data.gov.uk/id/local-authority/38,Oxfordshire County Council,PD COMM SUPP AB'DON,5689,,09/03/2016,3110068470,694.54,Amber Healthcare Personnel Ltd
http://statistics.data.gov.uk/id/local-authority/38,Oxfordshire County Council,CSB - ABINGDON,5689,,09/03/2016,3110068436,881.19,Amber Healthcare Personnel Ltd
http://statistics.data.gov.uk/id/local-authority/38,Oxfordshire County Council,CSB - CITY,5689,,09/03/2016,3110068426,921.22,Amber Healthcare Personnel Ltd
http://statistics.data.gov.uk/id/local-authority/38,Oxfordshire County Council,CSB - ABINGDON,5689,,09/03/2016,3110068438,"1,027.58",Amber Healthcare Personnel Ltd
http://statistics.data.gov.uk/id/local-authority/38,Oxfordshire County Council,PD COMM SUPP AB'DON,5689,,09/03/2016,3110068472,"1,063.18",Amber Healthcare Personnel Ltd
http://statistics.data.gov.uk/id/local-authority/38,Oxfordshire County Council,CSB - ABINGDON,5689,,09/03/2016,3110068457,"1,171.03",Amber Healthcare Personnel Ltd
http://statistics.data.gov.uk/id/local-authority/38,Oxfordshire County Council,CSB - ABINGDON,5689,,09/03/2016,3110068462,"1,171.72",Amber Healthcare Personnel Ltd
http://statistics.data.gov.uk/id/local-authority/38,Oxfordshire County Council,CSB - ABINGDON,5689,,09/03/2016,3110068466,"1,235.46",Amber Healthcare Personnel Ltd
http://statistics.data.gov.uk/id/local-authority/38,Oxfordshire County Council,CSB - ABINGDON,5689,,09/03/2016,3110068451,"1,265.09",Amber Healthcare Personnel Ltd
http://statistics.data.gov.uk/id/local-authority/38,Oxfordshire County Council,CSB - ABINGDON,5689,,09/03/2016,3110068458,"1,774.17",Amber Healthcare Personnel Ltd
http://statistics.data.gov.uk/id/local-authority/38,Oxfordshire County Council,PD COMM SUPP AB'DON,5689,,09/03/2016,3110068474,"2,020.16",Amber Healthcare Personnel Ltd
http://statistics.data.gov.uk/id/local-authority/38,Oxfordshire County Council,CSB - ABINGDON,5689,,09/03/2016,3110068459,"2,436.00",Amber Healthcare Personnel Ltd
http://statistics.data.gov.uk/id/local-authority/38,Oxfordshire County Council,CSB - ABINGDON,5689,,09/03/2016,3110068444,"2,516.31",Amber Healthcare Personnel Ltd
http://statistics.data.gov.uk/id/local-authority/38,Oxfordshire County Council,CMPB WITNEY,5689,,02/03/2016,3110066657,"5,336.00",Amber Healthcare Personnel Ltd
http://statistics.data.gov.uk/id/local-authority/38,Oxfordshire County Council,CMPB WITNEY,5689,,15/03/2016,2200134975,"5,336.00",Amber Healthcare Personnel Ltd
http://statistics.data.gov.uk/id/local-authority/38,Oxfordshire County Council,CMPB WITNEY,5689,,16/03/2016,3110072175,"5,336.00",Amber Healthcare Personnel Ltd
http://statistics.data.gov.uk/id/local-authority/38,Oxfordshire County Council,CMPB WITNEY,5689,,17/03/2016,2200131206,"5,336.00",Amber Healthcare Personnel Ltd
http://statistics.data.gov.uk/id/local-authority/38,Oxfordshire County Council,FY SALARIES,3100,Educational and Vocational Training,17/03/2016,2200132210,"32,000.00",Amber Publications & Training Ltd
http://statistics.data.gov.uk/id/local-authority/38,Oxfordshire County Council,FY STRATEGIC WORK,4940,Other Services,16/03/2016,2200130041,"95,000.00",Amber Publications & Training Ltd
http://statistics.data.gov.uk/id/local-authority/38,Oxfordshire County Council,2 YEAR OLD FUNDING,5537,Payments to Other Establishments,08/03/2016,3110069915,679.8,Ambrosden Village Pre-School
http://statistics.data.gov.uk/id/local-authority/38,Oxfordshire County Council,COMM DRAWDOWN FUNDNG,8004,Design Consultant,03/03/2016,2200129178,"44,134.46",AMEC Foster Wheeler Environment &
http://statistics.data.gov.uk/id/local-authority/38,Oxfordshire County Council,COMM DRAWDOWN FUNDNG,8004,Design Consultant,18/03/2016,2200131330,"76,345.53",AMEC Foster Wheeler Environment &
http://statistics.data.gov.uk/id/local-authority/38,Oxfordshire County Council,LD CLIENTS SOUTH,5899,Adult Social Care - Direct Payments,22/03/2016,3110073585,574.04,Redacted Personal Data
http://statistics.data.gov.uk/id/local-authority/38,Oxfordshire County Council,MUSEUM DEV OFFICER,5195,Grant Aid and Donations,07/03/2016,2200127104,"1,500.00",Amersham Museum
http://statistics.data.gov.uk/id/local-authority/38,Oxfordshire County Council,LD CLIENTS SOUTH,5899,Adult Social Care - Direct Payments,22/03/2016,3110074314,"2,171.48",Redacted Personal Data
http://statistics.data.gov.uk/id/local-authority/38,Oxfordshire County Council,RESIDENTIAL TREATMEN,5686,,01/03/2016,2200129439,"1,120.00",ANA
http://statistics.data.gov.uk/id/local-authority/38,Oxfordshire County Council,RESIDENTIAL TREATMEN,5686,,01/03/2016,2200129442,"2,485.72",ANA
http://statistics.data.gov.uk/id/local-authority/38,Oxfordshire County Council,RESIDENTIAL TREATMEN,5686,,01/03/2016,2200125468,"2,514.09",ANA
http://statistics.data.gov.uk/id/local-authority/38,Oxfordshire County Council,RESIDENTIAL TREATMEN,5686,,01/03/2016,2200125466,"2,706.57",ANA
http://statistics.data.gov.uk/id/local-authority/38,Oxfordshire County Council,SEN TRANSPORT,5227,Other Transport Arrangements,10/03/2016,3110070274,749.92,Ancil Services
http://statistics.data.gov.uk/id/local-authority/38,Oxfordshire County Council,SEN TRANSPORT,4330,Transport to School Activities,10/03/2016,3110070268,"2,153.92",Ancil Services
http://statistics.data.gov.uk/id/local-authority/38,Oxfordshire County Council,SEN TRANSPORT,4330,Transport to School Activities,10/03/2016,3110070272,"3,526.88",Ancil Services
http://statistics.data.gov.uk/id/local-authority/38,Oxfordshire County Council,SM DISABILITIES,5899,Adult Social Care - Direct Payments,29/03/2016,3110075466,564.2,Redacted Personal Data
http://statistics.data.gov.uk/id/local-authority/38,Oxfordshire County Council,PD COMM SUPP - CITY,5899,Adult Social Care - Direct Payments,22/03/2016,3110073538,"4,000.00",Redacted Personal Data
http://statistics.data.gov.uk/id/local-authority/38,Oxfordshire County Council,TVERC,4494,Purchase of IT Equipment,17/03/2016,2200131977,"1,135.00",Andy Foy Consulting
http://statistics.data.gov.uk/id/local-authority/38,Oxfordshire County Council,PD COMM SUPP BANB,5899,Adult Social Care - Direct Payments,22/03/2016,3110073635,"1,833.60",Redacted Personal Data
http://statistics.data.gov.uk/id/local-authority/38,Oxfordshire County Council,PD COMM SUPP BANB,5899,Adult Social Care - Direct Payments,22/03/2016,3110074352,"1,402.80",Redacted Personal Data
http://statistics.data.gov.uk/id/local-authority/38,Oxfordshire County Council,MAINSTREAM-PRIMARY,4330,Transport to School Activities,08/03/2016,3110067852,656,Angelas Travel
http://statistics.data.gov.uk/id/local-authority/38,Oxfordshire County Council,MAINSTREAM-PRIMARY,4330,Transport to School Activities,02/03/2016,3110066838,734,Angelas Travel
http://statistics.data.gov.uk/id/local-authority/38,Oxfordshire County Council,SEN TRANSPORT,4330,Transport to School Activities,08/03/2016,3110067846,813.44,Angelas Travel
http://statistics.data.gov.uk/id/local-authority/38,Oxfordshire County Council,TRANSPORT COSTS,4330,Transport to School Activities,10/03/2016,3110070240,861.25,Angelas Travel
http://statistics.data.gov.uk/id/local-authority/38,Oxfordshire County Council,SEN TRANSPORT,4330,Transport to School Activities,08/03/2016,3110067848,960,Angelas Travel
http://statistics.data.gov.uk/id/local-authority/38,Oxfordshire County Council,SEN TRANSPORT,4330,Transport to School Activities,02/03/2016,3110066822,"1,098.71",Angelas Travel
http://statistics.data.gov.uk/id/local-authority/38,Oxfordshire County Council,SEN TRANSPORT,4330,Transport to School Activities,08/03/2016,3110067858,"1,184.00",Angelas Travel
http://statistics.data.gov.uk/id/local-authority/38,Oxfordshire County Council,SEN TRANSPORT,4330,Transport to School Activities,08/03/2016,3110067854,"1,255.69",Angelas Travel
http://statistics.data.gov.uk/id/local-authority/38,Oxfordshire County Council,SEN TRANSPORT,4330,Transport to School Activities,08/03/2016,3110067840,"1,273.00",Angelas Travel
http://statistics.data.gov.uk/id/local-authority/38,Oxfordshire County Council,SEN TRANSPORT,4330,Transport to School Activities,02/03/2016,3110066833,"1,406.00",Angelas Travel
http://statistics.data.gov.uk/id/local-authority/38,Oxfordshire County Council,SEN TRANSPORT,4330,Transport to School Activities,08/03/2016,3110067862,"1,819.20",Angelas Travel
http://statistics.data.gov.uk/id/local-authority/38,Oxfordshire County Council,MAINSTREAM-SECONDARY,4330,Transport to School Activities,08/03/2016,3110067871,"1,994.40",Angelas Travel
http://statistics.data.gov.uk/id/local-authority/38,Oxfordshire County Council,MAINSTREAM-SECONDARY,4330,Transport to School Activities,08/03/2016,3110067869,"2,071.52",Angelas Travel
http://statistics.data.gov.uk/id/local-authority/38,Oxfordshire County Council,SEN TRANSPORT,4330,Transport to School Activities,02/03/2016,3110066828,"2,160.30",Angelas Travel
http://statistics.data.gov.uk/id/local-authority/38,Oxfordshire County Council,MAINSTREAM-SECONDARY,4330,Transport to School Activities,08/03/2016,3110067867,"2,697.28",Angelas Travel
http://statistics.data.gov.uk/id/local-authority/38,Oxfordshire County Council,MAINSTREAM-SECONDARY,4330,Transport to School Activities,03/03/2016,3110067329,"3,034.44",Angelas Travel
http://statistics.data.gov.uk/id/local-authority/38,Oxfordshire County Council,SM DISABILITIES,5899,Adult Social Care - Direct Payments,29/03/2016,3110075581,574.25,Redacted Personal Data
http://statistics.data.gov.uk/id/local-authority/38,Oxfordshire County Council,FOSTERING MAIN,5548,B*Fostering - Special Rates & Plus Amou,02/03/2016,3110066626,656,Redacted Personal Data
http://statistics.data.gov.uk/id/local-authority/38,Oxfordshire County Council,FOSTERING MAIN,5548,B*Fostering - Special Rates & Plus Amou,09/03/2016,3110068362,656,Redacted Personal Data
http://statistics.data.gov.uk/id/local-authority/38,Oxfordshire County Council,FOSTERING MAIN,5548,B*Fostering - Special Rates & Plus Amou,16/03/2016,3110071804,656,Redacted Personal Data
http://statistics.data.gov.uk/id/local-authority/38,Oxfordshire County Council,FOSTERING MAIN,5548,B*Fostering - Special Rates & Plus Amou,22/03/2016,3110073302,656,Redacted Personal Data
http://statistics.data.gov.uk/id/local-authority/38,Oxfordshire County Council,FOSTERING MAIN,5548,B*Fostering - Special Rates & Plus Amou,30/03/2016,3110076502,662.56,Redacted Personal Data
http://statistics.data.gov.uk/id/local-authority/38,Oxfordshire County Council,2 YEAR OLD FUNDING,5537,Payments to Other Establishments,08/03/2016,3110069917,"1,184.70",Anita Joines
http://statistics.data.gov.uk/id/local-authority/38,Oxfordshire County Council,MARSTON & N OX CC,4940,Other Services,07/03/2016,2200124381,900,Anita O'Dell
http://statistics.data.gov.uk/id/local-authority/38,Oxfordshire County Council,PD COMM SUPP BANB,5899,Adult Social Care - Direct Payments,22/03/2016,3110073690,647.48,Redacted Personal Data
http://statistics.data.gov.uk/id/local-authority/38,Oxfordshire County Council,S&A INTERVENTION GRT,5962,General and Support Service Expenditure,24/03/2016,3110075354,"5,000.00",Annabelles Day Nursery Ltd
http://statistics.data.gov.uk/id/local-authority/38,Oxfordshire County Council,2 YEAR OLD FUNDING,5537,Payments to Other Establishments,08/03/2016,3110069918,"1,529.55",Annabelles Nursery
http://statistics.data.gov.uk/id/local-authority/38,Oxfordshire County Council,CSB - BANBURY,5899,Adult Social Care - Direct Payments,22/03/2016,3110073960,"2,848.00",Redacted Personal Data
http://statistics.data.gov.uk/id/local-authority/38,Oxfordshire County Council,FOSTERING MAIN,5552,B*Fostering - Retainer Fee,02/03/2016,3110066572,836,Redacted Personal Data
http://statistics.data.gov.uk/id/local-authority/38,Oxfordshire County Council,FOSTERING MAIN,5552,B*Fostering - Retainer Fee,16/03/2016,3110071754,836,Redacted Personal Data
http://statistics.data.gov.uk/id/local-authority/38,Oxfordshire County Council,FOSTERING MAIN,5542,B*Payments to carers,22/03/2016,3110073251,836,Redacted Personal Data
http://statistics.data.gov.uk/id/local-authority/38,Oxfordshire County Council,FOSTERING MAIN,5542,B*Payments to carers,30/03/2016,3110076377,840,Redacted Personal Data
http://statistics.data.gov.uk/id/local-authority/38,Oxfordshire County Council,SERVICE MANAGER PLAC,4940,Other Services,09/03/2016,3110068245,886,Redacted Personal Data
http://statistics.data.gov.uk/id/local-authority/38,Oxfordshire County Council,REPROGRAPHICS UNIT,5666,Hire of Admin Equipment,01/03/2016,2200120764,840,ANNODATA BUSINESS COMMUNICATIONS
http://statistics.data.gov.uk/id/local-authority/38,Oxfordshire County Council,REPROGRAPHICS UNIT,5666,Hire of Admin Equipment,30/03/2016,2200139102,"4,599.00",ANNODATA BUSINESS COMMUNICATIONS
http://statistics.data.gov.uk/id/local-authority/38,Oxfordshire County Council,CENTRAL PRINTING,5666,Hire of Admin Equipment,01/03/2016,2200134497,"5,545.21",ANNODATA BUSINESS COMMUNICATIONS
http://statistics.data.gov.uk/id/local-authority/38,Oxfordshire County Council,REPROGRAPHICS UNIT,4531,Materials,30/03/2016,2200138617,647.45,ANTALIS LTD
http://statistics.data.gov.uk/id/local-authority/38,Oxfordshire County Council,PD COMM SUPP AB'DON,5899,Adult Social Care - Direct Payments,22/03/2016,3110073892,"1,367.12",Redacted Personal Data
http://statistics.data.gov.uk/id/local-authority/38,Oxfordshire County Council,LD CLIENTS SOUTH,5899,Adult Social Care - Direct Payments,22/03/2016,3110073702,"3,337.60",Redacted Personal Data
http://statistics.data.gov.uk/id/local-authority/38,Oxfordshire County Council,CSB - BANBURY,5899,Adult Social Care - Direct Payments,22/03/2016,3110074140,"4,944.00",Redacted Personal Data
http://statistics.data.gov.uk/id/local-authority/38,Oxfordshire County Council,LD CLIENTS SOUTH,5899,Adult Social Care - Direct Payments,22/03/2016,3110074220,768,Redacted Personal Data
http://statistics.data.gov.uk/id/local-authority/38,Oxfordshire County Council,MH COMMUNITY SUP'T,5691,,02/03/2016,3110066754,"2,009.96",Redacted Personal Data
http://statistics.data.gov.uk/id/local-authority/38,Oxfordshire County Council,MH COMMUNITY SUP'T,5691,,30/03/2016,3110077036,"2,289.88",Redacted Personal Data
http://statistics.data.gov.uk/id/local-authority/38,Oxfordshire County Council,LIBRARY COLLECTIONS,4407,Equipment,01/03/2016,2200120665,694.3,Apex Linvar
http://statistics.data.gov.uk/id/local-authority/38,Oxfordshire County Council,LIBRARY COLLECTIONS,4407,Equipment,29/03/2016,3110075534,694.3,Apex Linvar
http://statistics.data.gov.uk/id/local-authority/38,Oxfordshire County Council,DRAINAGE REPAIRS,3860,Alterations To Buildings,16/03/2016,2200130373,"4,125.00",AQUASENTRY
http://statistics.data.gov.uk/id/local-authority/38,Oxfordshire County Council,UASC 16&17,5549,B*Fostering Allowance - Regulation 38,02/03/2016,3110066522,515,Redacted Personal Data
http://statistics.data.gov.uk/id/local-authority/38,Oxfordshire County Council,UASC 16&17,5549,B*Fostering Allowance - Regulation 38,09/03/2016,3110068129,515,Redacted Personal Data
http://statistics.data.gov.uk/id/local-authority/38,Oxfordshire County Council,UASC 16&17,5549,B*Fostering Allowance - Regulation 38,16/03/2016,3110071705,515,Redacted Personal Data
http://statistics.data.gov.uk/id/local-authority/38,Oxfordshire County Council,UASC 16&17,5549,B*Fostering Allowance - Regulation 38,22/03/2016,3110073201,515,Redacted Personal Data
http://statistics.data.gov.uk/id/local-authority/38,Oxfordshire County Council,UASC 16&17,5549,B*Fostering Allowance - Regulation 38,30/03/2016,3110076260,520.15,Redacted Personal Data
http://statistics.data.gov.uk/id/local-authority/38,Oxfordshire County Council,PD RES PURCH - CITY,5687,,10/03/2016,3110070688,"2,604.00",ARGYLES NURSING HOME
http://statistics.data.gov.uk/id/local-authority/38,Oxfordshire County Council,ContrO ASC Payments Control Account,5899,Adult Social Care - Direct Payments,29/03/2016,3110075526,"4,731.44",Redacted Personal Data
http://statistics.data.gov.uk/id/local-authority/38,Oxfordshire County Council,TM MISCELLANEOUS,5668,Technical and Professional Consultant F,09/03/2016,2200124241,"-6,250.00",ARLINGCLOSE LTD
http://statistics.data.gov.uk/id/local-authority/38,Oxfordshire County Council,TM MISCELLANEOUS,5668,Technical and Professional Consultant F,09/03/2016,2200124712,"-6,250.00",ARLINGCLOSE LTD
http://statistics.data.gov.uk/id/local-authority/38,Oxfordshire County Council,TM MISCELLANEOUS,5668,Technical and Professional Consultant F,09/03/2016,2200124407,"6,250.00",ARLINGCLOSE LTD
http://statistics.data.gov.uk/id/local-authority/38,Oxfordshire County Council,TM MISCELLANEOUS,5668,Technical and Professional Consultant F,10/03/2016,2200125068,"6,250.00",ARLINGCLOSE LTD
http://statistics.data.gov.uk/id/local-authority/38,Oxfordshire County Council,BUS SUBSIDY,5781,Payments to Transport Operators,31/03/2016,3500016446,722.33,ARRIVA THE SHIRES LIMITED
http://statistics.data.gov.uk/id/local-authority/38,Oxfordshire County Council,CONCESSIONARY FARES,5781,Payments to Transport Operators,11/03/2016,2200129133,"27,186.07",Arriva The Shires Ltd
http://statistics.data.gov.uk/id/local-authority/38,Oxfordshire County Council,SM DISABILITIES,5899,Adult Social Care - Direct Payments,29/03/2016,3110075566,846.3,Redacted Personal Data
http://statistics.data.gov.uk/id/local-authority/38,Oxfordshire County Council,2 YEAR OLD FUNDING,5537,Payments to Other Establishments,08/03/2016,3110069919,611.82,Ascott-under-Wychwood Pre-School
http://statistics.data.gov.uk/id/local-authority/38,Oxfordshire County Council,SEN TRANSPORT,5227,Other Transport Arrangements,15/03/2016,3110071350,640,Ash Cars (UK) Ltd
http://statistics.data.gov.uk/id/local-authority/38,Oxfordshire County Council,SEN TRANSPORT,5227,Other Transport Arrangements,15/03/2016,3110071353,672,Ash Cars (UK) Ltd
http://statistics.data.gov.uk/id/local-authority/38,Oxfordshire County Council,SEN TRANSPORT,5227,Other Transport Arrangements,15/03/2016,3110071346,720,Ash Cars (UK) Ltd
http://statistics.data.gov.uk/id/local-authority/38,Oxfordshire County Council,KINGFISHER,4330,Transport to School Activities,16/03/2016,3110071962,"1,000.00",Ash Cars (UK) Ltd
http://statistics.data.gov.uk/id/local-authority/38,Oxfordshire County Council,SEN TRANSPORT,4330,Transport to School Activities,15/03/2016,3110071336,"1,280.00",Ash Cars (UK) Ltd
http://statistics.data.gov.uk/id/local-authority/38,Oxfordshire County Council,MEADOWBROOK TRANSPT,4330,Transport to School Activities,15/03/2016,3110071360,"1,435.00",Ash Cars (UK) Ltd
http://statistics.data.gov.uk/id/local-authority/38,Oxfordshire County Council,SEN TRANSPORT,4330,Transport to School Activities,15/03/2016,3110071348,"1,600.00",Ash Cars (UK) Ltd
http://statistics.data.gov.uk/id/local-authority/38,Oxfordshire County Council,TRANSPORT COSTS,4330,Transport to School Activities,16/03/2016,3110071960,"1,615.00",Ash Cars (UK) Ltd
http://statistics.data.gov.uk/id/local-authority/38,Oxfordshire County Council,SEN TRANSPORT,4330,Transport to School Activities,15/03/2016,3110071329,"2,000.00",Ash Cars (UK) Ltd
http://statistics.data.gov.uk/id/local-authority/38,Oxfordshire County Council,MEADOWBROOK TRANSPT,4330,Transport to School Activities,15/03/2016,3110071361,"2,100.00",Ash Cars (UK) Ltd
http://statistics.data.gov.uk/id/local-authority/38,Oxfordshire County Council,SEN TRANSPORT,4330,Transport to School Activities,15/03/2016,3110071351,"2,176.00",Ash Cars (UK) Ltd
http://statistics.data.gov.uk/id/local-authority/38,Oxfordshire County Council,SEN TRANSPORT,4330,Transport to School Activities,15/03/2016,3110071338,"2,400.00",Ash Cars (UK) Ltd
http://statistics.data.gov.uk/id/local-authority/38,Oxfordshire County Council,SEN TRANSPORT,4330,Transport to School Activities,15/03/2016,3110071345,"2,400.00",Ash Cars (UK) Ltd
http://statistics.data.gov.uk/id/local-authority/38,Oxfordshire County Council,SEN TRANSPORT,4330,Transport to School Activities,15/03/2016,3110071355,"2,620.00",Ash Cars (UK) Ltd
http://statistics.data.gov.uk/id/local-authority/38,Oxfordshire County Council,POST 16 SEN,4330,Transport to School Activities,15/03/2016,3110071356,"2,996.00",Ash Cars (UK) Ltd
http://statistics.data.gov.uk/id/local-authority/38,Oxfordshire County Council,SEN TRANSPORT,4330,Transport to School Activities,15/03/2016,3110071341,"3,168.00",Ash Cars (UK) Ltd
http://statistics.data.gov.uk/id/local-authority/38,Oxfordshire County Council,SEN TRANSPORT,4330,Transport to School Activities,15/03/2016,3110071333,"4,153.28",Ash Cars (UK) Ltd
http://statistics.data.gov.uk/id/local-authority/38,Oxfordshire County Council,MH COMMUNITY SUP'T,5691,,02/03/2016,3110066747,"1,922.00",Ashamber Homes Limited
http://statistics.data.gov.uk/id/local-authority/38,Oxfordshire County Council,PD RES PURCH - SOUTH,5686,,10/03/2016,3110070807,"20,441.54",Ashamber Homes Limited
http://statistics.data.gov.uk/id/local-authority/38,Oxfordshire County Council,CSB - DIDCOT,5689,,14/03/2016,2200132770,518,Ashamber Homes Ltd
http://statistics.data.gov.uk/id/local-authority/38,Oxfordshire County Council,LD CLIENTS NORTH,5686,,10/03/2016,3110070828,"6,379.14",Ashgrange House
http://statistics.data.gov.uk/id/local-authority/38,Oxfordshire County Council,LD CLIENTS SOUTH,5899,Adult Social Care - Direct Payments,22/03/2016,3110073571,"3,339.32",Redacted Personal Data
http://statistics.data.gov.uk/id/local-authority/38,Oxfordshire County Council,LIBRARY COLLECTIONS,4539,"Books, DVDs and CDs",16/03/2016,3110075168,510.41,ASKEWS & HOLTS LIBRARY SERVICES LTD
http://statistics.data.gov.uk/id/local-authority/38,Oxfordshire County Council,LIBRARY COLLECTIONS,4539,"Books, DVDs and CDs",11/03/2016,3110071223,519.31,ASKEWS & HOLTS LIBRARY SERVICES LTD
http://statistics.data.gov.uk/id/local-authority/38,Oxfordshire County Council,LIBRARY COLLECTIONS,4539,"Books, DVDs and CDs",15/03/2016,3110072318,523.99,ASKEWS & HOLTS LIBRARY SERVICES LTD
http://statistics.data.gov.uk/id/local-authority/38,Oxfordshire County Council,LIBRARY COLLECTIONS,4539,"Books, DVDs and CDs",16/03/2016,3110075200,531.55,ASKEWS & HOLTS LIBRARY SERVICES LTD
http://statistics.data.gov.uk/id/local-authority/38,Oxfordshire County Council,LIBRARY COLLECTIONS,4539,"Books, DVDs and CDs",16/03/2016,3110075199,539.72,ASKEWS & HOLTS LIBRARY SERVICES LTD
http://statistics.data.gov.uk/id/local-authority/38,Oxfordshire County Council,LIBRARY COLLECTIONS,4539,"Books, DVDs and CDs",07/03/2016,3110067592,540.42,ASKEWS & HOLTS LIBRARY SERVICES LTD
http://statistics.data.gov.uk/id/local-authority/38,Oxfordshire County Council,LIBRARY COLLECTIONS,4539,"Books, DVDs and CDs",16/03/2016,3110075201,549.12,ASKEWS & HOLTS LIBRARY SERVICES LTD
http://statistics.data.gov.uk/id/local-authority/38,Oxfordshire County Council,LIBRARY COLLECTIONS,4539,"Books, DVDs and CDs",16/03/2016,3110075181,557.98,ASKEWS & HOLTS LIBRARY SERVICES LTD
http://statistics.data.gov.uk/id/local-authority/38,Oxfordshire County Council,LIBRARY COLLECTIONS,4539,"Books, DVDs and CDs",07/03/2016,3110067580,572.86,ASKEWS & HOLTS LIBRARY SERVICES LTD
http://statistics.data.gov.uk/id/local-authority/38,Oxfordshire County Council,LIBRARY COLLECTIONS,4539,"Books, DVDs and CDs",16/03/2016,3110075183,606.59,ASKEWS & HOLTS LIBRARY SERVICES LTD
http://statistics.data.gov.uk/id/local-authority/38,Oxfordshire County Council,LIBRARY COLLECTIONS,4539,"Books, DVDs and CDs",11/03/2016,3110071198,660.99,ASKEWS & HOLTS LIBRARY SERVICES LTD
http://statistics.data.gov.uk/id/local-authority/38,Oxfordshire County Council,LIBRARY COLLECTIONS,4539,"Books, DVDs and CDs",11/03/2016,3110071224,675.22,ASKEWS & HOLTS LIBRARY SERVICES LTD
http://statistics.data.gov.uk/id/local-authority/38,Oxfordshire County Council,LIBRARY COLLECTIONS,4539,"Books, DVDs and CDs",14/03/2016,3110072171,705.81,ASKEWS & HOLTS LIBRARY SERVICES LTD
http://statistics.data.gov.uk/id/local-authority/38,Oxfordshire County Council,LIBRARY COLLECTIONS,4539,"Books, DVDs and CDs",16/03/2016,3110072382,715.96,ASKEWS & HOLTS LIBRARY SERVICES LTD
http://statistics.data.gov.uk/id/local-authority/38,Oxfordshire County Council,LIBRARY COLLECTIONS,4539,"Books, DVDs and CDs",14/03/2016,3110072129,723.78,ASKEWS & HOLTS LIBRARY SERVICES LTD
http://statistics.data.gov.uk/id/local-authority/38,Oxfordshire County Council,LIBRARY COLLECTIONS,4539,"Books, DVDs and CDs",16/03/2016,3110072345,727.17,ASKEWS & HOLTS LIBRARY SERVICES LTD
http://statistics.data.gov.uk/id/local-authority/38,Oxfordshire County Council,LIBRARY COLLECTIONS,4539,"Books, DVDs and CDs",16/03/2016,3110072338,733.83,ASKEWS & HOLTS LIBRARY SERVICES LTD
http://statistics.data.gov.uk/id/local-authority/38,Oxfordshire County Council,LIBRARY COLLECTIONS,4539,"Books, DVDs and CDs",07/03/2016,3110067589,738.08,ASKEWS & HOLTS LIBRARY SERVICES LTD
http://statistics.data.gov.uk/id/local-authority/38,Oxfordshire County Council,LIBRARY COLLECTIONS,4539,"Books, DVDs and CDs",11/03/2016,3110071222,746.31,ASKEWS & HOLTS LIBRARY SERVICES LTD
http://statistics.data.gov.uk/id/local-authority/38,Oxfordshire County Council,LIBRARY COLLECTIONS,4539,"Books, DVDs and CDs",16/03/2016,3110072341,769.49,ASKEWS & HOLTS LIBRARY SERVICES LTD
http://statistics.data.gov.uk/id/local-authority/38,Oxfordshire County Council,LIBRARY COLLECTIONS,4539,"Books, DVDs and CDs",14/03/2016,3110072168,792.88,ASKEWS & HOLTS LIBRARY SERVICES LTD
http://statistics.data.gov.uk/id/local-authority/38,Oxfordshire County Council,LIBRARY COLLECTIONS,4539,"Books, DVDs and CDs",11/03/2016,3110071207,836.41,ASKEWS & HOLTS LIBRARY SERVICES LTD
http://statistics.data.gov.uk/id/local-authority/38,Oxfordshire County Council,LIBRARY COLLECTIONS,4539,"Books, DVDs and CDs",07/03/2016,3110067563,848.27,ASKEWS & HOLTS LIBRARY SERVICES LTD
http://statistics.data.gov.uk/id/local-authority/38,Oxfordshire County Council,LIBRARY COLLECTIONS,4539,"Books, DVDs and CDs",16/03/2016,3110072351,865.67,ASKEWS & HOLTS LIBRARY SERVICES LTD
http://statistics.data.gov.uk/id/local-authority/38,Oxfordshire County Council,LIBRARY COLLECTIONS,4539,"Books, DVDs and CDs",07/03/2016,3110067577,890.38,ASKEWS & HOLTS LIBRARY SERVICES LTD
http://statistics.data.gov.uk/id/local-authority/38,Oxfordshire County Council,LIBRARY COLLECTIONS,4539,"Books, DVDs and CDs",14/03/2016,3110072145,910.11,ASKEWS & HOLTS LIBRARY SERVICES LTD
http://statistics.data.gov.uk/id/local-authority/38,Oxfordshire County Council,LIBRARY COLLECTIONS,4539,"Books, DVDs and CDs",14/03/2016,3110072164,924.15,ASKEWS & HOLTS LIBRARY SERVICES LTD
http://statistics.data.gov.uk/id/local-authority/38,Oxfordshire County Council,LIBRARY COLLECTIONS,4539,"Books, DVDs and CDs",16/03/2016,3110072380,928.54,ASKEWS & HOLTS LIBRARY SERVICES LTD
http://statistics.data.gov.uk/id/local-authority/38,Oxfordshire County Council,LIBRARY COLLECTIONS,4539,"Books, DVDs and CDs",14/03/2016,3110072144,939.91,ASKEWS & HOLTS LIBRARY SERVICES LTD
http://statistics.data.gov.uk/id/local-authority/38,Oxfordshire County Council,LIBRARY COLLECTIONS,4539,"Books, DVDs and CDs",14/03/2016,3110072166,947.67,ASKEWS & HOLTS LIBRARY SERVICES LTD
http://statistics.data.gov.uk/id/local-authority/38,Oxfordshire County Council,LIBRARY COLLECTIONS,4539,"Books, DVDs and CDs",07/03/2016,3110067553,954.9,ASKEWS & HOLTS LIBRARY SERVICES LTD
http://statistics.data.gov.uk/id/local-authority/38,Oxfordshire County Council,LIBRARY COLLECTIONS,4539,"Books, DVDs and CDs",16/03/2016,3110072372,964.72,ASKEWS & HOLTS LIBRARY SERVICES LTD
http://statistics.data.gov.uk/id/local-authority/38,Oxfordshire County Council,LIBRARY COLLECTIONS,4539,"Books, DVDs and CDs",16/03/2016,3110075202,970.25,ASKEWS & HOLTS LIBRARY SERVICES LTD
http://statistics.data.gov.uk/id/local-authority/38,Oxfordshire County Council,LIBRARY COLLECTIONS,4539,"Books, DVDs and CDs",15/03/2016,3110072324,980.87,ASKEWS & HOLTS LIBRARY SERVICES LTD
http://statistics.data.gov.uk/id/local-authority/38,Oxfordshire County Council,LIBRARY COLLECTIONS,4539,"Books, DVDs and CDs",16/03/2016,3110072381,981.95,ASKEWS & HOLTS LIBRARY SERVICES LTD
http://statistics.data.gov.uk/id/local-authority/38,Oxfordshire County Council,LIBRARY COLLECTIONS,4539,"Books, DVDs and CDs",16/03/2016,3110072371,999.98,ASKEWS & HOLTS LIBRARY SERVICES LTD
http://statistics.data.gov.uk/id/local-authority/38,Oxfordshire County Council,LIBRARY COLLECTIONS,4539,"Books, DVDs and CDs",07/03/2016,3110067547,"1,002.39",ASKEWS & HOLTS LIBRARY SERVICES LTD
http://statistics.data.gov.uk/id/local-authority/38,Oxfordshire County Council,LIBRARY COLLECTIONS,4539,"Books, DVDs and CDs",07/03/2016,3110067593,"1,002.47",ASKEWS & HOLTS LIBRARY SERVICES LTD
http://statistics.data.gov.uk/id/local-authority/38,Oxfordshire County Council,LIBRARY COLLECTIONS,4539,"Books, DVDs and CDs",21/03/2016,3110072883,"1,004.29",ASKEWS & HOLTS LIBRARY SERVICES LTD
http://statistics.data.gov.uk/id/local-authority/38,Oxfordshire County Council,LIBRARY COLLECTIONS,4539,"Books, DVDs and CDs",16/03/2016,3110075157,"1,019.60",ASKEWS & HOLTS LIBRARY SERVICES LTD
http://statistics.data.gov.uk/id/local-authority/38,Oxfordshire County Council,LIBRARY COLLECTIONS,4539,"Books, DVDs and CDs",15/03/2016,3110072302,"1,033.75",ASKEWS & HOLTS LIBRARY SERVICES LTD
http://statistics.data.gov.uk/id/local-authority/38,Oxfordshire County Council,LIBRARY COLLECTIONS,4539,"Books, DVDs and CDs",16/03/2016,3110075162,"1,045.30",ASKEWS & HOLTS LIBRARY SERVICES LTD
http://statistics.data.gov.uk/id/local-authority/38,Oxfordshire County Council,LIBRARY COLLECTIONS,4539,"Books, DVDs and CDs",11/03/2016,3110071194,"1,056.09",ASKEWS & HOLTS LIBRARY SERVICES LTD
http://statistics.data.gov.uk/id/local-authority/38,Oxfordshire County Council,LIBRARY COLLECTIONS,4539,"Books, DVDs and CDs",14/03/2016,3110072169,"1,059.80",ASKEWS & HOLTS LIBRARY SERVICES LTD
http://statistics.data.gov.uk/id/local-authority/38,Oxfordshire County Council,LIBRARY COLLECTIONS,4539,"Books, DVDs and CDs",11/03/2016,3110071140,"1,081.42",ASKEWS & HOLTS LIBRARY SERVICES LTD
http://statistics.data.gov.uk/id/local-authority/38,Oxfordshire County Council,LIBRARY COLLECTIONS,4539,"Books, DVDs and CDs",16/03/2016,3110072373,"1,087.81",ASKEWS & HOLTS LIBRARY SERVICES LTD
http://statistics.data.gov.uk/id/local-authority/38,Oxfordshire County Council,LIBRARY COLLECTIONS,4539,"Books, DVDs and CDs",07/03/2016,3110067551,"1,090.79",ASKEWS & HOLTS LIBRARY SERVICES LTD
http://statistics.data.gov.uk/id/local-authority/38,Oxfordshire County Council,LIBRARY COLLECTIONS,4539,"Books, DVDs and CDs",07/03/2016,3110067548,"1,091.50",ASKEWS & HOLTS LIBRARY SERVICES LTD
http://statistics.data.gov.uk/id/local-authority/38,Oxfordshire County Council,LIBRARY COLLECTIONS,4539,"Books, DVDs and CDs",15/03/2016,3110072300,"1,091.64",ASKEWS & HOLTS LIBRARY SERVICES LTD
http://statistics.data.gov.uk/id/local-authority/38,Oxfordshire County Council,LIBRARY COLLECTIONS,4539,"Books, DVDs and CDs",14/03/2016,3110072148,"1,097.69",ASKEWS & HOLTS LIBRARY SERVICES LTD
http://statistics.data.gov.uk/id/local-authority/38,Oxfordshire County Council,LIBRARY COLLECTIONS,4539,"Books, DVDs and CDs",16/03/2016,3110075185,"1,122.93",ASKEWS & HOLTS LIBRARY SERVICES LTD
http://statistics.data.gov.uk/id/local-authority/38,Oxfordshire County Council,LIBRARY COLLECTIONS,4539,"Books, DVDs and CDs",07/03/2016,3110067562,"1,127.84",ASKEWS & HOLTS LIBRARY SERVICES LTD
http://statistics.data.gov.uk/id/local-authority/38,Oxfordshire County Council,LIBRARY COLLECTIONS,4539,"Books, DVDs and CDs",15/03/2016,3110072327,"1,130.23",ASKEWS & HOLTS LIBRARY SERVICES LTD
http://statistics.data.gov.uk/id/local-authority/38,Oxfordshire County Council,LIBRARY COLLECTIONS,4539,"Books, DVDs and CDs",15/03/2016,3110072332,"1,130.59",ASKEWS & HOLTS LIBRARY SERVICES LTD
http://statistics.data.gov.uk/id/local-authority/38,Oxfordshire County Council,LIBRARY COLLECTIONS,4539,"Books, DVDs and CDs",07/03/2016,3110067550,"1,133.53",ASKEWS & HOLTS LIBRARY SERVICES LTD
http://statistics.data.gov.uk/id/local-authority/38,Oxfordshire County Council,LIBRARY COLLECTIONS,4539,"Books, DVDs and CDs",15/03/2016,3110072311,"1,154.64",ASKEWS & HOLTS LIBRARY SERVICES LTD
http://statistics.data.gov.uk/id/local-authority/38,Oxfordshire County Council,LIBRARY COLLECTIONS,4539,"Books, DVDs and CDs",16/03/2016,3110072353,"1,168.73",ASKEWS & HOLTS LIBRARY SERVICES LTD
http://statistics.data.gov.uk/id/local-authority/38,Oxfordshire County Council,LIBRARY COLLECTIONS,4539,"Books, DVDs and CDs",14/03/2016,3110072165,"1,169.20",ASKEWS & HOLTS LIBRARY SERVICES LTD
http://statistics.data.gov.uk/id/local-authority/38,Oxfordshire County Council,LIBRARY COLLECTIONS,4539,"Books, DVDs and CDs",15/03/2016,3110072334,"1,170.86",ASKEWS & HOLTS LIBRARY SERVICES LTD
http://statistics.data.gov.uk/id/local-authority/38,Oxfordshire County Council,LIBRARY COLLECTIONS,4539,"Books, DVDs and CDs",14/03/2016,3110072170,"1,173.88",ASKEWS & HOLTS LIBRARY SERVICES LTD
http://statistics.data.gov.uk/id/local-authority/38,Oxfordshire County Council,LIBRARY COLLECTIONS,4539,"Books, DVDs and CDs",16/03/2016,3110072377,"1,173.95",ASKEWS & HOLTS LIBRARY SERVICES LTD
http://statistics.data.gov.uk/id/local-authority/38,Oxfordshire County Council,LIBRARY COLLECTIONS,4539,"Books, DVDs and CDs",14/03/2016,3110072146,"1,175.12",ASKEWS & HOLTS LIBRARY SERVICES LTD
http://statistics.data.gov.uk/id/local-authority/38,Oxfordshire County Council,LIBRARY COLLECTIONS,4539,"Books, DVDs and CDs",15/03/2016,3110072323,"1,181.88",ASKEWS & HOLTS LIBRARY SERVICES LTD
http://statistics.data.gov.uk/id/local-authority/38,Oxfordshire County Council,LIBRARY COLLECTIONS,4539,"Books, DVDs and CDs",16/03/2016,3110072354,"1,189.91",ASKEWS & HOLTS LIBRARY SERVICES LTD
http://statistics.data.gov.uk/id/local-authority/38,Oxfordshire County Council,LIBRARY COLLECTIONS,4539,"Books, DVDs and CDs",16/03/2016,3110072355,"1,196.31",ASKEWS & HOLTS LIBRARY SERVICES LTD
http://statistics.data.gov.uk/id/local-authority/38,Oxfordshire County Council,LIBRARY COLLECTIONS,4539,"Books, DVDs and CDs",07/03/2016,3110067567,"1,196.32",ASKEWS & HOLTS LIBRARY SERVICES LTD
http://statistics.data.gov.uk/id/local-authority/38,Oxfordshire County Council,LIBRARY COLLECTIONS,4539,"Books, DVDs and CDs",16/03/2016,3110075179,"1,202.17",ASKEWS & HOLTS LIBRARY SERVICES LTD
http://statistics.data.gov.uk/id/local-authority/38,Oxfordshire County Council,LIBRARY COLLECTIONS,4539,"Books, DVDs and CDs",15/03/2016,3110072321,"1,205.62",ASKEWS & HOLTS LIBRARY SERVICES LTD
http://statistics.data.gov.uk/id/local-authority/38,Oxfordshire County Council,LIBRARY COLLECTIONS,4539,"Books, DVDs and CDs",07/03/2016,3110067559,"1,222.37",ASKEWS & HOLTS LIBRARY SERVICES LTD
http://statistics.data.gov.uk/id/local-authority/38,Oxfordshire County Council,LIBRARY COLLECTIONS,4539,"Books, DVDs and CDs",16/03/2016,3110072379,"1,236.77",ASKEWS & HOLTS LIBRARY SERVICES LTD
http://statistics.data.gov.uk/id/local-authority/38,Oxfordshire County Council,LIBRARY COLLECTIONS,4539,"Books, DVDs and CDs",07/03/2016,3110067573,"1,241.14",ASKEWS & HOLTS LIBRARY SERVICES LTD
http://statistics.data.gov.uk/id/local-authority/38,Oxfordshire County Council,LIBRARY COLLECTIONS,4539,"Books, DVDs and CDs",16/03/2016,3110072383,"1,250.20",ASKEWS & HOLTS LIBRARY SERVICES LTD
http://statistics.data.gov.uk/id/local-authority/38,Oxfordshire County Council,LIBRARY COLLECTIONS,4539,"Books, DVDs and CDs",15/03/2016,3110072299,"1,257.16",ASKEWS & HOLTS LIBRARY SERVICES LTD
http://statistics.data.gov.uk/id/local-authority/38,Oxfordshire County Council,LIBRARY COLLECTIONS,4539,"Books, DVDs and CDs",16/03/2016,3110072344,"1,282.25",ASKEWS & HOLTS LIBRARY SERVICES LTD
http://statistics.data.gov.uk/id/local-authority/38,Oxfordshire County Council,LIBRARY COLLECTIONS,4539,"Books, DVDs and CDs",07/03/2016,3110067586,"1,286.80",ASKEWS & HOLTS LIBRARY SERVICES LTD
http://statistics.data.gov.uk/id/local-authority/38,Oxfordshire County Council,LIBRARY COLLECTIONS,4539,"Books, DVDs and CDs",07/03/2016,3110067556,"1,296.57",ASKEWS & HOLTS LIBRARY SERVICES LTD
http://statistics.data.gov.uk/id/local-authority/38,Oxfordshire County Council,LIBRARY COLLECTIONS,4539,"Books, DVDs and CDs",16/03/2016,3110072367,"1,298.92",ASKEWS & HOLTS LIBRARY SERVICES LTD
http://statistics.data.gov.uk/id/local-authority/38,Oxfordshire County Council,LIBRARY COLLECTIONS,4539,"Books, DVDs and CDs",16/03/2016,3110072340,"1,328.79",ASKEWS & HOLTS LIBRARY SERVICES LTD
http://statistics.data.gov.uk/id/local-authority/38,Oxfordshire County Council,LIBRARY COLLECTIONS,4539,"Books, DVDs and CDs",14/03/2016,3110072158,"1,339.19",ASKEWS & HOLTS LIBRARY SERVICES LTD
http://statistics.data.gov.uk/id/local-authority/38,Oxfordshire County Council,LIBRARY COLLECTIONS,4539,"Books, DVDs and CDs",15/03/2016,3110072284,"1,345.30",ASKEWS & HOLTS LIBRARY SERVICES LTD
http://statistics.data.gov.uk/id/local-authority/38,Oxfordshire County Council,LIBRARY COLLECTIONS,4539,"Books, DVDs and CDs",15/03/2016,3110072335,"1,350.50",ASKEWS & HOLTS LIBRARY SERVICES LTD
http://statistics.data.gov.uk/id/local-authority/38,Oxfordshire County Council,LIBRARY COLLECTIONS,4539,"Books, DVDs and CDs",15/03/2016,3110072326,"1,351.24",ASKEWS & HOLTS LIBRARY SERVICES LTD
http://statistics.data.gov.uk/id/local-authority/38,Oxfordshire County Council,LIBRARY COLLECTIONS,4539,"Books, DVDs and CDs",15/03/2016,3110072325,"1,352.68",ASKEWS & HOLTS LIBRARY SERVICES LTD
http://statistics.data.gov.uk/id/local-authority/38,Oxfordshire County Council,LIBRARY COLLECTIONS,4539,"Books, DVDs and CDs",15/03/2016,3110072310,"1,353.61",ASKEWS & HOLTS LIBRARY SERVICES LTD
http://statistics.data.gov.uk/id/local-authority/38,Oxfordshire County Council,LIBRARY COLLECTIONS,4539,"Books, DVDs and CDs",11/03/2016,3110071225,"1,374.53",ASKEWS & HOLTS LIBRARY SERVICES LTD
http://statistics.data.gov.uk/id/local-authority/38,Oxfordshire County Council,LIBRARY COLLECTIONS,4539,"Books, DVDs and CDs",11/03/2016,3110071196,"1,381.69",ASKEWS & HOLTS LIBRARY SERVICES LTD
http://statistics.data.gov.uk/id/local-authority/38,Oxfordshire County Council,LIBRARY COLLECTIONS,4539,"Books, DVDs and CDs",16/03/2016,3110072337,"1,403.61",ASKEWS & HOLTS LIBRARY SERVICES LTD
http://statistics.data.gov.uk/id/local-authority/38,Oxfordshire County Council,LIBRARY COLLECTIONS,4539,"Books, DVDs and CDs",16/03/2016,3110075171,"1,447.19",ASKEWS & HOLTS LIBRARY SERVICES LTD
http://statistics.data.gov.uk/id/local-authority/38,Oxfordshire County Council,LIBRARY COLLECTIONS,4539,"Books, DVDs and CDs",07/03/2016,3110067581,"1,468.75",ASKEWS & HOLTS LIBRARY SERVICES LTD
http://statistics.data.gov.uk/id/local-authority/38,Oxfordshire County Council,LIBRARY COLLECTIONS,4539,"Books, DVDs and CDs",07/03/2016,3110067578,"1,469.42",ASKEWS & HOLTS LIBRARY SERVICES LTD
http://statistics.data.gov.uk/id/local-authority/38,Oxfordshire County Council,LIBRARY COLLECTIONS,4539,"Books, DVDs and CDs",16/03/2016,3110075182,"1,471.09",ASKEWS & HOLTS LIBRARY SERVICES LTD
http://statistics.data.gov.uk/id/local-authority/38,Oxfordshire County Council,LIBRARY COLLECTIONS,4539,"Books, DVDs and CDs",07/03/2016,3110067566,"1,476.01",ASKEWS & HOLTS LIBRARY SERVICES LTD
http://statistics.data.gov.uk/id/local-authority/38,Oxfordshire County Council,LIBRARY COLLECTIONS,4539,"Books, DVDs and CDs",07/03/2016,3110067574,"1,497.90",ASKEWS & HOLTS LIBRARY SERVICES LTD
http://statistics.data.gov.uk/id/local-authority/38,Oxfordshire County Council,LIBRARY COLLECTIONS,4539,"Books, DVDs and CDs",16/03/2016,3110072363,"1,512.03",ASKEWS & HOLTS LIBRARY SERVICES LTD
http://statistics.data.gov.uk/id/local-authority/38,Oxfordshire County Council,LIBRARY COLLECTIONS,4539,"Books, DVDs and CDs",11/03/2016,3110071143,"1,534.64",ASKEWS & HOLTS LIBRARY SERVICES LTD
http://statistics.data.gov.uk/id/local-authority/38,Oxfordshire County Council,LIBRARY COLLECTIONS,4539,"Books, DVDs and CDs",16/03/2016,3110072346,"1,549.07",ASKEWS & HOLTS LIBRARY SERVICES LTD
http://statistics.data.gov.uk/id/local-authority/38,Oxfordshire County Council,LIBRARY COLLECTIONS,4539,"Books, DVDs and CDs",16/03/2016,3110072349,"1,610.96",ASKEWS & HOLTS LIBRARY SERVICES LTD
http://statistics.data.gov.uk/id/local-authority/38,Oxfordshire County Council,LIBRARY COLLECTIONS,4539,"Books, DVDs and CDs",11/03/2016,3110071152,"1,625.39",ASKEWS & HOLTS LIBRARY SERVICES LTD
http://statistics.data.gov.uk/id/local-authority/38,Oxfordshire County Council,LIBRARY COLLECTIONS,4539,"Books, DVDs and CDs",07/03/2016,3110067568,"1,652.57",ASKEWS & HOLTS LIBRARY SERVICES LTD
http://statistics.data.gov.uk/id/local-authority/38,Oxfordshire County Council,LIBRARY COLLECTIONS,4539,"Books, DVDs and CDs",11/03/2016,3110071149,"1,692.45",ASKEWS & HOLTS LIBRARY SERVICES LTD
http://statistics.data.gov.uk/id/local-authority/38,Oxfordshire County Council,LIBRARY COLLECTIONS,4539,"Books, DVDs and CDs",16/03/2016,3110075189,"1,861.99",ASKEWS & HOLTS LIBRARY SERVICES LTD
http://statistics.data.gov.uk/id/local-authority/38,Oxfordshire County Council,LD CLIENTS NORTH,5688,,10/03/2016,3110070993,"4,597.92",Aspirations (North West Adults)
http://statistics.data.gov.uk/id/local-authority/38,Oxfordshire County Council,ITS PROJECTS,4940,Other Services,02/03/2016,2200122886,900,ATKINS LIMITED
http://statistics.data.gov.uk/id/local-authority/38,Oxfordshire County Council,CAP CHRGES-PRIM SCHS,8004,Design Consultant,01/03/2016,2200137133,"2,986.50",ATKINS LIMITED
http://statistics.data.gov.uk/id/local-authority/38,Oxfordshire County Council,CAP CHRGES-PRIM SCHS,8004,Design Consultant,11/03/2016,2200128719,"3,703.09",ATKINS LIMITED
http://statistics.data.gov.uk/id/local-authority/38,Oxfordshire County Council,P&S OPERATIONAL REV,5668,Technical and Professional Consultant F,02/03/2016,2200122164,"6,606.00",ATKINS LIMITED
http://statistics.data.gov.uk/id/local-authority/38,Oxfordshire County Council,CHERWELL & WEST,5668,Technical and Professional Consultant F,17/03/2016,2200131246,"6,814.00",ATKINS LIMITED
http://statistics.data.gov.uk/id/local-authority/38,Oxfordshire County Council,OXFORD LOCALITY,4861,Hired and Contracted Services,08/03/2016,2200123967,"7,300.00",ATKINS LIMITED
http://statistics.data.gov.uk/id/local-authority/38,Oxfordshire County Council,OXFORD LOCALITY,4835,Management Consultant Fees,01/03/2016,2200125643,"14,705.00",ATKINS LIMITED
http://statistics.data.gov.uk/id/local-authority/38,Oxfordshire County Council,CHERWELL & WEST,5668,Technical and Professional Consultant F,10/03/2016,2200126065,"16,067.51",Atkins Limited
http://statistics.data.gov.uk/id/local-authority/38,Oxfordshire County Council,OXFORD LOCALITY,4835,Management Consultant Fees,01/03/2016,2200125635,"17,172.00",ATKINS LIMITED
http://statistics.data.gov.uk/id/local-authority/38,Oxfordshire County Council,CSB - ABINGDON,5899,Adult Social Care - Direct Payments,22/03/2016,3110074491,"2,911.45",Redacted Personal Data
http://statistics.data.gov.uk/id/local-authority/38,Oxfordshire County Council,LD CLIENTS NORTH,5688,,10/03/2016,3110070989,"13,575.78",Autism Care (Bedford) Ltd
http://statistics.data.gov.uk/id/local-authority/38,Oxfordshire County Council,LD CLIENTS NORTH,5686,,10/03/2016,3110070856,"24,870.81",AUTISM CARE (UK) LTD
http://statistics.data.gov.uk/id/local-authority/38,Oxfordshire County Council,MH COMMUNITY SUP'T,5691,,16/03/2016,3110071834,600,Autism Oxford
http://statistics.data.gov.uk/id/local-authority/38,Oxfordshire County Council,Find Your Voice 2015,4940,Other Services,11/03/2016,2200128784,"1,000.00",Autumn Neagle
http://statistics.data.gov.uk/id/local-authority/38,Oxfordshire County Council,CSB - CITY,5899,Adult Social Care - Direct Payments,22/03/2016,3110073864,"1,940.00",Redacted Personal Data
http://statistics.data.gov.uk/id/local-authority/38,Oxfordshire County Council,LD CLIENTS CITY,5687,,10/03/2016,3110070827,"12,807.43",Avondale Care Home
http://statistics.data.gov.uk/id/local-authority/38,Oxfordshire County Council,CSB - BANBURY,5689,,09/03/2016,3110069372,660.8,AVR (Oxon) Ltd
http://statistics.data.gov.uk/id/local-authority/38,Oxfordshire County Council,CSB - BANBURY,5689,,09/03/2016,3110069370,688.02,AVR (Oxon) Ltd
http://statistics.data.gov.uk/id/local-authority/38,Oxfordshire County Council,CSB - BANBURY,5689,,09/03/2016,3110069369,747.16,AVR (Oxon) Ltd
http://statistics.data.gov.uk/id/local-authority/38,Oxfordshire County Council,CSB - BANBURY,5689,,09/03/2016,3110069374,828.69,AVR (Oxon) Ltd
http://statistics.data.gov.uk/id/local-authority/38,Oxfordshire County Council,CSB - BANBURY,5689,,09/03/2016,3110069375,841.82,AVR (Oxon) Ltd
http://statistics.data.gov.uk/id/local-authority/38,Oxfordshire County Council,CSB - BANBURY,5689,,09/03/2016,3110069371,848.26,AVR (Oxon) Ltd
http://statistics.data.gov.uk/id/local-authority/38,Oxfordshire County Council,CSB - BANBURY,5689,,09/03/2016,3110069381,851.44,AVR (Oxon) Ltd
http://statistics.data.gov.uk/id/local-authority/38,Oxfordshire County Council,CSB - BANBURY,5689,,09/03/2016,3110069364,892.56,AVR (Oxon) Ltd
http://statistics.data.gov.uk/id/local-authority/38,Oxfordshire County Council,CSB - BANBURY,5689,,09/03/2016,3110069379,939.45,AVR (Oxon) Ltd
http://statistics.data.gov.uk/id/local-authority/38,Oxfordshire County Council,CSB - BANBURY,5689,,09/03/2016,3110069380,"1,024.86",AVR (Oxon) Ltd
http://statistics.data.gov.uk/id/local-authority/38,Oxfordshire County Council,CSB - BANBURY,5689,,09/03/2016,3110069368,"1,075.82",AVR (Oxon) Ltd
http://statistics.data.gov.uk/id/local-authority/38,Oxfordshire County Council,CSB - BANBURY,5689,,09/03/2016,3110069377,"1,122.83",AVR (Oxon) Ltd
http://statistics.data.gov.uk/id/local-authority/38,Oxfordshire County Council,CSB - BANBURY,5689,,09/03/2016,3110069363,"1,285.32",AVR (Oxon) Ltd
http://statistics.data.gov.uk/id/local-authority/38,Oxfordshire County Council,PDPB CONTCARE H SUPP,5691,,23/03/2016,3110075220,"1,629.00",AVR (Oxon) Ltd
http://statistics.data.gov.uk/id/local-authority/38,Oxfordshire County Council,PD COMM SUPP BANB,5689,,09/03/2016,3110069386,"1,645.35",AVR (Oxon) Ltd
http://statistics.data.gov.uk/id/local-authority/38,Oxfordshire County Council,CSB - BANBURY,5689,,09/03/2016,3110069383,"1,761.48",AVR (Oxon) Ltd
http://statistics.data.gov.uk/id/local-authority/38,Oxfordshire County Council,CSB - BANBURY,5689,,09/03/2016,3110069367,"1,965.22",AVR (Oxon) Ltd
http://statistics.data.gov.uk/id/local-authority/38,Oxfordshire County Council,PDPB CONTCARE H SUPP,5689,,09/03/2016,3110069385,"2,018.37",AVR (Oxon) Ltd
http://statistics.data.gov.uk/id/local-authority/38,Oxfordshire County Council,CSB - BANBURY,5689,,09/03/2016,3110069362,"2,252.37",AVR (Oxon) Ltd
http://statistics.data.gov.uk/id/local-authority/38,Oxfordshire County Council,OPPB CONTCARE H SUPP,5691,,30/03/2016,3110077105,"2,639.63",AVR (Oxon) Ltd
http://statistics.data.gov.uk/id/local-authority/38,Oxfordshire County Council,OPPB CONTCARE H SUPP,5689,,09/03/2016,3110069358,"3,642.80",AVR (Oxon) Ltd
http://statistics.data.gov.uk/id/local-authority/38,Oxfordshire County Council,MOTOR FLEET,3051,,01/03/2016,3110066759,"1,089.00",AWP Body Repairs
http://statistics.data.gov.uk/id/local-authority/38,Oxfordshire County Council,MOTOR FLEET,3051,,16/03/2016,3110072823,"1,216.04",AWP Body Repairs
http://statistics.data.gov.uk/id/local-authority/38,Oxfordshire County Council,Westgate project,4495,IT Software,30/03/2016,2200138759,800,AXIELL LTD
http://statistics.data.gov.uk/id/local-authority/38,Oxfordshire County Council,Lib ICT Supprt&Maint,4494,Purchase of IT Equipment,01/03/2016,2200120690,"1,174.00",AXIELL LTD
http://statistics.data.gov.uk/id/local-authority/38,Oxfordshire County Council,LD CLIENTS NORTH,5899,Adult Social Care - Direct Payments,22/03/2016,3110074244,"2,600.00",Redacted Personal Data
http://statistics.data.gov.uk/id/local-authority/38,Oxfordshire County Council,OPPB CONTCARE H SUPP,5691,,23/03/2016,3110075210,511.65,B CARERS LTD
http://statistics.data.gov.uk/id/local-authority/38,Oxfordshire County Council,OPPB CONTCARE H SUPP,5691,,23/03/2016,3110075218,511.65,B CARERS LTD
http://statistics.data.gov.uk/id/local-authority/38,Oxfordshire County Council,OPPB CONTCARE H SUPP,5691,,23/03/2016,3110075241,511.65,B CARERS LTD
http://statistics.data.gov.uk/id/local-authority/38,Oxfordshire County Council,OPPB CONTCARE H SUPP,5691,,30/03/2016,3110077043,511.65,B CARERS LTD
http://statistics.data.gov.uk/id/local-authority/38,Oxfordshire County Council,MH SPOT FUNDING,5686,,10/03/2016,3110070817,"5,314.29",B O'CONNOR T/A DUNRAVEN
http://statistics.data.gov.uk/id/local-authority/38,Oxfordshire County Council,Mockingbird,5549,B*Fostering Allowance - Regulation 38,16/03/2016,3110071685,540.86,Redacted Personal Data
http://statistics.data.gov.uk/id/local-authority/38,Oxfordshire County Council,FPT NORTH,5227,Other Transport Arrangements,22/03/2016,3110073179,561.95,Redacted Personal Data
http://statistics.data.gov.uk/id/local-authority/38,Oxfordshire County Council,Mockingbird,5549,B*Fostering Allowance - Regulation 38,30/03/2016,3110076203,619.7,Redacted Personal Data
http://statistics.data.gov.uk/id/local-authority/38,Oxfordshire County Council,Mockingbird,5549,B*Fostering Allowance - Regulation 38,02/03/2016,3110066501,640.72,Redacted Personal Data
http://statistics.data.gov.uk/id/local-authority/38,Oxfordshire County Council,Mockingbird,5394,Other Expenses,09/03/2016,3110068073,"1,089.05",Redacted Personal Data
http://statistics.data.gov.uk/id/local-authority/38,Oxfordshire County Council,LIBRARY COLLECTIONS,4539,"Books, DVDs and CDs",15/03/2016,2200130058,"1,650.00",Backpages Limited
http://statistics.data.gov.uk/id/local-authority/38,Oxfordshire County Council,CARE HOME SPOT SOUTH,5687,,10/03/2016,3110070673,"71,173.61",Badby Park Ltd
http://statistics.data.gov.uk/id/local-authority/38,Oxfordshire County Council,2 YEAR OLD FUNDING,5537,Payments to Other Establishments,08/03/2016,3110069921,"4,514.25",Badgemore Pre-School (PFSU)
http://statistics.data.gov.uk/id/local-authority/38,Oxfordshire County Council,MAINSTREAM-SECONDARY,4330,Transport to School Activities,21/03/2016,3110072950,"2,800.00",Bakers Commercial Services Ltd
http://statistics.data.gov.uk/id/local-authority/38,Oxfordshire County Council,MAINSTREAM-SECONDARY,4330,Transport to School Activities,21/03/2016,3110072951,"3,120.00",Bakers Commercial Services Ltd
http://statistics.data.gov.uk/id/local-authority/38,Oxfordshire County Council,MAINSTREAM-SECONDARY,4330,Transport to School Activities,21/03/2016,3110072952,"3,120.00",Bakers Commercial Services Ltd
http://statistics.data.gov.uk/id/local-authority/38,Oxfordshire County Council,MAINSTREAM-SECONDARY,4330,Transport to School Activities,21/03/2016,3110072953,"3,360.00",Bakers Commercial Services Ltd
http://statistics.data.gov.uk/id/local-authority/38,Oxfordshire County Council,COMM DRAWDOWN FUNDNG,8102,Payments to main contractor,15/03/2016,2200132486,"2,535.35",Balfour Beatty Civil Engineering Li
http://statistics.data.gov.uk/id/local-authority/38,Oxfordshire County Council,PROCUREMENT,4685,Clothing and Uniforms,08/03/2016,2200131983,"23,536.67",Ballyclare LHD Ltd
http://statistics.data.gov.uk/id/local-authority/38,Oxfordshire County Council,BICESTER HUB,5416,After School Activities,03/03/2016,2200123305,594.2,Banbury & District Comm Bus Project
http://statistics.data.gov.uk/id/local-authority/38,Oxfordshire County Council,BANBURY HUB,5416,After School Activities,01/03/2016,2200131184,"1,020.60",Banbury & District Comm Bus Project
http://statistics.data.gov.uk/id/local-authority/38,Oxfordshire County Council,CC NH SPOT OVER 65,5687,,10/03/2016,3110070623,"99,383.06",Banbury Heights Nursing Home
http://statistics.data.gov.uk/id/local-authority/38,Oxfordshire County Council,REPROGRAPHICS UNIT,4705,Printing,09/03/2016,2200126672,528,Banbury Litho Ltd
http://statistics.data.gov.uk/id/local-authority/38,Oxfordshire County Council,2 YEAR OLD FUNDING,5537,Payments to Other Establishments,08/03/2016,3110069923,"1,864.50",Banbury School Day Nurse
http://statistics.data.gov.uk/id/local-authority/38,Oxfordshire County Council,LD CLIENTS NORTH,5686,,10/03/2016,3110070821,"5,411.36",BANYA FAMILY PLACEMENT
http://statistics.data.gov.uk/id/local-authority/38,Oxfordshire County Council,CSB - BANBURY,5899,Adult Social Care - Direct Payments,22/03/2016,3110073637,"1,360.00",Redacted Personal Data
http://statistics.data.gov.uk/id/local-authority/38,Oxfordshire County Council,CSB - BANBURY,5899,Adult Social Care - Direct Payments,22/03/2016,3110073800,"1,172.00",Redacted Personal Data
http://statistics.data.gov.uk/id/local-authority/38,Oxfordshire County Council,CSB - BANBURY,5899,Adult Social Care - Direct Payments,22/03/2016,3110073852,"3,148.00",Redacted Personal Data
http://statistics.data.gov.uk/id/local-authority/38,Oxfordshire County Council,OPPB CONTCARE RNCC,5687,,10/03/2016,3110070599,"144,496.59",Barchester Healthcare Homes Ltd
http://statistics.data.gov.uk/id/local-authority/38,Oxfordshire County Council,LD CLIENTS NORTH,5899,Adult Social Care - Direct Payments,22/03/2016,3110073872,"2,261.00",Redacted Personal Data
http://statistics.data.gov.uk/id/local-authority/38,Oxfordshire County Council,KINGFISHER,4861,Hired and Contracted Services,04/03/2016,2200124021,"7,500.00",BARNARDO SERVICES LTD
http://statistics.data.gov.uk/id/local-authority/38,Oxfordshire County Council,RESOURCE CENTRES,5558,,01/03/2016,2200126614,"7,880.55",BARNARDO SERVICES LTD
http://statistics.data.gov.uk/id/local-authority/38,Oxfordshire County Council,RESOURCE CENTRES,5558,,01/03/2016,2200126615,"8,143.23",BARNARDO SERVICES LTD
http://statistics.data.gov.uk/id/local-authority/38,Oxfordshire County Council,MAINSTREAM-SECONDARY,4330,Transport to School Activities,11/03/2016,3110071052,"1,504.00",Barnes Coaches Ltd
http://statistics.data.gov.uk/id/local-authority/38,Oxfordshire County Council,MAINSTREAM-SECONDARY,4330,Transport to School Activities,11/03/2016,3110071054,"1,504.00",Barnes Coaches Ltd
http://statistics.data.gov.uk/id/local-authority/38,Oxfordshire County Council,MAINSTREAM-SECONDARY,4330,Transport to School Activities,11/03/2016,3110071053,"2,304.00",Barnes Coaches Ltd
http://statistics.data.gov.uk/id/local-authority/38,Oxfordshire County Council,MAINSTREAM-SECONDARY,4330,Transport to School Activities,11/03/2016,3110071049,"2,667.15",Barnes Coaches Ltd
http://statistics.data.gov.uk/id/local-authority/38,Oxfordshire County Council,MAINSTREAM-PRIMARY,4330,Transport to School Activities,11/03/2016,3110071048,"2,848.00",Barnes Coaches Ltd
http://statistics.data.gov.uk/id/local-authority/38,Oxfordshire County Council,MAINSTREAM-SECONDARY,4330,Transport to School Activities,03/03/2016,3110067326,"2,880.00",Barnes Coaches Ltd
http://statistics.data.gov.uk/id/local-authority/38,Oxfordshire County Council,MAINSTREAM-SECONDARY,4330,Transport to School Activities,11/03/2016,3110071047,"3,312.96",Barnes Coaches Ltd
http://statistics.data.gov.uk/id/local-authority/38,Oxfordshire County Council,MAINSTREAM-SECONDARY,4330,Transport to School Activities,11/03/2016,3110071050,"3,508.80",Barnes Coaches Ltd
http://statistics.data.gov.uk/id/local-authority/38,Oxfordshire County Council,MAINSTREAM-SECONDARY,4330,Transport to School Activities,11/03/2016,3110071051,"3,675.00",Barnes Coaches Ltd
http://statistics.data.gov.uk/id/local-authority/38,Oxfordshire County Council,LD CLIENTS NORTH,5899,Adult Social Care - Direct Payments,22/03/2016,3110073666,840.68,Redacted Personal Data
http://statistics.data.gov.uk/id/local-authority/38,Oxfordshire County Council,GP + PHARMACY SERVS,4934,,01/03/2016,3110066672,588,Barton Pharmacy
http://statistics.data.gov.uk/id/local-authority/38,Oxfordshire County Council,GP + PHARMACY SERVS,4934,,24/03/2016,3110073327,644,Barton Pharmacy
http://statistics.data.gov.uk/id/local-authority/38,Oxfordshire County Council,LD CLIENTS SOUTH,5686,,10/03/2016,3110070600,"10,523.43",Beacher Hall Nursing Centre
http://statistics.data.gov.uk/id/local-authority/38,Oxfordshire County Council,CARE HOME SPOT WEST,5687,,10/03/2016,3110070609,"46,290.11",Beech Court Nursing Home
http://statistics.data.gov.uk/id/local-authority/38,Oxfordshire County Council,CARE HOME SPOT VALE,5687,,10/03/2016,3110070628,"51,259.85",Beech Haven Care Home
http://statistics.data.gov.uk/id/local-authority/38,Oxfordshire County Council,2 YEAR OLD FUNDING,5537,Payments to Other Establishments,08/03/2016,3110069924,844.8,Begbroke Playgroup
http://statistics.data.gov.uk/id/local-authority/38,Oxfordshire County Council,SM DISABILITIES,5899,Adult Social Care - Direct Payments,29/03/2016,3110075565,"1,399.65",Redacted Personal Data
http://statistics.data.gov.uk/id/local-authority/38,Oxfordshire County Council,LD CLIENTS NORTH,5899,Adult Social Care - Direct Payments,22/03/2016,3110074322,756,Redacted Personal Data
http://statistics.data.gov.uk/id/local-authority/38,Oxfordshire County Council,SM DISABILITIES,5899,Adult Social Care - Direct Payments,29/03/2016,3110075631,564.2,Redacted Personal Data
http://statistics.data.gov.uk/id/local-authority/38,Oxfordshire County Council,2 YEAR OLD FUNDING,5537,Payments to Other Establishments,08/03/2016,3110069925,"2,837.85",Berinsfield Early Years Pre-School
http://statistics.data.gov.uk/id/local-authority/38,Oxfordshire County Council,,1162,VAT - Input Adjustment,03/03/2016,3110067260,"1,056.65",BERRYMANS LACE MAWER SOLICITORS
http://statistics.data.gov.uk/id/local-authority/38,Oxfordshire County Council,PD COMM SUPP DIDCOT,5899,Adult Social Care - Direct Payments,22/03/2016,3110074410,"3,428.00",Redacted Personal Data
http://statistics.data.gov.uk/id/local-authority/38,Oxfordshire County Council,CSB - ABINGDON,5899,Adult Social Care - Direct Payments,22/03/2016,3110074417,992,Redacted Personal Data
http://statistics.data.gov.uk/id/local-authority/38,Oxfordshire County Council,SEN DELEGATION,5537,Payments to Other Establishments,23/03/2016,3110075710,"3,340.84",Bicester Learning Academy
http://statistics.data.gov.uk/id/local-authority/38,Oxfordshire County Council,HN IN SEC SCHOOLS,5537,Payments to Other Establishments,24/03/2016,3110075367,"4,114.00",Bicester Learning Academy
http://statistics.data.gov.uk/id/local-authority/38,Oxfordshire County Council,CHC - CARE HOME PLAC,5689,,03/03/2016,2200124447,"3,309.60",Bicester PA and Care LLP
http://statistics.data.gov.uk/id/local-authority/38,Oxfordshire County Council,SM DISABILITIES,5899,Adult Social Care - Direct Payments,29/03/2016,3110075653,"1,128.40",Redacted Personal Data
http://statistics.data.gov.uk/id/local-authority/38,Oxfordshire County Council,CLOSED LANDFILL,4861,Hired and Contracted Services,16/03/2016,2200131899,"1,812.00",Biomarsh Environmental Ltd
http://statistics.data.gov.uk/id/local-authority/38,Oxfordshire County Council,CLOSED LANDFILL,4861,Hired and Contracted Services,01/03/2016,2200131351,"2,430.00",Biomarsh Environmental Ltd
http://statistics.data.gov.uk/id/local-authority/38,Oxfordshire County Council,CLOSED LANDFILL,4861,Hired and Contracted Services,16/03/2016,2200130734,"3,810.00",Biomarsh Environmental Ltd
http://statistics.data.gov.uk/id/local-authority/38,Oxfordshire County Council,2 YEAR OLD FUNDING,5537,Payments to Other Establishments,08/03/2016,3110069927,781.77,Bishopswood Day Nursery
http://statistics.data.gov.uk/id/local-authority/38,Oxfordshire County Council,SEN TRANSPORT,5227,Other Transport Arrangements,03/03/2016,3110067240,500,Black and White Cars T/A Banbury Ta
http://statistics.data.gov.uk/id/local-authority/38,Oxfordshire County Council,TRANSPORT COSTS,5227,Other Transport Arrangements,11/03/2016,3110071192,592,Black and White Cars T/A Banbury Ta
http://statistics.data.gov.uk/id/local-authority/38,Oxfordshire County Council,SEN TRANSPORT,4330,Transport to School Activities,03/03/2016,3110067264,630,Black and White Cars T/A Banbury Ta
http://statistics.data.gov.uk/id/local-authority/38,Oxfordshire County Council,SEN TRANSPORT,5227,Other Transport Arrangements,03/03/2016,3110067242,672.41,Black and White Cars T/A Banbury Ta
http://statistics.data.gov.uk/id/local-authority/38,Oxfordshire County Council,SEN TRANSPORT,5227,Other Transport Arrangements,03/03/2016,3110067232,683.33,Black and White Cars T/A Banbury Ta
http://statistics.data.gov.uk/id/local-authority/38,Oxfordshire County Council,SEN TRANSPORT,5227,Other Transport Arrangements,03/03/2016,3110067230,760,Black and White Cars T/A Banbury Ta
http://statistics.data.gov.uk/id/local-authority/38,Oxfordshire County Council,SEN TRANSPORT,5227,Other Transport Arrangements,11/03/2016,3110071156,805,Black and White Cars T/A Banbury Ta
http://statistics.data.gov.uk/id/local-authority/38,Oxfordshire County Council,SEN TRANSPORT,5227,Other Transport Arrangements,03/03/2016,3110067236,934,Black and White Cars T/A Banbury Ta
http://statistics.data.gov.uk/id/local-authority/38,Oxfordshire County Council,SEN TRANSPORT,4330,Transport to School Activities,03/03/2016,3110067262,950,Black and White Cars T/A Banbury Ta
http://statistics.data.gov.uk/id/local-authority/38,Oxfordshire County Council,SEN TRANSPORT,4330,Transport to School Activities,03/03/2016,3110067239,"1,000.00",Black and White Cars T/A Banbury Ta
http://statistics.data.gov.uk/id/local-authority/38,Oxfordshire County Council,SEN TRANSPORT,5227,Other Transport Arrangements,03/03/2016,3110067238,"1,140.00",Black and White Cars T/A Banbury Ta
http://statistics.data.gov.uk/id/local-authority/38,Oxfordshire County Council,MEADOWBROOK TRANSPT,4330,Transport to School Activities,03/03/2016,3110067233,"1,485.00",Black and White Cars T/A Banbury Ta
http://statistics.data.gov.uk/id/local-authority/38,Oxfordshire County Council,SEN TRANSPORT,4330,Transport to School Activities,03/03/2016,3110067243,"1,755.00",Black and White Cars T/A Banbury Ta
http://statistics.data.gov.uk/id/local-authority/38,Oxfordshire County Council,SEN TRANSPORT,4330,Transport to School Activities,03/03/2016,3110067231,"1,800.00",Black and White Cars T/A Banbury Ta
http://statistics.data.gov.uk/id/local-authority/38,Oxfordshire County Council,SEN TRANSPORT,4330,Transport to School Activities,03/03/2016,3110067237,"1,900.00",Black and White Cars T/A Banbury Ta
http://statistics.data.gov.uk/id/local-authority/38,Oxfordshire County Council,SEN TRANSPORT,4330,Transport to School Activities,03/03/2016,3110067229,"2,090.00",Black and White Cars T/A Banbury Ta
http://statistics.data.gov.uk/id/local-authority/38,Oxfordshire County Council,RESPITE,4330,Transport to School Activities,03/03/2016,3110067245,"2,090.00",Black and White Cars T/A Banbury Ta
http://statistics.data.gov.uk/id/local-authority/38,Oxfordshire County Council,SEN TRANSPORT,4330,Transport to School Activities,03/03/2016,3110067241,"2,247.51",Black and White Cars T/A Banbury Ta
http://statistics.data.gov.uk/id/local-authority/38,Oxfordshire County Council,SEN TRANSPORT,4330,Transport to School Activities,03/03/2016,3110067235,"2,280.00",Black and White Cars T/A Banbury Ta
http://statistics.data.gov.uk/id/local-authority/38,Oxfordshire County Council,POST 16 SEN,4330,Transport to School Activities,03/03/2016,3110067228,"2,318.00",Black and White Cars T/A Banbury Ta
http://statistics.data.gov.uk/id/local-authority/38,Oxfordshire County Council,SEN TRANSPORT,4330,Transport to School Activities,11/03/2016,3110071153,"2,714.00",Black and White Cars T/A Banbury Ta
http://statistics.data.gov.uk/id/local-authority/38,Oxfordshire County Council,MEADOWBROOK TRANSPT,4330,Transport to School Activities,03/03/2016,3110067226,"2,790.00",Black and White Cars T/A Banbury Ta
http://statistics.data.gov.uk/id/local-authority/38,Oxfordshire County Council,SEN TRANSPORT,4330,Transport to School Activities,03/03/2016,3110067244,"2,826.00",Black and White Cars T/A Banbury Ta
http://statistics.data.gov.uk/id/local-authority/38,Oxfordshire County Council,LOOKED AFTER NORTH,4314,"Other Trans Contract Costs (CRB, Car Sea",03/03/2016,3110067227,"3,344.00",Black and White Cars T/A Banbury Ta
http://statistics.data.gov.uk/id/local-authority/38,Oxfordshire County Council,SEN DELEGATION,5537,Payments to Other Establishments,23/03/2016,3110075707,579.8,Blackbird Academy Trust
http://statistics.data.gov.uk/id/local-authority/38,Oxfordshire County Council,SEN DELEGATION,5537,Payments to Other Establishments,23/03/2016,3110075709,724.75,Blackbird Academy Trust
http://statistics.data.gov.uk/id/local-authority/38,Oxfordshire County Council,MODERATION,4539,"Books, DVDs and CDs",01/03/2016,2200126177,"5,630.73",BLACKWELLS
http://statistics.data.gov.uk/id/local-authority/38,Oxfordshire County Council,CARE HOME SPOT VALE,5686,,10/03/2016,3110070854,"9,214.29",Blackwood House
http://statistics.data.gov.uk/id/local-authority/38,Oxfordshire County Council,IN YEAR FAIR ACCESS,5537,Payments to Other Establishments,24/03/2016,3110075394,690.81,Blessed George Napier C School
http://statistics.data.gov.uk/id/local-authority/38,Oxfordshire County Council,IN YEAR FAIR ACCESS,5537,Payments to Other Establishments,24/03/2016,3110075412,800,Blessed George Napier C School
http://statistics.data.gov.uk/id/local-authority/38,Oxfordshire County Council,HN IN SEC SCHOOLS,5537,Payments to Other Establishments,24/03/2016,3110075373,"2,530.00",Blessed George Napier C School
http://statistics.data.gov.uk/id/local-authority/38,Oxfordshire County Council,IN YEAR FAIR ACCESS,5537,Payments to Other Establishments,24/03/2016,3110075370,"3,000.00",Blessed George Napier C School
http://statistics.data.gov.uk/id/local-authority/38,Oxfordshire County Council,MUSEUM DEV OFFICER,5195,Grant Aid and Donations,04/03/2016,2200127106,"1,335.84",BLOXHAM VILLAGE MUSEUM
http://statistics.data.gov.uk/id/local-authority/38,Oxfordshire County Council,Independent Foster,5559,,01/03/2016,2200136013,"6,510.00",Blue Sky Fostering Ltd
http://statistics.data.gov.uk/id/local-authority/38,Oxfordshire County Council,OPPB FAST TRACK,5691,,21/03/2016,3110072824,665,Bluebird Care
http://statistics.data.gov.uk/id/local-authority/38,Oxfordshire County Council,OPPB CONTCARE DEL HE,5691,,23/03/2016,3110075228,762.5,Bluebird Care
http://statistics.data.gov.uk/id/local-authority/38,Oxfordshire County Council,OPPB FAST TRACK,5691,,21/03/2016,3110072869,871.5,Bluebird Care
http://statistics.data.gov.uk/id/local-authority/38,Oxfordshire County Council,OPPB CONTCARE DEL HE,5691,,23/03/2016,3110075227,"1,037.50",Bluebird Care
http://statistics.data.gov.uk/id/local-authority/38,Oxfordshire County Council,OPPB CONTCARE H SUPP,5691,,30/03/2016,3110077121,"2,316.00",Bluebird Care
http://statistics.data.gov.uk/id/local-authority/38,Oxfordshire County Council,OPPB FAST TRACK,5691,,21/03/2016,3110072868,"5,243.75",Bluebird Care
http://statistics.data.gov.uk/id/local-authority/38,Oxfordshire County Council,OPPB CONTCARE H SUPP,5691,,22/03/2016,3110074996,"1,768.01",Bluebird Care (South Oxfordshire)
http://statistics.data.gov.uk/id/local-authority/38,Oxfordshire County Council,OPPB CONTCARE H SUPP,5691,,23/03/2016,3110075247,"1,927.40",Bluebird Care (South Oxfordshire)
http://statistics.data.gov.uk/id/local-authority/38,Oxfordshire County Council,OPPB CONTCARE H SUPP,5691,,22/03/2016,3110074997,613.35,Bluebird Care Oxford (Bayford New
http://statistics.data.gov.uk/id/local-authority/38,Oxfordshire County Council,PDPB CONTCARE H SUPP,5691,,30/03/2016,3110077108,"2,320.04",Bluebird Care Oxford (Bayford New
http://statistics.data.gov.uk/id/local-authority/38,Oxfordshire County Council,PDPB CONTCARE H SUPP,5691,,30/03/2016,3110077115,"2,353.69",Bluebird Care Oxford (Bayford New
http://statistics.data.gov.uk/id/local-authority/38,Oxfordshire County Council,MAINSTREAM-SECONDARY,4330,Transport to School Activities,22/03/2016,3110074943,"2,753.12",Blunsdons Coach Travel
http://statistics.data.gov.uk/id/local-authority/38,Oxfordshire County Council,MAINSTREAM-SECONDARY,4330,Transport to School Activities,08/03/2016,3110067834,"2,879.68",Blunsdons Coach Travel
http://statistics.data.gov.uk/id/local-authority/38,Oxfordshire County Council,MAINSTREAM-SECONDARY,4330,Transport to School Activities,04/03/2016,3110067499,"3,269.33",Blunsdons Coach Travel
http://statistics.data.gov.uk/id/local-authority/38,Oxfordshire County Council,MAINSTREAM-SECONDARY,4330,Transport to School Activities,04/03/2016,3110067498,"3,419.62",Blunsdons Coach Travel
http://statistics.data.gov.uk/id/local-authority/38,Oxfordshire County Council,ADOPTION,1362,Creditors GR/IR -,11/03/2016,2200126901,"-1,300.00",Blythe Liggines Solicitors
http://statistics.data.gov.uk/id/local-authority/38,Oxfordshire County Council,OPERATIONS,4615,Drugs and Medical Supplies,02/03/2016,2200130953,537.04,Boc Ltd
http://statistics.data.gov.uk/id/local-authority/38,Oxfordshire County Council,LIBRARY COLLECTIONS,4539,"Books, DVDs and CDs",15/03/2016,2200130039,599.25,Bolinda UK Ltd
http://statistics.data.gov.uk/id/local-authority/38,Oxfordshire County Council,LIBRARY COLLECTIONS,4539,"Books, DVDs and CDs",15/03/2016,2200128524,679.15,Bolinda UK Ltd
http://statistics.data.gov.uk/id/local-authority/38,Oxfordshire County Council,LIBRARY COLLECTIONS,4539,"Books, DVDs and CDs",16/03/2016,2200130028,719.1,Bolinda UK Ltd
http://statistics.data.gov.uk/id/local-authority/38,Oxfordshire County Council,LIBRARY COLLECTIONS,4539,"Books, DVDs and CDs",29/03/2016,2200138796,"2,000.00",Bolinda UK Ltd
http://statistics.data.gov.uk/id/local-authority/38,Oxfordshire County Council,LIBRARY COLLECTIONS,4539,"Books, DVDs and CDs",15/03/2016,2200130687,"5,861.74",Bolinda UK Ltd
http://statistics.data.gov.uk/id/local-authority/38,Oxfordshire County Council,GP + PHARMACY SERVS,4934,,01/03/2016,3110066679,560,Boots the Chemist
http://statistics.data.gov.uk/id/local-authority/38,Oxfordshire County Council,CONTRACEPTION,4934,,11/03/2016,3110072805,"1,463.65",Boots the Chemist
http://statistics.data.gov.uk/id/local-authority/38,Oxfordshire County Council,GP + PHARMACY SERVS,4934,,24/03/2016,3110073339,"1,120.00",Boswells of Oxford Pharmacy
http://statistics.data.gov.uk/id/local-authority/38,Oxfordshire County Council,GP + PHARMACY SERVS,4934,,01/03/2016,3110066688,"1,540.00",Boswells of Oxford Pharmacy
http://statistics.data.gov.uk/id/local-authority/38,Oxfordshire County Council,LD CLIENTS CITY,7063,Client Contributions - Residential OLA,10/03/2016,3110070719,"2,956.20",Bradbury House Organisation
http://statistics.data.gov.uk/id/local-authority/38,Oxfordshire County Council,LAC PUPIL PREMIUM,5537,Payments to Other Establishments,18/03/2016,3110072760,650,Brambleside Primary School
http://statistics.data.gov.uk/id/local-authority/38,Oxfordshire County Council,PD COMM SUPP - CITY,5899,Adult Social Care - Direct Payments,22/03/2016,3110074394,"3,160.00",Redacted Personal Data
http://statistics.data.gov.uk/id/local-authority/38,Oxfordshire County Council,POST 16 SEN,4330,Transport to School Activities,22/03/2016,3110074962,"1,268.00",Brians Hire Ltd
http://statistics.data.gov.uk/id/local-authority/38,Oxfordshire County Council,CC NH SPOT OVER 65,5687,,10/03/2016,3110070595,"44,386.20",Bridge House
http://statistics.data.gov.uk/id/local-authority/38,Oxfordshire County Council,LIBRARY COLLECTIONS,5190,Subscriptions,09/03/2016,2200124660,"-15,265.00",Bridgeall Libraries limited
http://statistics.data.gov.uk/id/local-authority/38,Oxfordshire County Council,LIBRARY COLLECTIONS,5190,Subscriptions,09/03/2016,3110069895,"15,265.00",Bridgeall Libraries limited
http://statistics.data.gov.uk/id/local-authority/38,Oxfordshire County Council,2 YEAR OLD FUNDING,5537,Payments to Other Establishments,08/03/2016,3110070007,849.75,Bridges Childcare
http://statistics.data.gov.uk/id/local-authority/38,Oxfordshire County Council,CSB - DIDCOT,5689,,09/03/2016,3110069868,504.79,Bridges Home Care Ltd
http://statistics.data.gov.uk/id/local-authority/38,Oxfordshire County Council,CSB - DIDCOT,5689,,09/03/2016,3110069865,540.46,Bridges Home Care Ltd
http://statistics.data.gov.uk/id/local-authority/38,Oxfordshire County Council,LD CLIENTS SOUTH,5689,,09/03/2016,3110069870,609.3,Bridges Home Care Ltd
http://statistics.data.gov.uk/id/local-authority/38,Oxfordshire County Council,CSB - DIDCOT,5689,,09/03/2016,3110069866,699.48,Bridges Home Care Ltd
http://statistics.data.gov.uk/id/local-authority/38,Oxfordshire County Council,CSB - DIDCOT,5689,,09/03/2016,3110069861,883.21,Bridges Home Care Ltd
http://statistics.data.gov.uk/id/local-authority/38,Oxfordshire County Council,CSB - DIDCOT,5689,,09/03/2016,3110069856,"1,071.72",Bridges Home Care Ltd
http://statistics.data.gov.uk/id/local-authority/38,Oxfordshire County Council,CSB - DIDCOT,5689,,09/03/2016,3110069862,"1,226.50",Bridges Home Care Ltd
http://statistics.data.gov.uk/id/local-authority/38,Oxfordshire County Council,CSB - DIDCOT,5689,,09/03/2016,3110069869,"1,447.58",Bridges Home Care Ltd
http://statistics.data.gov.uk/id/local-authority/38,Oxfordshire County Council,CSB - DIDCOT,5689,,09/03/2016,3110069859,"1,536.49",Bridges Home Care Ltd
http://statistics.data.gov.uk/id/local-authority/38,Oxfordshire County Council,CSB - DIDCOT,5689,,09/03/2016,3110069867,"1,704.95",Bridges Home Care Ltd
http://statistics.data.gov.uk/id/local-authority/38,Oxfordshire County Council,CSB - DIDCOT,5689,,09/03/2016,3110069863,"2,047.07",Bridges Home Care Ltd
http://statistics.data.gov.uk/id/local-authority/38,Oxfordshire County Council,PD COMM SUPP DIDCOT,5689,,09/03/2016,3110069871,"2,276.84",Bridges Home Care Ltd
http://statistics.data.gov.uk/id/local-authority/38,Oxfordshire County Council,CSB - DIDCOT,5689,,09/03/2016,3110069858,"2,479.66",Bridges Home Care Ltd
http://statistics.data.gov.uk/id/local-authority/38,Oxfordshire County Council,LD CLIENTS NORTH,5899,Adult Social Care - Direct Payments,22/03/2016,3110073657,"10,452.48",Redacted Personal Data
http://statistics.data.gov.uk/id/local-authority/38,Oxfordshire County Council,2 YEAR OLD FUNDING,5537,Payments to Other Establishments,08/03/2016,3110069929,"1,608.86",Bright Start Pre-school
http://statistics.data.gov.uk/id/local-authority/38,Oxfordshire County Council,PD COMM SUPP BANB,5689,,09/03/2016,3110069142,537.73,Bright Yellow Group Plc
http://statistics.data.gov.uk/id/local-authority/38,Oxfordshire County Council,CMPB WITNEY,5689,,09/03/2016,3110069130,619.65,Bright Yellow Group Plc
http://statistics.data.gov.uk/id/local-authority/38,Oxfordshire County Council,CSB - BANBURY,5689,,09/03/2016,3110069117,641.84,Bright Yellow Group Plc
http://statistics.data.gov.uk/id/local-authority/38,Oxfordshire County Council,CSB - DIDCOT,5689,,09/03/2016,3110069120,649.49,Bright Yellow Group Plc
http://statistics.data.gov.uk/id/local-authority/38,Oxfordshire County Council,OPPB CONTCARE H SUPP,5689,,09/03/2016,3110069100,699.59,Bright Yellow Group Plc
http://statistics.data.gov.uk/id/local-authority/38,Oxfordshire County Council,CMPB WITNEY,5689,,09/03/2016,3110069139,707.63,Bright Yellow Group Plc
http://statistics.data.gov.uk/id/local-authority/38,Oxfordshire County Council,CMPB WITNEY,5689,,09/03/2016,3110069131,771.12,Bright Yellow Group Plc
http://statistics.data.gov.uk/id/local-authority/38,Oxfordshire County Council,CSB - BANBURY,5689,,09/03/2016,3110069115,846.09,Bright Yellow Group Plc
http://statistics.data.gov.uk/id/local-authority/38,Oxfordshire County Council,CMPB WITNEY,5689,,09/03/2016,3110069137,862.54,Bright Yellow Group Plc
http://statistics.data.gov.uk/id/local-authority/38,Oxfordshire County Council,CSB - DIDCOT,5689,,09/03/2016,3110069125,874.01,Bright Yellow Group Plc
http://statistics.data.gov.uk/id/local-authority/38,Oxfordshire County Council,PD COMM SUPP WITNEY,5689,,09/03/2016,3110069149,893.52,Bright Yellow Group Plc
http://statistics.data.gov.uk/id/local-authority/38,Oxfordshire County Council,CMPB WITNEY,5689,,09/03/2016,3110069126,922.97,Bright Yellow Group Plc
http://statistics.data.gov.uk/id/local-authority/38,Oxfordshire County Council,LD CLIENTS NORTH,5689,,10/03/2016,3110070324,926.01,Bright Yellow Group Plc
http://statistics.data.gov.uk/id/local-authority/38,Oxfordshire County Council,PD COMM SUPP BANB,5689,,09/03/2016,3110069144,965.81,Bright Yellow Group Plc
http://statistics.data.gov.uk/id/local-authority/38,Oxfordshire County Council,CSB - BANBURY,5689,,09/03/2016,3110069111,970.79,Bright Yellow Group Plc
http://statistics.data.gov.uk/id/local-authority/38,Oxfordshire County Council,CSB - BANBURY,5689,,09/03/2016,3110069109,"1,037.34",Bright Yellow Group Plc
http://statistics.data.gov.uk/id/local-authority/38,Oxfordshire County Council,PD COMM SUPP DIDCOT,5689,,09/03/2016,3110069147,"1,092.80",Bright Yellow Group Plc
http://statistics.data.gov.uk/id/local-authority/38,Oxfordshire County Council,CSB - BANBURY,5689,,09/03/2016,3110069116,"1,345.64",Bright Yellow Group Plc
http://statistics.data.gov.uk/id/local-authority/38,Oxfordshire County Council,CSB - DIDCOT,5689,,09/03/2016,3110069124,"1,383.89",Bright Yellow Group Plc
http://statistics.data.gov.uk/id/local-authority/38,Oxfordshire County Council,CSB - BANBURY,5689,,09/03/2016,3110069118,"1,442.79",Bright Yellow Group Plc
http://statistics.data.gov.uk/id/local-authority/38,Oxfordshire County Council,CSB - BANBURY,5689,,09/03/2016,3110069108,"1,456.18",Bright Yellow Group Plc
http://statistics.data.gov.uk/id/local-authority/38,Oxfordshire County Council,CMPB WITNEY,5689,,09/03/2016,3110069138,"1,578.58",Bright Yellow Group Plc
http://statistics.data.gov.uk/id/local-authority/38,Oxfordshire County Council,CSB - BANBURY,5689,,09/03/2016,3110069114,"1,598.47",Bright Yellow Group Plc
http://statistics.data.gov.uk/id/local-authority/38,Oxfordshire County Council,CSB - BANBURY,5689,,09/03/2016,3110069110,"1,843.27",Bright Yellow Group Plc
http://statistics.data.gov.uk/id/local-authority/38,Oxfordshire County Council,PD COMM SUPP BANB,5689,,09/03/2016,3110069143,"2,023.43",Bright Yellow Group Plc
http://statistics.data.gov.uk/id/local-authority/38,Oxfordshire County Council,CSB - DIDCOT,5689,,09/03/2016,3110069121,"2,635.04",Bright Yellow Group Plc
http://statistics.data.gov.uk/id/local-authority/38,Oxfordshire County Council,CSB - BANBURY,5689,,09/03/2016,3110069107,"3,004.92",Bright Yellow Group Plc
http://statistics.data.gov.uk/id/local-authority/38,Oxfordshire County Council,VEHICLE RENEW FUND,4201,Purchase of Vehicle,04/03/2016,2200121944,"11,329.38",Bristol Street Motors
http://statistics.data.gov.uk/id/local-authority/38,Oxfordshire County Council,VEHICLE RENEW FUND,4201,Purchase of Vehicle,04/03/2016,2200121950,"11,329.38",Bristol Street Motors
http://statistics.data.gov.uk/id/local-authority/38,Oxfordshire County Council,VEHICLE RENEW FUND,4201,Purchase of Vehicle,04/03/2016,2200121952,"11,329.38",Bristol Street Motors
http://statistics.data.gov.uk/id/local-authority/38,Oxfordshire County Council,VEHICLE RENEW FUND,4201,Purchase of Vehicle,04/03/2016,2200121960,"11,329.38",Bristol Street Motors
http://statistics.data.gov.uk/id/local-authority/38,Oxfordshire County Council,HIGHWAYS GENERAL,5072,Telephone - Equipment,08/03/2016,2200123126,"1,437.67",Britannic Technologies Limited
http://statistics.data.gov.uk/id/local-authority/38,Oxfordshire County Council,TRANSPORT,4330,Transport to School Activities,16/03/2016,3110071967,"10,428.62",British Red Cross Society
http://statistics.data.gov.uk/id/local-authority/38,Oxfordshire County Council,TRANSPORT,4330,Transport to School Activities,16/03/2016,3110071968,"10,428.62",British Red Cross Society
http://statistics.data.gov.uk/id/local-authority/38,Oxfordshire County Council,2 YEAR OLD FUNDING,5537,Payments to Other Establishments,08/03/2016,3110069930,"1,375.05",Broadhill Pre-School
http://statistics.data.gov.uk/id/local-authority/38,Oxfordshire County Council,Mainstream Res,5558,,24/03/2016,2200138747,"13,560.00",Broadlands Hall Ltd
http://statistics.data.gov.uk/id/local-authority/38,Oxfordshire County Council,Mainstream Res,5558,,24/03/2016,2200138749,"13,560.00",Broadlands Hall Ltd
http://statistics.data.gov.uk/id/local-authority/38,Oxfordshire County Council,Mainstream Res,5558,,24/03/2016,2200138745,"13,920.00",Broadlands Hall Ltd
http://statistics.data.gov.uk/id/local-authority/38,Oxfordshire County Council,RESIDENTIAL TREATMEN,5686,,17/03/2016,2200132928,"2,506.26",BROADREACH HOUSE
http://statistics.data.gov.uk/id/local-authority/38,Oxfordshire County Council,RESIDENTIAL TREATMEN,5686,,17/03/2016,2200132932,"2,679.11",BROADREACH HOUSE
http://statistics.data.gov.uk/id/local-authority/38,Oxfordshire County Council,2 YEAR OLD FUNDING,5537,Payments to Other Establishments,08/03/2016,3110069931,734.18,Broadshires Pre-School
http://statistics.data.gov.uk/id/local-authority/38,Oxfordshire County Council,RESIDENTIAL TREATMEN,5686,,04/03/2016,2200138573,599.66,BROADWAY LODGE LTD
http://statistics.data.gov.uk/id/local-authority/38,Oxfordshire County Council,RESIDENTIAL TREATMEN,5686,,01/03/2016,2200127956,"3,307.20",BROADWAY LODGE LTD
http://statistics.data.gov.uk/id/local-authority/38,Oxfordshire County Council,RESIDENTIAL TREATMEN,5686,,01/03/2016,2200127983,"3,307.20",BROADWAY LODGE LTD
http://statistics.data.gov.uk/id/local-authority/38,Oxfordshire County Council,RESIDENTIAL TREATMEN,5686,,09/03/2016,2200138572,"3,319.60",BROADWAY LODGE LTD
http://statistics.data.gov.uk/id/local-authority/38,Oxfordshire County Council,RESIDENTIAL TREATMEN,5686,,01/03/2016,2200138553,"3,358.08",BROADWAY LODGE LTD
http://statistics.data.gov.uk/id/local-authority/38,Oxfordshire County Council,RESIDENTIAL TREATMEN,5686,,01/03/2016,2200138556,"3,358.08",BROADWAY LODGE LTD
http://statistics.data.gov.uk/id/local-authority/38,Oxfordshire County Council,LD EXT RESP CONTRACT,5544,B*Fostering - Temp/Respite,10/03/2016,3110070755,"1,993.21",Bromford Support
http://statistics.data.gov.uk/id/local-authority/38,Oxfordshire County Council,LD CLIENTS SOUTH,5688,,10/03/2016,3110070983,"3,809.90",Brook House Residential
http://statistics.data.gov.uk/id/local-authority/38,Oxfordshire County Council,ACQUIRED BRAIN INJ,7063,Client Contributions - Residential OLA,10/03/2016,3110070703,"16,000.39",Brook House Residential
http://statistics.data.gov.uk/id/local-authority/38,Oxfordshire County Council,MH SPOT FUNDING,5686,,10/03/2016,3110070849,"78,006.71",Brookdale Care
http://statistics.data.gov.uk/id/local-authority/38,Oxfordshire County Council,CARE HOME SPOT VALE,5687,,10/03/2016,3110070641,"3,612.29",BROOKDALE NURSING HOME
http://statistics.data.gov.uk/id/local-authority/38,Oxfordshire County Council,CARE HOME SPOT SOUTH,5686,,10/03/2016,3110070764,"2,122.70",Broome End Ltd
http://statistics.data.gov.uk/id/local-authority/38,Oxfordshire County Council,LIABILITY,3257,,14/03/2016,3110072884,"1,818.00",Browne Jacobson LLP
http://statistics.data.gov.uk/id/local-authority/38,Oxfordshire County Council,SEN TRANSPORT,4330,Transport to School Activities,15/03/2016,3110071409,"3,200.00",Browns Taxis Ltd
http://statistics.data.gov.uk/id/local-authority/38,Oxfordshire County Council,OPPB CONTCARE H SUPP,5899,Adult Social Care - Direct Payments,22/03/2016,3110073790,"5,932.96",Redacted Personal Data
http://statistics.data.gov.uk/id/local-authority/38,Oxfordshire County Council,LD CLIENTS CITY,5686,,10/03/2016,3110070820,"5,383.68",Bryn-y-Wawr
http://statistics.data.gov.uk/id/local-authority/38,Oxfordshire County Council,ALERT CONTRACT,4861,Hired and Contracted Services,17/03/2016,2200131335,"4,845.30",BT Chronically Sick and Disabled
http://statistics.data.gov.uk/id/local-authority/38,Oxfordshire County Council,LD CLIENTS SOUTH,5690,,10/03/2016,3110070963,"2,023.64",Buckinghamshire County Council
http://statistics.data.gov.uk/id/local-authority/38,Oxfordshire County Council,SEN DELEGATION,5500,Payments to Other Local Authorities,14/03/2016,2200129305,"9,518.00",Buckinghamshire County Council
http://statistics.data.gov.uk/id/local-authority/38,Oxfordshire County Council,OUT OF COUNTY,5500,Payments to Other Local Authorities,14/03/2016,2200129301,"88,344.00",Buckinghamshire County Council
http://statistics.data.gov.uk/id/local-authority/38,Oxfordshire County Council,MUSEUM DEV OFFICER,5195,Grant Aid and Donations,22/03/2016,2200134807,"1,000.00",BUCKINGHAMSHIRE COUNTY MUSEUM
http://statistics.data.gov.uk/id/local-authority/38,Oxfordshire County Council,UNIFORMED SALARIES,4940,Other Services,01/03/2016,2200129130,"1,779.00",Buckinghamshire Milton Keynes Fire
http://statistics.data.gov.uk/id/local-authority/38,Oxfordshire County Council,CARE HOME SPOT CITY,5686,,10/03/2016,3110070752,"1,984.49",BUPA CARE SERVICES
http://statistics.data.gov.uk/id/local-authority/38,Oxfordshire County Council,IN YEAR FAIR ACCESS,5537,Payments to Other Establishments,24/03/2016,3110075423,"1,600.00",Burford Academy
http://statistics.data.gov.uk/id/local-authority/38,Oxfordshire County Council,IN YEAR FAIR ACCESS,5537,Payments to Other Establishments,24/03/2016,3110075410,"2,814.71",Burford Academy
http://statistics.data.gov.uk/id/local-authority/38,Oxfordshire County Council,HN IN SEC SCHOOLS,5537,Payments to Other Establishments,24/03/2016,3110075381,"3,270.00",Burford Academy
http://statistics.data.gov.uk/id/local-authority/38,Oxfordshire County Council,LD CLIENTS NORTH,5686,,10/03/2016,3110070738,"27,280.04",Burgess Care Ltd.
http://statistics.data.gov.uk/id/local-authority/38,Oxfordshire County Council,CARE HOME SPOT CITY,5687,,10/03/2016,3110070683,"2,457.86",Burnham House Care Home
http://statistics.data.gov.uk/id/local-authority/38,Oxfordshire County Council,RESIDENTIAL TREATMEN,5686,,07/03/2016,2200124800,"2,600.00",Burton Addiction Centre
http://statistics.data.gov.uk/id/local-authority/38,Oxfordshire County Council,ROW MAINT,5526,Payments to Private Contractors,01/03/2016,2200137230,"11,670.00",Buryhook Countryside Management
http://statistics.data.gov.uk/id/local-authority/38,Oxfordshire County Council,2 YEAR OLD FUNDING,5537,Payments to Other Establishments,08/03/2016,3110069934,"2,435.95",Busy Bees at Oxford
http://statistics.data.gov.uk/id/local-authority/38,Oxfordshire County Council,2 YEAR OLD FUNDING,5537,Payments to Other Establishments,08/03/2016,3110069935,"2,384.65",Busy Bees Day Nursery (Bicester)
http://statistics.data.gov.uk/id/local-authority/38,Oxfordshire County Council,PLAYGROUP FEES,5537,Payments to Other Establishments,16/03/2016,3110071617,675,Busy Bees Playgroup
http://statistics.data.gov.uk/id/local-authority/38,Oxfordshire County Council,PLAYGROUP FEES,5537,Payments to Other Establishments,16/03/2016,3110071631,693,Busy Bees Playgroup
http://statistics.data.gov.uk/id/local-authority/38,Oxfordshire County Council,LAC PUPIL PREMIUM,5537,Payments to Other Establishments,18/03/2016,3110072753,650,Buxton Community School
http://statistics.data.gov.uk/id/local-authority/38,Oxfordshire County Council,SEN DELEGATION,5500,Payments to Other Local Authorities,15/03/2016,2200129298,"3,906.00",Buxton Community School
http://statistics.data.gov.uk/id/local-authority/38,Oxfordshire County Council,SEN DELEGATION,5500,Payments to Other Local Authorities,15/03/2016,2200129297,"6,691.00",Buxton Community School
http://statistics.data.gov.uk/id/local-authority/38,Oxfordshire County Council,MAINSTREAM-PRIMARY,4330,Transport to School Activities,01/03/2016,3110066271,760,BWT UK (Ltd)
http://statistics.data.gov.uk/id/local-authority/38,Oxfordshire County Council,MAINSTREAM-PRIMARY,4330,Transport to School Activities,01/03/2016,3110066275,800,BWT UK (Ltd)
http://statistics.data.gov.uk/id/local-authority/38,Oxfordshire County Council,LOOKED AFTER NORTH,5227,Other Transport Arrangements,17/03/2016,2200134035,504,BY THE BRIDGE
http://statistics.data.gov.uk/id/local-authority/38,Oxfordshire County Council,Independent Foster,5559,,08/03/2016,2200125540,699.29,BY THE BRIDGE
http://statistics.data.gov.uk/id/local-authority/38,Oxfordshire County Council,Independent Foster,5559,,01/03/2016,2200131215,"2,821.80",BY THE BRIDGE
http://statistics.data.gov.uk/id/local-authority/38,Oxfordshire County Council,ICT Operations & Maintenance,4495,IT Software,01/03/2016,2200129136,"3,300.00",Bytes Software Servioces
http://statistics.data.gov.uk/id/local-authority/38,Oxfordshire County Council,Library ICT Renewal,5039,ITC Services,30/03/2016,2200139029,"3,328.00",Bytes Software Servioces
http://statistics.data.gov.uk/id/local-authority/38,Oxfordshire County Council,FOSTERING MAIN,5552,B*Fostering - Retainer Fee,02/03/2016,3110066523,694,Redacted Personal Data
http://statistics.data.gov.uk/id/local-authority/38,Oxfordshire County Council,CENS & SURV NON GRNT,4531,Materials,02/03/2016,2200123116,900,C A Traffic Ltd
http://statistics.data.gov.uk/id/local-authority/38,Oxfordshire County Council,CENS & SURV NON GRNT,4531,Materials,02/03/2016,2200123117,907,C A Traffic Ltd
http://statistics.data.gov.uk/id/local-authority/38,Oxfordshire County Council,CENS & SURV NON GRNT,4531,Materials,02/03/2016,2200131228,"1,534.50",C A Traffic Ltd
http://statistics.data.gov.uk/id/local-authority/38,Oxfordshire County Council,FOSTERING MAIN,5549,B*Fostering Allowance - Regulation 38,02/03/2016,3110066547,782,Redacted Personal Data
http://statistics.data.gov.uk/id/local-authority/38,Oxfordshire County Council,FOSTERING MAIN,5549,B*Fostering Allowance - Regulation 38,09/03/2016,3110068184,782,Redacted Personal Data
http://statistics.data.gov.uk/id/local-authority/38,Oxfordshire County Council,FOSTERING MAIN,5549,B*Fostering Allowance - Regulation 38,16/03/2016,3110071730,782,Redacted Personal Data
http://statistics.data.gov.uk/id/local-authority/38,Oxfordshire County Council,FOSTERING MAIN,5549,B*Fostering Allowance - Regulation 38,22/03/2016,3110073227,782,Redacted Personal Data
http://statistics.data.gov.uk/id/local-authority/38,Oxfordshire County Council,FOSTERING MAIN,5549,B*Fostering Allowance - Regulation 38,30/03/2016,3110076323,787.64,Redacted Personal Data
http://statistics.data.gov.uk/id/local-authority/38,Oxfordshire County Council,FOSTERING MAIN,5552,B*Fostering - Retainer Fee,02/03/2016,3110066492,697,Redacted Personal Data
http://statistics.data.gov.uk/id/local-authority/38,Oxfordshire County Council,FOSTERING MAIN,5552,B*Fostering - Retainer Fee,16/03/2016,3110071676,697,Redacted Personal Data
http://statistics.data.gov.uk/id/local-authority/38,Oxfordshire County Council,FOSTERING MAIN,5542,B*Payments to carers,22/03/2016,3110073170,697,Redacted Personal Data
http://statistics.data.gov.uk/id/local-authority/38,Oxfordshire County Council,FOSTERING MAIN,5542,B*Payments to carers,30/03/2016,3110076177,701.79,Redacted Personal Data
http://statistics.data.gov.uk/id/local-authority/38,Oxfordshire County Council,SERVICE MANAGER PLAC,4940,Other Services,09/03/2016,3110068051,772,Redacted Personal Data
http://statistics.data.gov.uk/id/local-authority/38,Oxfordshire County Council,BRIDGES GENERAL,4531,Materials,01/03/2016,2200125753,"1,560.00",C J Clarke (Timber Merchants) Ltd
http://statistics.data.gov.uk/id/local-authority/38,Oxfordshire County Council,BRIDGES GENERAL,4531,Materials,01/03/2016,2200125489,"2,097.48",C J Clarke (Timber Merchants) Ltd
http://statistics.data.gov.uk/id/local-authority/38,Oxfordshire County Council,FOSTERING MAIN,5542,B*Payments to carers,30/03/2016,3110076193,"1,029.49",Redacted Personal Data
http://statistics.data.gov.uk/id/local-authority/38,Oxfordshire County Council,FOSTERING MAIN,5552,B*Fostering - Retainer Fee,02/03/2016,3110066498,"1,042.45",Redacted Personal Data
http://statistics.data.gov.uk/id/local-authority/38,Oxfordshire County Council,FOSTERING MAIN,5552,B*Fostering - Retainer Fee,09/03/2016,3110068066,"1,042.45",Redacted Personal Data
http://statistics.data.gov.uk/id/local-authority/38,Oxfordshire County Council,FOSTERING MAIN,5552,B*Fostering - Retainer Fee,16/03/2016,3110071682,"1,042.45",Redacted Personal Data
http://statistics.data.gov.uk/id/local-authority/38,Oxfordshire County Council,FOSTERING MAIN,5542,B*Payments to carers,22/03/2016,3110073177,"1,042.45",Redacted Personal Data
http://statistics.data.gov.uk/id/local-authority/38,Oxfordshire County Council,SPECIAL GUARDIANSHIP,5664,B*Holiday Allowance,30/03/2016,3110075817,568.56,Redacted Personal Data
http://statistics.data.gov.uk/id/local-authority/38,Oxfordshire County Council,MTFC,5541,B*Foster Parents,09/03/2016,3110068191,516,Redacted Personal Data
http://statistics.data.gov.uk/id/local-authority/38,Oxfordshire County Council,MTFC,5541,B*Foster Parents,16/03/2016,3110071733,516,Redacted Personal Data
http://statistics.data.gov.uk/id/local-authority/38,Oxfordshire County Council,MTFC,5541,B*Foster Parents,22/03/2016,3110073229,516,Redacted Personal Data
http://statistics.data.gov.uk/id/local-authority/38,Oxfordshire County Council,MTFC,5541,B*Foster Parents,30/03/2016,3110076327,517.59,Redacted Personal Data
http://statistics.data.gov.uk/id/local-authority/38,Oxfordshire County Council,MTFC,5663,B*Birthday Allowance,02/03/2016,3110066549,665,Redacted Personal Data
http://statistics.data.gov.uk/id/local-authority/38,Oxfordshire County Council,SEN TRANSPORT,5227,Other Transport Arrangements,02/03/2016,3110066847,504,C S Comley
http://statistics.data.gov.uk/id/local-authority/38,Oxfordshire County Council,SEN TRANSPORT,5227,Other Transport Arrangements,24/03/2016,3110075287,516.3,C S Comley
http://statistics.data.gov.uk/id/local-authority/38,Oxfordshire County Council,SEN TRANSPORT,5227,Other Transport Arrangements,24/03/2016,3110075289,576,C S Comley
http://statistics.data.gov.uk/id/local-authority/38,Oxfordshire County Council,SEN TRANSPORT,5227,Other Transport Arrangements,11/03/2016,3110071059,590.14,C S Comley
http://statistics.data.gov.uk/id/local-authority/38,Oxfordshire County Council,SEN TRANSPORT,5227,Other Transport Arrangements,11/03/2016,3110071061,590.14,C S Comley
http://statistics.data.gov.uk/id/local-authority/38,Oxfordshire County Council,LD CLIENTS SOUTH,5227,Other Transport Arrangements,21/03/2016,3110072916,"1,200.00",C S Comley
http://statistics.data.gov.uk/id/local-authority/38,Oxfordshire County Council,POST 16 SEN,4330,Transport to School Activities,02/03/2016,3110066849,"1,240.00",C S Comley
http://statistics.data.gov.uk/id/local-authority/38,Oxfordshire County Council,SEN TRANSPORT,4330,Transport to School Activities,02/03/2016,3110066844,"1,274.00",C S Comley
http://statistics.data.gov.uk/id/local-authority/38,Oxfordshire County Council,SEN TRANSPORT,4330,Transport to School Activities,02/03/2016,3110066840,"1,325.80",C S Comley
http://statistics.data.gov.uk/id/local-authority/38,Oxfordshire County Council,SEN TRANSPORT,4330,Transport to School Activities,24/03/2016,3110075288,"1,456.00",C S Comley
http://statistics.data.gov.uk/id/local-authority/38,Oxfordshire County Council,SEN TRANSPORT,4330,Transport to School Activities,24/03/2016,3110075286,"1,515.20",C S Comley
http://statistics.data.gov.uk/id/local-authority/38,Oxfordshire County Council,POST 16 SEN,4330,Transport to School Activities,24/03/2016,3110075290,"1,636.50",C S Comley
http://statistics.data.gov.uk/id/local-authority/38,Oxfordshire County Council,SEN TRANSPORT,4330,Transport to School Activities,11/03/2016,3110071058,"1,822.86",C S Comley
http://statistics.data.gov.uk/id/local-authority/38,Oxfordshire County Council,SEN TRANSPORT,4330,Transport to School Activities,11/03/2016,3110071060,"1,822.86",C S Comley
http://statistics.data.gov.uk/id/local-authority/38,Oxfordshire County Council,POST 16 SEN,4330,Transport to School Activities,11/03/2016,3110071062,"1,912.00",C S Comley
http://statistics.data.gov.uk/id/local-authority/38,Oxfordshire County Council,FPT CITY,4940,Other Services,02/03/2016,3110066512,524,Redacted Personal Data
http://statistics.data.gov.uk/id/local-authority/38,Oxfordshire County Council,TRANSPORT COSTS,5227,Other Transport Arrangements,21/03/2016,3110072926,800,C V OSullivan
http://statistics.data.gov.uk/id/local-authority/38,Oxfordshire County Council,TRANSPORT COSTS,4330,Transport to School Activities,21/03/2016,3110072933,"1,720.00",C V OSullivan
http://statistics.data.gov.uk/id/local-authority/38,Oxfordshire County Council,SEN TRANSPORT,5227,Other Transport Arrangements,11/03/2016,3110070929,523.04,C&M Management Services Ltd
http://statistics.data.gov.uk/id/local-authority/38,Oxfordshire County Council,LD CLIENTS SOUTH,5227,Other Transport Arrangements,04/03/2016,3110067496,611,C&M Management Services Ltd
http://statistics.data.gov.uk/id/local-authority/38,Oxfordshire County Council,SEN TRANSPORT,5227,Other Transport Arrangements,11/03/2016,3110070934,636.16,C&M Management Services Ltd
http://statistics.data.gov.uk/id/local-authority/38,Oxfordshire County Council,SEN TRANSPORT,4330,Transport to School Activities,11/03/2016,3110070925,653.33,C&M Management Services Ltd
http://statistics.data.gov.uk/id/local-authority/38,Oxfordshire County Council,SEN TRANSPORT,4330,Transport to School Activities,11/03/2016,3110070919,720,C&M Management Services Ltd
http://statistics.data.gov.uk/id/local-authority/38,Oxfordshire County Council,SEN TRANSPORT,4330,Transport to School Activities,11/03/2016,3110070930,"1,242.07",C&M Management Services Ltd
http://statistics.data.gov.uk/id/local-authority/38,Oxfordshire County Council,SEN TRANSPORT,5227,Other Transport Arrangements,11/03/2016,3110070936,"1,264.00",C&M Management Services Ltd
http://statistics.data.gov.uk/id/local-authority/38,Oxfordshire County Council,RESPITE,4330,Transport to School Activities,11/03/2016,3110070944,"1,656.00",C&M Management Services Ltd
http://statistics.data.gov.uk/id/local-authority/38,Oxfordshire County Council,SEN TRANSPORT,4330,Transport to School Activities,11/03/2016,3110070937,"1,728.64",C&M Management Services Ltd
http://statistics.data.gov.uk/id/local-authority/38,Oxfordshire County Council,SEN TRANSPORT,4330,Transport to School Activities,11/03/2016,3110070923,"1,780.00",C&M Management Services Ltd
http://statistics.data.gov.uk/id/local-authority/38,Oxfordshire County Council,SEN TRANSPORT,4330,Transport to School Activities,11/03/2016,3110070928,"1,966.88",C&M Management Services Ltd
http://statistics.data.gov.uk/id/local-authority/38,Oxfordshire County Council,SEN TRANSPORT,4330,Transport to School Activities,11/03/2016,3110070921,"2,048.00",C&M Management Services Ltd
http://statistics.data.gov.uk/id/local-authority/38,Oxfordshire County Council,SEN TRANSPORT,4330,Transport to School Activities,11/03/2016,3110070917,"2,080.00",C&M Management Services Ltd
http://statistics.data.gov.uk/id/local-authority/38,Oxfordshire County Council,SEN TRANSPORT,4330,Transport to School Activities,11/03/2016,3110070933,"2,089.44",C&M Management Services Ltd
http://statistics.data.gov.uk/id/local-authority/38,Oxfordshire County Council,SEN TRANSPORT,4330,Transport to School Activities,11/03/2016,3110070941,"2,188.96",C&M Management Services Ltd
http://statistics.data.gov.uk/id/local-authority/38,Oxfordshire County Council,POST 16 SEN,4330,Transport to School Activities,11/03/2016,3110070927,"2,336.00",C&M Management Services Ltd
http://statistics.data.gov.uk/id/local-authority/38,Oxfordshire County Council,RESPITE,4330,Transport to School Activities,11/03/2016,3110070943,"2,484.00",C&M Management Services Ltd
http://statistics.data.gov.uk/id/local-authority/38,Oxfordshire County Council,SEN TRANSPORT,4330,Transport to School Activities,11/03/2016,3110070939,"2,526.24",C&M Management Services Ltd
http://statistics.data.gov.uk/id/local-authority/38,Oxfordshire County Council,LD CLIENTS SOUTH,5227,Other Transport Arrangements,04/03/2016,3110067497,"3,013.46",C&M Management Services Ltd
http://statistics.data.gov.uk/id/local-authority/38,Oxfordshire County Council,SEN TRANSPORT,4330,Transport to School Activities,11/03/2016,3110070935,"3,070.40",C&M Management Services Ltd
http://statistics.data.gov.uk/id/local-authority/38,Oxfordshire County Council,OPPB FAST TRACK,5691,,11/03/2016,3110071086,644,C3Care Ltd
http://statistics.data.gov.uk/id/local-authority/38,Oxfordshire County Council,OPPB FAST TRACK,5691,,23/03/2016,3110075238,644,C3Care Ltd
http://statistics.data.gov.uk/id/local-authority/38,Oxfordshire County Council,OPPB FAST TRACK,5691,,23/03/2016,3110075240,644,C3Care Ltd
http://statistics.data.gov.uk/id/local-authority/38,Oxfordshire County Council,OPPB FAST TRACK,5691,,23/03/2016,3110075237,682,C3Care Ltd
http://statistics.data.gov.uk/id/local-authority/38,Oxfordshire County Council,OPPB FAST TRACK,5691,,21/03/2016,3110072860,727.65,C3Care Ltd
http://statistics.data.gov.uk/id/local-authority/38,Oxfordshire County Council,OPPB FAST TRACK,5691,,23/03/2016,3110075239,727.65,C3Care Ltd
http://statistics.data.gov.uk/id/local-authority/38,Oxfordshire County Council,OPPB CONTCARE H SUPP,5691,,23/03/2016,3110075219,882,C3Care Ltd
http://statistics.data.gov.uk/id/local-authority/38,Oxfordshire County Council,OPPB CONTCARE H SUPP,5691,,23/03/2016,3110075221,882,C3Care Ltd
http://statistics.data.gov.uk/id/local-authority/38,Oxfordshire County Council,OPPB CONTCARE H SUPP,5691,,29/03/2016,3110076937,882,C3Care Ltd
http://statistics.data.gov.uk/id/local-authority/38,Oxfordshire County Council,OPPB CONTCARE H SUPP,5691,,30/03/2016,3110077039,882,C3Care Ltd
http://statistics.data.gov.uk/id/local-authority/38,Oxfordshire County Council,OPPB CONTCARE H SUPP,5691,,30/03/2016,3110077041,882,C3Care Ltd
http://statistics.data.gov.uk/id/local-authority/38,Oxfordshire County Council,OPPB CONTCARE H SUPP,5691,,30/03/2016,3110077047,882,C3Care Ltd
http://statistics.data.gov.uk/id/local-authority/38,Oxfordshire County Council,OPPB FAST TRACK,5691,,29/03/2016,3110076934,896.7,C3Care Ltd
http://statistics.data.gov.uk/id/local-authority/38,Oxfordshire County Council,PDPB CONTCARE H SUPP,5691,,23/03/2016,3110075273,"1,230.60",C3Care Ltd
http://statistics.data.gov.uk/id/local-authority/38,Oxfordshire County Council,PDPB CONTCARE H SUPP,5691,,23/03/2016,3110075272,"1,573.25",C3Care Ltd
http://statistics.data.gov.uk/id/local-authority/38,Oxfordshire County Council,PDPB CONTCARE H SUPP,5691,,23/03/2016,3110075271,"1,771.70",C3Care Ltd
http://statistics.data.gov.uk/id/local-authority/38,Oxfordshire County Council,Mainstream Res,5558,,01/03/2016,2200131116,"3,562.50",CALCOT SERVICES FOR CHILDREN
http://statistics.data.gov.uk/id/local-authority/38,Oxfordshire County Council,Mainstream Res,5558,,01/03/2016,2200120162,"11,807.14",Calcot Services For Children
http://statistics.data.gov.uk/id/local-authority/38,Oxfordshire County Council,Mainstream Res,5558,,01/03/2016,2200131123,"11,807.14",Calcot Services For Children
http://statistics.data.gov.uk/id/local-authority/38,Oxfordshire County Council,Mainstream Res,5558,,01/03/2016,2200121928,"12,621.42",Calcot Services For Children
http://statistics.data.gov.uk/id/local-authority/38,Oxfordshire County Council,Mainstream Res,5558,,01/03/2016,2200131112,"12,621.42",Calcot Services For Children
http://statistics.data.gov.uk/id/local-authority/38,Oxfordshire County Council,Mainstream Res,5558,,01/03/2016,2200131118,"12,621.42",Calcot Services For Children
http://statistics.data.gov.uk/id/local-authority/38,Oxfordshire County Council,Mainstream Res,5558,,01/03/2016,2200131121,"12,621.42",Calcot Services For Children
http://statistics.data.gov.uk/id/local-authority/38,Oxfordshire County Council,Mainstream Res,5558,,01/03/2016,2200120161,"19,637.14",CALCOT SERVICES FOR CHILDREN
http://statistics.data.gov.uk/id/local-authority/38,Oxfordshire County Council,Mainstream Res,5558,,01/03/2016,2200131114,"20,991.42",CALCOT SERVICES FOR CHILDREN
http://statistics.data.gov.uk/id/local-authority/38,Oxfordshire County Council,SM DISABILITIES,5899,Adult Social Care - Direct Payments,29/03/2016,3110075551,"1,103.60",Redacted Personal Data
http://statistics.data.gov.uk/id/local-authority/38,Oxfordshire County Council,PD COMM SUPP DIDCOT,5899,Adult Social Care - Direct Payments,22/03/2016,3110074232,"1,152.00",Redacted Personal Data
http://statistics.data.gov.uk/id/local-authority/38,Oxfordshire County Council,LD CLIENTS NORTH,5686,,10/03/2016,3110070872,"15,329.68",Cambian Autism Services Ltd
http://statistics.data.gov.uk/id/local-authority/38,Oxfordshire County Council,Mainstream Res,5558,,29/03/2016,2200137600,"18,600.00",Cambian Childcare Ltd
http://statistics.data.gov.uk/id/local-authority/38,Oxfordshire County Council,PD RES CONT TO POOL,5687,,10/03/2016,3110070876,"21,974.35",Cambian Learning Disabilities Ltd
http://statistics.data.gov.uk/id/local-authority/38,Oxfordshire County Council,LD CLIENTS SOUTH,5686,,10/03/2016,3110070874,"39,028.91",CAMBIAN LEARNING DISABILITIES LTD
http://statistics.data.gov.uk/id/local-authority/38,Oxfordshire County Council,PLAYGROUP FEES,5537,Payments to Other Establishments,16/03/2016,3110071625,577.5,Camel Pre-School
http://statistics.data.gov.uk/id/local-authority/38,Oxfordshire County Council,2 YEAR OLD FUNDING,5537,Payments to Other Establishments,08/03/2016,3110069937,"1,591.88",Camel Pre-School (PFSU)
http://statistics.data.gov.uk/id/local-authority/38,Oxfordshire County Council,OUT OF COUNTY,5537,Payments to Other Establishments,29/03/2016,3110075519,"11,923.67",Redacted Personal Data
http://statistics.data.gov.uk/id/local-authority/38,Oxfordshire County Council,LD CLIENTS SOUTH,5899,Adult Social Care - Direct Payments,22/03/2016,3110074348,736,Redacted Personal Data
http://statistics.data.gov.uk/id/local-authority/38,Oxfordshire County Council,FPT SOUTH/VALE,4525,Furniture,09/03/2016,3110068403,536.68,Redacted Personal Data
http://statistics.data.gov.uk/id/local-authority/38,Oxfordshire County Council,FOSTERING MAIN,5569,,22/03/2016,3110073316,631,Redacted Personal Data
http://statistics.data.gov.uk/id/local-authority/38,Oxfordshire County Council,FPT SOUTH/VALE,4525,Furniture,30/03/2016,3110076532,704.1,Redacted Personal Data
http://statistics.data.gov.uk/id/local-authority/38,Oxfordshire County Council,FOSTERING MAIN,5569,,16/03/2016,3110071817,991.56,Redacted Personal Data
http://statistics.data.gov.uk/id/local-authority/38,Oxfordshire County Council,LD CLIENTS NORTH,5688,,10/03/2016,3110070982,"3,838.89",Camphill Communities Thornbury
http://statistics.data.gov.uk/id/local-authority/38,Oxfordshire County Council,YP TREATMENT&SERVS,5195,Grant Aid and Donations,27/03/2016,3500016281,"28,333.34",CAN
http://statistics.data.gov.uk/id/local-authority/38,Oxfordshire County Council,CENTRAL PRINTING,4719,Photocopying,29/03/2016,2200138715,524.5,Canon (UK) Ltd
http://statistics.data.gov.uk/id/local-authority/38,Oxfordshire County Council,CENTRAL PRINTING,5666,Hire of Admin Equipment,02/03/2016,2200120504,796.94,Canon (UK) Ltd
http://statistics.data.gov.uk/id/local-authority/38,Oxfordshire County Council,CENTRAL PRINTING,4719,Photocopying,02/03/2016,2200123209,924,Canon (UK) Ltd
http://statistics.data.gov.uk/id/local-authority/38,Oxfordshire County Council,CENTRAL PRINTING,4719,Photocopying,02/03/2016,2200121678,999.15,Canon (UK) Ltd
http://statistics.data.gov.uk/id/local-authority/38,Oxfordshire County Council,CENTRAL PRINTING,5666,Hire of Admin Equipment,02/03/2016,2200120507,"1,348.84",Canon (UK) Ltd
http://statistics.data.gov.uk/id/local-authority/38,Oxfordshire County Council,CENTRAL PRINTING,4719,Photocopying,29/03/2016,2200138549,"2,816.87",Canon (UK) Ltd
http://statistics.data.gov.uk/id/local-authority/38,Oxfordshire County Council,CENTRAL PRINTING,4719,Photocopying,01/03/2016,2200120214,"6,775.75",Canon (UK) Ltd
http://statistics.data.gov.uk/id/local-authority/38,Oxfordshire County Council,TRAJECTORY FUNDING,4495,IT Software,29/03/2016,2200138288,"32,791.80",Capita Childrens Services
http://statistics.data.gov.uk/id/local-authority/38,Oxfordshire County Council,ICT Operations & Maintenance,5039,ITC Services,16/03/2016,2200130295,"4,112.50",Capital Bytes Ltd
http://statistics.data.gov.uk/id/local-authority/38,Oxfordshire County Council,UASC 16&17,5559,,09/03/2016,2200125361,"3,321.34",Capstone Vision Foster Care Ltd
http://statistics.data.gov.uk/id/local-authority/38,Oxfordshire County Council,PD COMM SUPP DIDCOT,5899,Adult Social Care - Direct Payments,22/03/2016,3110073581,"3,720.00",Redacted Personal Data
http://statistics.data.gov.uk/id/local-authority/38,Oxfordshire County Council,LD CLIENTS NORTH,5899,Adult Social Care - Direct Payments,22/03/2016,3110074025,916,Redacted Personal Data
http://statistics.data.gov.uk/id/local-authority/38,Oxfordshire County Council,OPPB FAST TRACK,5691,,29/03/2016,3110076939,680,CARE COMPASSION AND CONVERSATIONS
http://statistics.data.gov.uk/id/local-authority/38,Oxfordshire County Council,OPPB FAST TRACK,5691,,23/03/2016,3110075234,700,CARE COMPASSION AND CONVERSATIONS
http://statistics.data.gov.uk/id/local-authority/38,Oxfordshire County Council,OPPB FAST TRACK,5691,,23/03/2016,3110075235,740,CARE COMPASSION AND CONVERSATIONS
http://statistics.data.gov.uk/id/local-authority/38,Oxfordshire County Council,OPPB FAST TRACK,5691,,30/03/2016,3110077057,740,CARE COMPASSION AND CONVERSATIONS
http://statistics.data.gov.uk/id/local-authority/38,Oxfordshire County Council,OPPB CONTCARE H SUPP,5691,,22/03/2016,3110074994,"1,520.00",CARE COMPASSION AND CONVERSATIONS
http://statistics.data.gov.uk/id/local-authority/38,Oxfordshire County Council,CHC INTERIM PACKAGES,5691,,22/03/2016,3110074995,"1,520.00",CARE COMPASSION AND CONVERSATIONS
http://statistics.data.gov.uk/id/local-authority/38,Oxfordshire County Council,OPPB CONTCARE H SUPP,5691,,30/03/2016,3110077089,"2,210.00",CARE COMPASSION AND CONVERSATIONS
http://statistics.data.gov.uk/id/local-authority/38,Oxfordshire County Council,ETMS,4861,Hired and Contracted Services,02/03/2016,2200122400,"12,465.18",CARE MONITORING 2000 LTD
http://statistics.data.gov.uk/id/local-authority/38,Oxfordshire County Council,ETMS,4861,Hired and Contracted Services,02/03/2016,2200122399,"12,589.76",CARE MONITORING 2000 LTD
http://statistics.data.gov.uk/id/local-authority/38,Oxfordshire County Council,ETMS,4861,Hired and Contracted Services,04/03/2016,2200123647,"13,331.67",CARE MONITORING 2000 LTD
http://statistics.data.gov.uk/id/local-authority/38,Oxfordshire County Council,CSB - CITY,5689,,09/03/2016,3110068753,537.75,Care Outlook Ltd
http://statistics.data.gov.uk/id/local-authority/38,Oxfordshire County Council,CSB - CITY,5689,,09/03/2016,3110068757,545,Care Outlook Ltd
http://statistics.data.gov.uk/id/local-authority/38,Oxfordshire County Council,CSB - CITY,5689,,09/03/2016,3110068767,556.75,Care Outlook Ltd
http://statistics.data.gov.uk/id/local-authority/38,Oxfordshire County Council,CSB - CITY,5689,,09/03/2016,3110068761,612.75,Care Outlook Ltd
http://statistics.data.gov.uk/id/local-authority/38,Oxfordshire County Council,CSB - CITY,5689,,09/03/2016,3110068769,617.25,Care Outlook Ltd
http://statistics.data.gov.uk/id/local-authority/38,Oxfordshire County Council,CSB - CITY,5689,,09/03/2016,3110068777,674.25,Care Outlook Ltd
http://statistics.data.gov.uk/id/local-authority/38,Oxfordshire County Council,CSB - CITY,5689,,09/03/2016,3110068750,684.5,Care Outlook Ltd
http://statistics.data.gov.uk/id/local-authority/38,Oxfordshire County Council,CSB - CITY,5689,,09/03/2016,3110068749,690.5,Care Outlook Ltd
http://statistics.data.gov.uk/id/local-authority/38,Oxfordshire County Council,CSB - BANBURY,5689,,09/03/2016,3110068740,696.75,Care Outlook Ltd
http://statistics.data.gov.uk/id/local-authority/38,Oxfordshire County Council,CSB - CITY,5689,,09/03/2016,3110068748,702.5,Care Outlook Ltd
http://statistics.data.gov.uk/id/local-authority/38,Oxfordshire County Council,CSB - BANBURY,5689,,09/03/2016,3110068745,722.25,Care Outlook Ltd
http://statistics.data.gov.uk/id/local-authority/38,Oxfordshire County Council,CSB - BANBURY,5689,,09/03/2016,3110068742,780.75,Care Outlook Ltd
http://statistics.data.gov.uk/id/local-authority/38,Oxfordshire County Council,CSB - CITY,5689,,09/03/2016,3110068776,817,Care Outlook Ltd
http://statistics.data.gov.uk/id/local-authority/38,Oxfordshire County Council,CSB - CITY,5689,,09/03/2016,3110068774,838,Care Outlook Ltd
http://statistics.data.gov.uk/id/local-authority/38,Oxfordshire County Council,CSB - CITY,5689,,09/03/2016,3110068765,"1,013.75",Care Outlook Ltd
http://statistics.data.gov.uk/id/local-authority/38,Oxfordshire County Council,CSB - CITY,5689,,09/03/2016,3110068768,"1,332.25",Care Outlook Ltd
http://statistics.data.gov.uk/id/local-authority/38,Oxfordshire County Council,LAUNDRY SERVICE,5505,Payments to Health Authorities,09/03/2016,2200126756,"1,648.94",Care Outlook Ltd
http://statistics.data.gov.uk/id/local-authority/38,Oxfordshire County Council,LAUNDRY SERVICE,5505,Payments to Health Authorities,09/03/2016,2200126762,"1,648.94",Care Outlook Ltd
http://statistics.data.gov.uk/id/local-authority/38,Oxfordshire County Council,LAUNDRY SERVICE,5505,Payments to Health Authorities,09/03/2016,2200126766,"1,648.94",Care Outlook Ltd
http://statistics.data.gov.uk/id/local-authority/38,Oxfordshire County Council,LAUNDRY SERVICE,5505,Payments to Health Authorities,10/03/2016,2200129183,"1,648.94",Care Outlook Ltd
http://statistics.data.gov.uk/id/local-authority/38,Oxfordshire County Council,LAUNDRY SERVICE,5505,Payments to Health Authorities,10/03/2016,2200129185,"1,648.94",Care Outlook Ltd
http://statistics.data.gov.uk/id/local-authority/38,Oxfordshire County Council,LAUNDRY SERVICE,5505,Payments to Health Authorities,10/03/2016,2200129187,"1,648.94",Care Outlook Ltd
http://statistics.data.gov.uk/id/local-authority/38,Oxfordshire County Council,CSB - BANBURY,5689,,09/03/2016,3110068746,"2,362.75",Care Outlook Ltd
http://statistics.data.gov.uk/id/local-authority/38,Oxfordshire County Council,LAUNDRY SERVICE,5505,Payments to Health Authorities,09/03/2016,2200126772,"5,785.65",Care Outlook Ltd
http://statistics.data.gov.uk/id/local-authority/38,Oxfordshire County Council,LD CLIENTS NORTH,5686,,10/03/2016,3110070858,"9,571.25",Care UK
http://statistics.data.gov.uk/id/local-authority/38,Oxfordshire County Council,LD CLIENTS NORTH,5686,,10/03/2016,3110070869,"12,742.02",Care UK Learning Disabilities
http://statistics.data.gov.uk/id/local-authority/38,Oxfordshire County Council,OPPB CONTCARE DEL HE,5691,,23/03/2016,3110075229,956.65,Care Unlimited
http://statistics.data.gov.uk/id/local-authority/38,Oxfordshire County Council,OPPB CONTCARE DEL HE,5691,,23/03/2016,3110075230,"1,231.30",Care Unlimited
http://statistics.data.gov.uk/id/local-authority/38,Oxfordshire County Council,CMPB WITNEY,5689,,17/03/2016,2200131155,548.48,Care with Care Ltd
http://statistics.data.gov.uk/id/local-authority/38,Oxfordshire County Council,CMPB WITNEY,5689,,15/03/2016,2200135040,575.1,Care with Care Ltd
http://statistics.data.gov.uk/id/local-authority/38,Oxfordshire County Council,CMPB WITNEY,5689,,15/03/2016,2200133510,617.7,Care with Care Ltd
http://statistics.data.gov.uk/id/local-authority/38,Oxfordshire County Council,CMPB WITNEY,5689,,17/03/2016,2200131179,883.95,Care with Care Ltd
http://statistics.data.gov.uk/id/local-authority/38,Oxfordshire County Council,CMPB WITNEY,5689,,15/03/2016,2200133575,910.58,Care with Care Ltd
http://statistics.data.gov.uk/id/local-authority/38,Oxfordshire County Council,CMPB WITNEY,5689,,15/03/2016,2200135098,969.15,Care with Care Ltd
http://statistics.data.gov.uk/id/local-authority/38,Oxfordshire County Council,PD COMM SUPP - CITY,5689,,09/03/2016,3110069505,507.49,Care2Care Ltd
http://statistics.data.gov.uk/id/local-authority/38,Oxfordshire County Council,CSB - DIDCOT,5689,,09/03/2016,3110069412,510.45,Care2Care Ltd
http://statistics.data.gov.uk/id/local-authority/38,Oxfordshire County Council,CSB - DIDCOT,5689,,09/03/2016,3110069427,526.87,Care2Care Ltd
http://statistics.data.gov.uk/id/local-authority/38,Oxfordshire County Council,CSB - DIDCOT,5689,,09/03/2016,3110069466,530.38,Care2Care Ltd
http://statistics.data.gov.uk/id/local-authority/38,Oxfordshire County Council,CSB - DIDCOT,5689,,09/03/2016,3110069419,543.79,Care2Care Ltd
http://statistics.data.gov.uk/id/local-authority/38,Oxfordshire County Council,CSB - DIDCOT,5689,,09/03/2016,3110069454,558.43,Care2Care Ltd
http://statistics.data.gov.uk/id/local-authority/38,Oxfordshire County Council,CSB - DIDCOT,5689,,09/03/2016,3110069422,559.25,Care2Care Ltd
http://statistics.data.gov.uk/id/local-authority/38,Oxfordshire County Council,CSB - DIDCOT,5689,,09/03/2016,3110069436,571.42,Care2Care Ltd
http://statistics.data.gov.uk/id/local-authority/38,Oxfordshire County Council,CSB - DIDCOT,5689,,09/03/2016,3110069435,586.21,Care2Care Ltd
http://statistics.data.gov.uk/id/local-authority/38,Oxfordshire County Council,CSB - ABINGDON,5689,,09/03/2016,3110069494,603.11,Care2Care Ltd
http://statistics.data.gov.uk/id/local-authority/38,Oxfordshire County Council,CSB - ABINGDON,5689,,09/03/2016,3110069489,605.04,Care2Care Ltd
http://statistics.data.gov.uk/id/local-authority/38,Oxfordshire County Council,CSB - ABINGDON,5689,,09/03/2016,3110069501,605.17,Care2Care Ltd
http://statistics.data.gov.uk/id/local-authority/38,Oxfordshire County Council,CSB - DIDCOT,5689,,09/03/2016,3110069421,607.86,Care2Care Ltd
http://statistics.data.gov.uk/id/local-authority/38,Oxfordshire County Council,CSB - ABINGDON,5689,,09/03/2016,3110069502,615.97,Care2Care Ltd
http://statistics.data.gov.uk/id/local-authority/38,Oxfordshire County Council,CSB - DIDCOT,5689,,09/03/2016,3110069410,623.53,Care2Care Ltd
http://statistics.data.gov.uk/id/local-authority/38,Oxfordshire County Council,CSB - DIDCOT,5689,,09/03/2016,3110069409,625.17,Care2Care Ltd
http://statistics.data.gov.uk/id/local-authority/38,Oxfordshire County Council,PD COMM SUPP DIDCOT,5689,,09/03/2016,3110069508,625.28,Care2Care Ltd
http://statistics.data.gov.uk/id/local-authority/38,Oxfordshire County Council,PD COMM SUPP DIDCOT,5689,,09/03/2016,3110069510,645.95,Care2Care Ltd
http://statistics.data.gov.uk/id/local-authority/38,Oxfordshire County Council,CSB - ABINGDON,5689,,09/03/2016,3110069482,654.13,Care2Care Ltd
http://statistics.data.gov.uk/id/local-authority/38,Oxfordshire County Council,PD COMM SUPP AB'DON,5689,,09/03/2016,3110069519,657.77,Care2Care Ltd
http://statistics.data.gov.uk/id/local-authority/38,Oxfordshire County Council,CSB - DIDCOT,5689,,09/03/2016,3110069420,747.62,Care2Care Ltd
http://statistics.data.gov.uk/id/local-authority/38,Oxfordshire County Council,CSB - DIDCOT,5689,,09/03/2016,3110069442,757.24,Care2Care Ltd
http://statistics.data.gov.uk/id/local-authority/38,Oxfordshire County Council,PD COMM SUPP DIDCOT,5689,,09/03/2016,3110069516,776.29,Care2Care Ltd
http://statistics.data.gov.uk/id/local-authority/38,Oxfordshire County Council,CSB - DIDCOT,5689,,09/03/2016,3110069426,797.19,Care2Care Ltd
http://statistics.data.gov.uk/id/local-authority/38,Oxfordshire County Council,CSB - ABINGDON,5689,,09/03/2016,3110069481,812.72,Care2Care Ltd
http://statistics.data.gov.uk/id/local-authority/38,Oxfordshire County Council,CSB - DIDCOT,5689,,09/03/2016,3110069449,830.18,Care2Care Ltd
http://statistics.data.gov.uk/id/local-authority/38,Oxfordshire County Council,CSB - ABINGDON,5689,,09/03/2016,3110069495,893.44,Care2Care Ltd
http://statistics.data.gov.uk/id/local-authority/38,Oxfordshire County Council,CSB - DIDCOT,5689,,09/03/2016,3110069399,905.81,Care2Care Ltd
http://statistics.data.gov.uk/id/local-authority/38,Oxfordshire County Council,PD COMM SUPP DIDCOT,5689,,09/03/2016,3110069514,932.07,Care2Care Ltd
http://statistics.data.gov.uk/id/local-authority/38,Oxfordshire County Council,PD COMM SUPP DIDCOT,5689,,09/03/2016,3110069506,"1,099.02",Care2Care Ltd
http://statistics.data.gov.uk/id/local-authority/38,Oxfordshire County Council,CSB - DIDCOT,5689,,09/03/2016,3110069416,"1,133.84",Care2Care Ltd
http://statistics.data.gov.uk/id/local-authority/38,Oxfordshire County Council,CSB - DIDCOT,5689,,09/03/2016,3110069398,"1,189.66",Care2Care Ltd
http://statistics.data.gov.uk/id/local-authority/38,Oxfordshire County Council,CSB - DIDCOT,5689,,09/03/2016,3110069457,"1,220.90",Care2Care Ltd
http://statistics.data.gov.uk/id/local-authority/38,Oxfordshire County Council,CSB - DIDCOT,5689,,09/03/2016,3110069468,"1,246.86",Care2Care Ltd
http://statistics.data.gov.uk/id/local-authority/38,Oxfordshire County Council,CSB - DIDCOT,5689,,09/03/2016,3110069407,"1,262.77",Care2Care Ltd
http://statistics.data.gov.uk/id/local-authority/38,Oxfordshire County Council,CSB - DIDCOT,5689,,09/03/2016,3110069411,"1,264.87",Care2Care Ltd
http://statistics.data.gov.uk/id/local-authority/38,Oxfordshire County Council,CSB - ABINGDON,5689,,09/03/2016,3110069480,"1,312.72",Care2Care Ltd
http://statistics.data.gov.uk/id/local-authority/38,Oxfordshire County Council,CSB - DIDCOT,5689,,09/03/2016,3110069448,"1,317.25",Care2Care Ltd
http://statistics.data.gov.uk/id/local-authority/38,Oxfordshire County Council,CSB - DIDCOT,5689,,09/03/2016,3110069418,"1,333.75",Care2Care Ltd
http://statistics.data.gov.uk/id/local-authority/38,Oxfordshire County Council,CSB - DIDCOT,5689,,09/03/2016,3110069433,"1,338.71",Care2Care Ltd
http://statistics.data.gov.uk/id/local-authority/38,Oxfordshire County Council,CSB - DIDCOT,5689,,09/03/2016,3110069425,"1,395.00",Care2Care Ltd
http://statistics.data.gov.uk/id/local-authority/38,Oxfordshire County Council,CSB - DIDCOT,5689,,09/03/2016,3110069437,"1,408.07",Care2Care Ltd
http://statistics.data.gov.uk/id/local-authority/38,Oxfordshire County Council,CSB - ABINGDON,5689,,09/03/2016,3110069483,"1,500.46",Care2Care Ltd
http://statistics.data.gov.uk/id/local-authority/38,Oxfordshire County Council,CSB - DIDCOT,5689,,09/03/2016,3110069413,"1,503.83",Care2Care Ltd
http://statistics.data.gov.uk/id/local-authority/38,Oxfordshire County Council,CSB - ABINGDON,5689,,09/03/2016,3110069474,"1,732.29",Care2Care Ltd
http://statistics.data.gov.uk/id/local-authority/38,Oxfordshire County Council,CSB - DIDCOT,5689,,09/03/2016,3110069459,"1,844.13",Care2Care Ltd
http://statistics.data.gov.uk/id/local-authority/38,Oxfordshire County Council,CSB - DIDCOT,5689,,09/03/2016,3110069458,"1,879.68",Care2Care Ltd
http://statistics.data.gov.uk/id/local-authority/38,Oxfordshire County Council,CSB - DIDCOT,5689,,09/03/2016,3110069397,"2,169.26",Care2Care Ltd
http://statistics.data.gov.uk/id/local-authority/38,Oxfordshire County Council,Delayed Patient Care Beds,2040,Agency Staff,02/03/2016,2200120268,529.25,Care4Health
http://statistics.data.gov.uk/id/local-authority/38,Oxfordshire County Council,Delayed Patient Care Beds,2040,Agency Staff,01/03/2016,2200127234,602.25,Care4Health
http://statistics.data.gov.uk/id/local-authority/38,Oxfordshire County Council,Delayed Patient Care Beds,2040,Agency Staff,02/03/2016,2200131512,602.25,Care4Health
http://statistics.data.gov.uk/id/local-authority/38,Oxfordshire County Council,Delayed Patient Care Beds,2040,Agency Staff,01/03/2016,2200131507,620.5,Care4Health
http://statistics.data.gov.uk/id/local-authority/38,Oxfordshire County Council,Delayed Patient Care Beds,2040,Agency Staff,09/03/2016,2200132008,620.5,Care4Health
http://statistics.data.gov.uk/id/local-authority/38,Oxfordshire County Council,CARE HOME SPOT VALE,5687,,10/03/2016,3110070670,"113,323.43",Carebase (Abingdon) Limited
http://statistics.data.gov.uk/id/local-authority/38,Oxfordshire County Council,CITY DEAL SKILLS,4940,Other Services,04/03/2016,2200123254,646.03,Career Connect Provision Ltd
http://statistics.data.gov.uk/id/local-authority/38,Oxfordshire County Council,CITY DEAL SKILLS,4940,Other Services,02/03/2016,2200121107,671.52,Career Connect Provision Ltd
http://statistics.data.gov.uk/id/local-authority/38,Oxfordshire County Council,CITY DEAL SKILLS,4940,Other Services,17/03/2016,2200133871,773.66,Career Connect Provision Ltd
http://statistics.data.gov.uk/id/local-authority/38,Oxfordshire County Council,CSB - BANBURY,5689,,17/03/2016,2200131056,501.65,Caremark (West Oxfordshire & Cherwe
http://statistics.data.gov.uk/id/local-authority/38,Oxfordshire County Council,CMPB WITNEY,5689,,09/03/2016,3110068640,516.67,Caremark (West Oxfordshire & Cherwe
http://statistics.data.gov.uk/id/local-authority/38,Oxfordshire County Council,CMPB WITNEY,5689,,09/03/2016,3110068645,534.23,Caremark (West Oxfordshire & Cherwe
http://statistics.data.gov.uk/id/local-authority/38,Oxfordshire County Council,OPPB CONTCARE H SUPP,5689,,09/03/2016,3110068592,549.27,Caremark (West Oxfordshire & Cherwe
http://statistics.data.gov.uk/id/local-authority/38,Oxfordshire County Council,CMPB WITNEY,5689,,09/03/2016,3110068621,555.72,Caremark (West Oxfordshire & Cherwe
http://statistics.data.gov.uk/id/local-authority/38,Oxfordshire County Council,CMPB WITNEY,5689,,09/03/2016,3110068626,582.6,Caremark (West Oxfordshire & Cherwe
http://statistics.data.gov.uk/id/local-authority/38,Oxfordshire County Council,CMPB WITNEY,5689,,09/03/2016,3110068607,584.03,Caremark (West Oxfordshire & Cherwe
http://statistics.data.gov.uk/id/local-authority/38,Oxfordshire County Council,CMPB WITNEY,5689,,09/03/2016,3110068647,585.1,Caremark (West Oxfordshire & Cherwe
http://statistics.data.gov.uk/id/local-authority/38,Oxfordshire County Council,CMPB WITNEY,5689,,09/03/2016,3110068611,585.46,Caremark (West Oxfordshire & Cherwe
http://statistics.data.gov.uk/id/local-authority/38,Oxfordshire County Council,CSB - BANBURY,5689,,09/03/2016,3110068594,587.61,Caremark (West Oxfordshire & Cherwe
http://statistics.data.gov.uk/id/local-authority/38,Oxfordshire County Council,PD COMM SUPP WITNEY,5689,,09/03/2016,3110068653,590.12,Caremark (West Oxfordshire & Cherwe
http://statistics.data.gov.uk/id/local-authority/38,Oxfordshire County Council,CSB - BANBURY,5689,,09/03/2016,3110068598,597.64,Caremark (West Oxfordshire & Cherwe
http://statistics.data.gov.uk/id/local-authority/38,Oxfordshire County Council,CMPB WITNEY,5689,,09/03/2016,3110068638,613.41,Caremark (West Oxfordshire & Cherwe
http://statistics.data.gov.uk/id/local-authority/38,Oxfordshire County Council,CMPB WITNEY,5689,,09/03/2016,3110068624,614.48,Caremark (West Oxfordshire & Cherwe
http://statistics.data.gov.uk/id/local-authority/38,Oxfordshire County Council,CMPB WITNEY,5689,,09/03/2016,3110068604,672.53,Caremark (West Oxfordshire & Cherwe
http://statistics.data.gov.uk/id/local-authority/38,Oxfordshire County Council,OPPB CONTCARE H SUPP,5689,,09/03/2016,3110068591,673.25,Caremark (West Oxfordshire & Cherwe
http://statistics.data.gov.uk/id/local-authority/38,Oxfordshire County Council,CMPB WITNEY,5689,,09/03/2016,3110068634,694.74,Caremark (West Oxfordshire & Cherwe
http://statistics.data.gov.uk/id/local-authority/38,Oxfordshire County Council,CMPB WITNEY,5689,,09/03/2016,3110068625,707.28,Caremark (West Oxfordshire & Cherwe
http://statistics.data.gov.uk/id/local-authority/38,Oxfordshire County Council,CMPB WITNEY,5689,,09/03/2016,3110068615,712.3,Caremark (West Oxfordshire & Cherwe
http://statistics.data.gov.uk/id/local-authority/38,Oxfordshire County Council,PD COMM SUPP WITNEY,5689,,09/03/2016,3110068651,743.11,Caremark (West Oxfordshire & Cherwe
http://statistics.data.gov.uk/id/local-authority/38,Oxfordshire County Council,CSB - BANBURY,5689,,09/03/2016,3110068596,775.36,Caremark (West Oxfordshire & Cherwe
http://statistics.data.gov.uk/id/local-authority/38,Oxfordshire County Council,CSB - BANBURY,5689,,17/03/2016,2200131058,833.15,Caremark (West Oxfordshire & Cherwe
http://statistics.data.gov.uk/id/local-authority/38,Oxfordshire County Council,CSB - BANBURY,5689,,23/03/2016,3110075085,852.12,Caremark (West Oxfordshire & Cherwe
http://statistics.data.gov.uk/id/local-authority/38,Oxfordshire County Council,CSB - BANBURY,5689,,23/03/2016,3110075087,860,Caremark (West Oxfordshire & Cherwe
http://statistics.data.gov.uk/id/local-authority/38,Oxfordshire County Council,CSB - BANBURY,5689,,17/03/2016,2200131060,866.84,Caremark (West Oxfordshire & Cherwe
http://statistics.data.gov.uk/id/local-authority/38,Oxfordshire County Council,CMPB WITNEY,5689,,09/03/2016,3110068620,871.74,Caremark (West Oxfordshire & Cherwe
http://statistics.data.gov.uk/id/local-authority/38,Oxfordshire County Council,CSB - BANBURY,5689,,23/03/2016,3110075083,888.31,Caremark (West Oxfordshire & Cherwe
http://statistics.data.gov.uk/id/local-authority/38,Oxfordshire County Council,CSB - BANBURY,5689,,23/03/2016,3110075084,892.25,Caremark (West Oxfordshire & Cherwe
